Workbook

Sheet Utilitaire (hidden)
B3: Mot de passe: | C3: !1320PACC | D3: Fiche verrouillée: | E3: Oui - diffusion en ligne
B4: Fiche validée: | C4: Oui | D4: Fiche générée
B5: GES attendu: | D5: Est-ce que le pop-up "validation" s'affiche: | E5: Générée
B6: Feuille accueil complètement remplie: | C6: Oui | D6: Exercice de suivi: | E6: 2022-03-31 | F6: Date de l'exercice: | G6: 2022-03-31
B7: Statut action: | C7: =Accueil!D58 -> en cours | F7: Année Courante | G7: 2022-2023
B8: Feuille Utilitaire visible: | C8: Non | D8: Titre des Onglets: | E8: Plan d'action 2013-2020 sur les changements climatiques
B9: Dernière ligne de la zone de défilement de l'onglet détail des projets: | C9: 299
B10: nombre d'indicateurs approuvés: | C10: 9
B11: Secteur: | C11: Plan d'action 2013-2020 sur les changements climatiques
B12: Numéro de séquence de l'action: | C12: 13.071 | D12: Remplir la section Évaluation requis : | E12: =IF(Utilitaire!C7=I21,"Oui",IF(C7=I23,"Oui","Non")) -> Non | F12: Première ligne masquée dans l'onglet Indicateurs : | G12: 164
B13: Première ligne masquée dans l'onglet Description: | C13: 76 | D13: Affiche onglet Évaluation: | E13: Oui | F13: Première ligne masquée dans l'onglet Évaluation: | G13: 51
B15: Listes Déroulantes
B16: Onglet "Détail des projets" | G16: Onglet "Indicateurs" | H16: DRFM COF | I16: Accueil
B17: Région Administrative | C17: Statut | D17: Classification | E17: Type d'émissions | F17: Info GES | G17: Type d'indicateur | H17: Exercice de suivi | I17: Statut de l'action | J17: Programmes | K17: Fiche verrouillée
B18: 99-toutes les régions | C18: COVID-19 - Reporté ou prolongé | D18: SU-Subvention | E18: QC-Québec | F18: Oui | G18: Minimum à atteindre | H18: 2013-2014-1 | I18: non démarrée | J18: Sans objet | K18: Oui - partenaire
B19: 01-Bas-Saint-Laurent | C19: COVID-19 - Suspendu | D19: CF-Contrat fonctionnement | E19: HQ-Hors-Québec | F19: Non | G19: Maximum à ne pas dépasser | H19: 2013-2014-2 | I19: en élaboration | J19: Programme "Faites de l'air!" | K19: Oui - diffusion en ligne
B20: 02-Saguenay- Lac-Saint-Jean | C20: COVID-19 - Annulé | D20: CI-Contrat immobilisation | E20: ND-Non distingué | G20: Binaire | H20: 2014-2015-1 | I20: en cours | J20: Programme Action-Climat Québec | K20: Non - BGFV
B21: 03-Capitale-Nationale | C21: AC-Actif | D21: CP-Contrat service professionnel | H21: 2014-2015-2 | I21: terminée | J21: Programme Chauffez vert
B22: 04-Mauricie | C22: TE-Terminé | D22: CT-Contrat service technique | H22: 2015-2016-1 | I22: en suspens | J22: Programme Climat municipalités - Phase 2
B23: 05-Estrie | C23: AT-En attente | D23: PI-Projet à l'interne | H23: 2015-2016-2 | I23: Retirée du PACC | J23: Programme d’aide gouvernementale à l’amélioration des services de transport en commun (PAGASTC )
B24: 06-Montréal | C24: SU-Suspendu | D24: AU-Autre | G24: Étape | H24: 2016-2017-1 | J24: Programme d’aide gouvernementale au transport collectif des personnes (PAGTCP)
B25: 07-Outaouais | C25: AN-Annulé | G25: Recherche | H25: 2016-2017-2 | J25: Programme d’aide gouvernementale transitoire en matière de transport routier des personnes | K25: Commentaires
B26: 08-Abitibi-Témiscamingue | C26: AB-Abandonné | G26: Étude de cas et caractérisation des impacts des CC | H26: 2017-2018-1 | J26: Programme d'aide à la réduction des émissions de gaz à effet de serre dans le transport routier des marchandises - ÉcoCamionnage | K26: Accueil
B27: 09-Côte-Nord | C27: Projet en lien avec le transport | D27: Horizon temporel Potentiel GES | F27: Catégories | G27: Surveillance et prévention | H27: 2017-2018-2 | J27: Programme d'aide à la réhabilitation des terrains contaminés - ClimatSol-Plus - Volet 1 | K27: Description
B28: 10-Nord-du-Québec | C28: Oui | D28: À la fin du projet (suite au dernier versement) | F28: Agricole | G28: Réalisation | H28: 2018-2019-1 | J28: Programme d'aide à l'amélioration de l'efficacité du transport maritime, aérien et ferroviaire en matière de réduction des émissions de GES (PETMAF) | K28: Détail des projets
B29: 11-Gaspésie-Iles-de-la-Madeleine | C29: Non | D29: Cinq ans après la commercialisation du produit | F29: Aménagement du territoire | G29: Aide à la décision | H29: 2018-2019-2 | I29: Part de financement par le PACC | J29: Programme d'aide au développement du transport collectif (PADTC) | K29: GES
B30: 12-Chaudières-Appalaches | D30: Dix ans après la commercialisation du produit | F30: Bâtiment | G30: Sensibilisation et formation | H30: 2019-2020-1 | I30: Variable | J30: Programme d'aide aux nouvelles mobilités des personnes (NOMO) | K30: Indicateurs
B31: 13-Laval | D31: 2030 | F31: Biodiversité, écosystèmes et ressources naturelles | G31: Cadre législatif | H31: 2019-2020-2 | I31: =10 & " %" -> 10 % | J31: Programme d'aide financière au développement des transports actifs dans les périmètres urbains (TAPU) | K31: Validation
B32: 14-Lanaudière | D32: 2040 | F32: Industriel, commercial et institutionnel | H32: 2020-2021-1 | I32: =20 & " %" -> 20 % | J32: Programme d'aide financière pour la planification de milieux de vie durables | K32: Tout - autres
B33: 15-Laurentides | D33: 2050 | F33: Matières résiduelles | H33: 2020-2021-2 | I33: =30 & " %" -> 30 % | J33: Programme d'aide financière pour le compostage domestique et communautaire (ACDC)
B34: 16-Montérégie | F34: Reddition de comptes et partenariats | H34: 2021-2022-1 | I34: =40 & " %" -> 40 % | J34: Programme d'aide gouvernementale au transport collectif régional (PAGTCR)
B35: 17-Centre-du-Québec | F35: Santé et sécurité publique | G35: Ajustements | H35: 2021-2022-2 | I35: =50 & " %" -> 50 % | J35: Programme d'appui à la lutte contre les changements climatiques en agriculture (PALCCA) | K35: Onglet Évaluation
B36: Québec méridional | F36: Transports | G36: Agriculture | H36: 2022-2023-1 | I36: =60 & " %" -> 60 % | J36: Programme de biomasse forestière résiduelle | K36: Type de document
B37: À l'extérieur du Québec | F37: Autres | G37: Aménagement du territoire | H37: 2022-2023-2 | I37: =70 & " %" -> 70 % | J37: Programme de coopération climatique internationale (PCCI) | K37: Cadre d'évaluation
G38: Bâtiments et infrastructures | H38: 2023-2024-1 | I38: =80 & " %" -> 80 % | J38: Programme de formation continue sur l'utilisation du bois dans la construction | K38: Cadre de suivi d'évaluation préliminaire
G39: Forêts | H39: 2023-2024-2 | I39: =90 & " %" -> 90 % | J39: Programme de récupération et de valorisation des réfrigérateurs et congélateurs domestiques | K39: Rapport d'évaluation
B40: Onglet "Description" | G40: Industriel, commercial et institutionnel | I40: =100 & " %" -> 100 % | J40: Programme de soutien à la promotion de l'électrification des transports | K40: Résultats
B41: Clientèle | C41: État d'avancement | D41: Moyens | E41: Finalité | F41: COVID | G41: Océan, fleuve ou cours d'eau | J41: Programme de soutien à la réalisation de projets de démonstration de taxis électriques
B42: Citoyens | C42: Nouvelle | D42: Encadrement légal (politiques, stratégies, codes, réglementations, etc.) | E42: Adaptation aux effets des changements climatiques | F42: Aucun changement prévu | G42: Politiques et gestion | J42: Programme de soutien à l'intégration de l'adaptation aux changements climatiques à la planification municipale (PIACC) | K42: Type d'évaluation
B43: Entreprises (grandes entreprises) | C43: En cours | D43: Innovation, recherche et développement | E43: Réduction des émissions de gaz à effet de serre | F43: Diminution des coûts prévus | G43: Services à la population | J43: Programme de soutien au déploiement des autobus scolaires électriques au Québec | K43: En cours d'action
B44: Entreprises (petites ou moyennes entreprises) | C44: Complétée | D44: Réalisation (programmes et subventions favorisant l'exécution de solutions établies) | E44: Réduction et adaptation | F44: Augmentation des coûts prévus | G44: Suivi de l'état de l'environnement | J44: Programme de soutien aux essais de fertilisation | K44: Lorsque l'action est terminée
B45: Établissements de recherche | C45: Inactive | D45: Sensibilisation, formation et promotion | E45: Coordination | F45: L'augmentation prévue du coûts des projets rend le budget 2013-2020 insuffisant pour garantir la réalisation de tous les projets entamés | G45: Autres | J45: Programme de soutien aux municipalités dans la mise en place d'infrastructures de gestion durable des eaux de pluie à la source
B46: Ministères et organismes gouvernementaux | C46: Abandonnée | F46: moins d'un mois | J46: Programme de subventions à l’adaptation des taxis et des autocars interurbains pour le transport des personnes se déplaçant en fauteuil roulant
B47: Municipalités et organismes municipaux | F47: de 1 à 6 mois | J47: Programme de traitement des matières organiques par biométhanisation et compostage (PTMOBC) | K47: Recommandation
B48: Organismes à but non lucratif | F48: de 7 à 12 mois | J48: Programme de vitrine technologique pour les bâtiments et les solutions innovantes en bois | K48: Reconduire
F49: plus de 12 mois | J49: Programme d'innovation en construction bois | K49: Ne pas reconduire
F50: Aucun changement | G50: Risques | J50: Programme ÉcoPerformance | K50: Voir commentaire ci-dessous
F51: Retards prévus, mais les engagements seront tous pris avant le 31 décembre 2020 | G51: Biodiversité | J51: Programme Prime-Vert 2013-2018 | K51: Objectifs initiaux
F52: Retards prévus et les engagements ne pourront pas tous être pris avant le 31 décembre 2020 | G52: Économie | J52: Programme Roulez vert | K52: Oui
F53: Les échéanciers pourront être devancés | G53: Environnement | J53: Programme Technoclimat | K53: Partiellement
F54: Des cibles pourraient être atteintes avant les délais prévus | G54: Ressources naturelles | J54: Programme visant à rendre les établissements d'enseignement écoresponsables | K54: Non
F55: Toutes les cibles devraient être atteintes dans les délais prévus | G55: Santé et sécurité publique | J55: Programme visant la réduction des émissions de GES par le développement du transport intermodal (PREGTI)
F56: Toutes les cibles devraient être atteintes avec certains retards | G56: Services à la population | J56: Programme visant la réduction, la récupération et le recyclage des matières organiques du secteur des industries, commerces et institutions (ICI)
F58: Aucune cible ne pourra être atteinte | J58: Autre programme
G61: Effets des changements climatiques
G62: Dégradation d'écosystèmes
G63: Dégradation du pergélisol
G64: Intensification de l'érosion
G65: Exacerbation des aléas naturels
G66: Intensification des îlots de chaleur
G67: Modifications des régimes hydriques, de vagues ou de glaces
G68: Modifications des régimes de précipitations
G69: Propagation de maladies ou d'espèces nuisibles
G70: Qualité de l'air
G71: Tous les effets
G72: Autres
K82: Onglet de la fiche
K83: Accueil
K84: Administration
K85: Description
K86: Détail des projets
K87: GES
K88: Adaptation
K89: Indicateurs
K90: Commentaires
B227: ONGLET INDICATEURS: Liste des statuts de l'action
C228: 2013-2014 | D228: 2014-2015 | E228: 2015-2016 | F228: 2016-2017 | G228: 2017-2018 | H228: 2018-2019 | I228: 2019-2020 | J228: 2020-2021 | K228: 2021-2022 | L228: 2022-2023 | M228: 2023-2024 | N228: 2024-2025 | O228: 2025-2026 | P228: 2026-2027 | Q228: 2027-2028 | R228: 2026-2029
B229: Valeurs actuelles | C229: =IF(C228=$G$7,IF(Accueil!$D$58<>$C$239,Accueil!$D$58,IF(ISBLANK(C230),B230,C230)),C230) -> non démarrée | D229: =IF(D228=$G$7,IF(Accueil!$D$58<>$C$239,Accueil!$D$58,IF(ISBLANK(D230),C230,D230)),D230) -> non démarrée | E229: =IF(E228=$G$7,IF(Accueil!$D$58<>$C$239,Accueil!$D$58,IF(ISBLANK(E230),D230,E230)),E230) -> non démarrée | F229: =IF(F228=$G$7,IF(Accueil!$D$58<>$C$239,Accueil!$D$58,IF(ISBLANK(F230),E230,F230)),F230) -> non démarrée | G229: =IF(G228=$G$7,IF(Accueil!$D$58<>$C$239,Accueil!$D$58,IF(ISBLANK(G230),F230,G230)),G230) -> non démarrée | H229: =IF(H228=$G$7,IF(Accueil!$D$58<>$C$239,Accueil!$D$58,IF(ISBLANK(H230),G230,H230)),H230) -> non démarrée | I229: =IF(I228=$G$7,IF(Accueil!$D$58<>$C$239,Accueil!$D$58,IF(ISBLANK(I230),H230,I230)),I230) -> non démarrée | J229: =IF(J228=$G$7,IF(Accueil!$D$58<>$C$239,Accueil!$D$58,IF(ISBLANK(J230),I230,J230)),J230) -> non démarrée | K229: =IF(K228=$G$7,IF(Accueil!$D$58<>$C$239,Accueil!$D$58,IF(ISBLANK(K230),J230,K230)),K230) -> non démarrée | L229: =IF(L228=$G$7,IF(Accueil!$D$58<>$C$239,Accueil!$D$58,IF(ISBLANK(L230),K230,L230)),L230) -> en cours | M229: =IF(M228=$G$7,IF(Accueil!$D$58<>$C$239,Accueil!$D$58,IF(ISBLANK(M230),L230,M230)),M230) -> 0 | N229: =IF(N228=$G$7,IF(Accueil!$D$58<>$C$239,Accueil!$D$58,IF(ISBLANK(N230),M230,N230)),N230) -> 0 | O229: =IF(O228=$G$7,IF(Accueil!$D$58<>$C$239,Accueil!$D$58,IF(ISBLANK(O230),N230,O230)),O230) -> 0 | P229: =IF(P228=$G$7,IF(Accueil!$D$58<>$C$239,Accueil!$D$58,IF(ISBLANK(P230),O230,P230)),P230) -> 0 | Q229: =IF(Q228=$G$7,IF(Accueil!$D$58<>$C$239,Accueil!$D$58,IF(ISBLANK(Q230),P230,Q230)),Q230) -> 0 | R229: =IF(R228=$G$7,IF(Accueil!$D$58<>$C$239,Accueil!$D$58,IF(ISBLANK(R230),Q230,R230)),R230) -> 0
B230: Valeurs précédentes | C230: non démarrée | D230: non démarrée | E230: non démarrée | F230: non démarrée | G230: non démarrée | H230: non démarrée | I230: non démarrée | J230: non démarrée | K230: non démarrée
B233: IdStatutAction | C233: codeStatutAction | D233: valeurStatutAction | E233: rangStatut
B234: 1 | C234: =I18 -> non démarrée | D234: 0 | E234: 1
B235: 2 | C235: =I19 -> en élaboration | D235: 0 | E235: 2
B236: 3 | C236: en cours | D236: 0.5 | E236: 3
B237: 4 | C237: terminée | D237: 1 | E237: 4
B238: 5 | C238: en suspens | D238: 0 | E238: 5
B239: 6 | C239: Retirée du PACC | D239: 0 | E239: 6

Sheet Accueil
E2: EXERCICE DE SUIVI DU PLAN D'ACTION 2013-2020 SUR LES CHANGEMENTS CLIMATIQUES
B10: Bienvenue dans votre fiche de suivi du FECC - Gestion des matières résiduelles
B14: Échéance de transmission : | D14: 2022-06-14
B15: Nouveautés pour l’exercice de suivi de mai 2020
B16: RAPPEL :
B17: * Fin du PACC : Les conventions de subventions se rapportant aux engagements saisis à SAGIR sont maintenant signées.
B18: * Fin du PACC : Les projets réalisés à l'interne dans vos organisations doivent se terminer avant le 31 décembre 2022
B19: * Fin du PACC : Vous devez compléter l'onglet Évaluation.
B20: Consignes générales :
B21: →Les informations doivent correspondre à l'avancement de l'action en date du 31 mars 2022.
B22: →Assurez-vous de valider votre fiche (onglet Validation) avant de la transmettre à l’adresse suivante : suivi.climatique@environnement.gouv.qc.ca
B23: →Toute information confidentielle doit être saisie en bleu.
B24: →Conservez la fiche en format xlsm afin de pouvoir profiter des outils conviviaux.
B25: →La plupart des cellules contenant du texte sont limitées à 250 caractères.
B27: →Copier-coller des informations à partir d’un document Word verrouille les cellules concernées. Pour pouvoir à nouveau écrire et modifier le format de ces cellules, fermez et ouvrez à nouveau la fiche.
B29: →Besoin d’assistance? Écrivez-nous à l’adresse suivante en précisant votre question et vos coordonnées : suivi.climatique@environnement.gouv.qc.ca
K32: suivi.climatique@environnement.gouv.qc.ca
B50: Veuillez vérifier, corriger et compléter les informations ci-dessous :
B52: Priorité : | D52: 13 | E52: Promouvoir le transport collectif et alternatif en améliorant l'offre, en développant les infrastructures et en facilitant les choix durables
B53: Action : | D53: 13.7 | E53: Aide au développement du transport collectif et au transport scolaire (FORT)
B54: Sous-action : | D54: 13.7.1 | E54: Amélioration des services de transport en commun (urbain)
B55: Libellé usuel : | D55: 13.7.1 | E55: Programme d'aide au développement du transport collectif (PADTC) - Amélioration des services de transport en commun (urbain)
B56: Programme : | D56: Programme d'aide au développement du transport collectif (PADTC)
B57: Nom du programme :
B58: Statut de l’action : | D58: en cours
B59: Raison du statut de l’action :
B63: Informations en date du : | D63: =Utilitaire!G6 -> 2022-03-31
B65: Ministère porteur : | D65: MTQ | I65: Direction responsable : | K65: Direction des aides en transport collectif
B66: Partenaires : | D66: S.O. | I66: Part de financement par le FECC : | K66: 0.76
B67: Budget 2013-2020 (M$) : | D67: 1001.6 | I67: Autres sources de financement : | K67: FORT (807)
B68: Date de lancement de l’action : | D68: 2014-01-01 | I68: Date de fin de l’action : | K68: 2023-03-31
B69: Section réservée à l’usage exclusif du BECC (lignes 70 à 73 non publiées)
B70: Chargé de projet : | D70: Frédéric Boily | I70: Tél. : | K70: 418 839-7978 , poste 49021
B71: Responsable ministériel : | D71: Raymond Jeudi | I71: Tél. : | K71: 418 528-6416
B72: Personne ressource pour le BECC : | D72: Isabelle Gattaz | I72: Tél. : | K72: (418) 646-0700 p.23671
B73: Estimation des sommes résiduelles au 31 décembre 2020 ($) : | D73: 0 | I73: Précisions sur le montant des sommes résiduelles : | K73: s
B74: Téléphone pour informations : | D74: 1 855 464-1730
B75: Référence Web : | D75: https://www.transports.gouv.qc.ca/fr/aide-finan/transport-collectif/programme-transport-collectif/volet-i/Pages/volet-i.aspx
B85: Ministère des Transports

Sheet Description
B2: =Utilitaire!E8 -> Plan d'action 2013-2020 sur les changements climatiques
B3: ="Action " & Accueil!D58 -> Action en cours
B4: =Accueil!D55 -> 13.7.1 | C4: =Accueil!E55 -> Programme d'aide au développement du transport collectif (PADTC) - Amélioration des services de transport en commun (urbain)
B5: Ministère porteur : | D5: =Accueil!$D$65 -> MTQ
B6: Description
B15: Évaluation des effets de la COVID-19 sur la mise en œuvre de l'action
B16: Résultats attendus :
B17: Échéancier :
B18: Sommes engagées (projets en cours) :
B19: Autres :
B41: Informations en date du : | F41: 2022-03-31
B42: Informations générales
B43: Description de l'action: | C43: Soutenir les autorités organisatrices de transport (AOT) dans leurs efforts pour accroître et optimiser l'offre de services en transport en commun et favoriser une utilisation accrue du transport en commun afin notamment de réduire les émissions de GES associées au transport des personnes
B44: Objectif de l'action: | C44: Soutenir les autorités oganisatrices de transport (AOT) dans leurs efforts pour accroître et optimiser l'offre de services en transport en commun et favoriser une utilisation accrue du transport en commun afin notamment de réduire les émissions de GES associées au transport des personnes
B45: Bénéficiaires : | C45: Municipalités et organismes municipaux
C46: Autres (précisez) : | E46: Sociétés, autorités organisatrice et/ou agences de transport en commun
B47: Critères d'admissibilité : | C47: Tout projet d'une AOT associé au maintien ou à une augmentation de l'offre de services de transport en commun de l'année courante par rapport à l'année précédente est admissible. Conditionnellement au maintien de ses services de transport en commun, une AOT peut également être admissible à une aide à l'optimisation si elle améliore sa performance annuelle par rapport à celle de l'année précédente suivant quatre dimensions prédéterminées. La subvention octroyée à chaque AOT est habituellement ajustée annuellement selon l'enveloppe budgétaire disponible et les niveaux d'offre de services et de performance atteints au cours des années précédentes et de ceux projetés pour l'année en cours.
B48: Processus de suivi de l'action : | C48: Les montants versés sont ajustés selon le rapport de vérification effectué par une firme externe et d'autres pièces justificatives attestant de l'amélioration des performances individuelles, le cas échéant. L'augmentation de l'offre de services et de l'achalandage de chaque AOT est également recueillie aux fins de reddition de comptes et du calcul du potentiel de réduction des émissions de GES
B49: Résultats et co-bénéfices attendus : | C49: Une hausse de l'offre de services de transport en commun et une amélioration de la performance de ces services entraîneront une hausse de l'achalandage. Il en découlera une réduction des émissions de GES. L'utilisation du transport en commun permet de réduire la congestion et les émissions polluantes. Elle permet de réduire les dépenses associées à la possession et l'utilisation de l'automobile. Elle permet aussi d'améliorer la santé des citoyens puisque les usagers du transport collectif ont davantage recours aux modes actifs de déplacement. Elle facilite également la participation économique et sociale des personnes sans véhicule personnel, à faible revenu ou en perte d'autonomie.
B50: Résultats et co-bénéfices obtenus dans la dernière année : | C50: Les résultats obtenus au cours de l'année 2021-2022 ne sont pas encore disponibles puisque les données d'offre de services des autorités organisatrice de transport n'ont pas encore été compilées (voir onglet commentaires).
B51: Résultats et co-bénéfices obtenus depuis le lancement de l'action : | C51: Les résultats obtenus pour l'année 2021-2022 ne sont pas encore disponibles. Les dernières données disponibles remontent à 2019-2020 et font état 24% de hausse d'achalandage, 38,10% de la hausse de l'offre de services, 70 571 tonnes de GES évités. En 2020-2021 le maintien de la hausse de l'offre de services était à 33,50%.
B53: Classification
B54: Finalité : | C54: Réduction des émissions de gaz à effet de serre | H54: Moyen : | J54: Innovation, recherche et développement
B62: Mise en œuvre
B63: Étapes (depuis le début de l'action) | J63: Échéancier | M63: État d'avancement
A64: 1 | B64: Adoption du décret 90-2014 pour adopter le Programme d'aide gouvernementale à l'amélioration des services en transport en commun (PAGAST), en vigueur du 1er janvier au 31 décembre 2014 et incluant ce sous-volet (sous-action) | J64: 2014-02-26 | M64: Complétée
A65: 2 | B65: Adoption du Programme d'aide au développement du transport collectif (PADTC 2015), en vigueur le 1er janvier au 31 décembre 2015 et incluant ce sous-volet (sous-action) | J65: 2014-12-01 | M65: Complétée
A66: 3 | B66: Adoption du PADTC 2016, en vigueur le 1er janvier au 31 décembre 2016 et incluant ce sous-volet (sous-action) | J66: 2016-03-01 | M66: Complétée
A67: 4 | B67: Adoption du PADTC 2017, en vigueur le 1er janvier au 31 décembre 2017 et incluant ce sous-volet (sous-action) | J67: 2017-03-01 | M67: Complétée
A68: 5 | B68: Adoption du PADTC 2018-2020, en vigueur le 1er janvier 2018 au 31 décembre 2020 et incluant ce sous-volet (sous-action) | J68: 2018-05-01 | M68: Complétée
A69: 6 | B69: Adoption des modifications du PADTC | J69: 2020-01-01 | M69: Complétée
B70: Approbation des modalités du Programme d'aide au développement du transport collectif pour 2021-2022 | J70: 2021-11-01 | M70: Complétée
A71: 8 | B71: Suivi des projets toujours en cours avec les versements associés à venir | J71: 2023-03-01 | M71: En cours
A72: 9
B190: Ajouter une ligne
B194: Plans, stratégies ou politiques incluant la mise en œuvre de cette action
B195: Abréviation | D195: Nom complet | N195: Numéro de mesure
B196: PACC 2013-2020 | D196: Plan d'action 2013-2020 sur les changements climatiques | N196: 13.7.1
B197: PMD 2030 | D197: Plan de mobilité durable, dimension 1, Rendre le transport collectif urbain plus attrayant et compétitif | N197: S.O.
B198: PD | D198: Plan directeur en transition, innovation et efficacité énergétiques 2018-2023 | N198: 13

Sheet Détail des projets
B2: =Utilitaire!E8 -> Plan d'action 2013-2020 sur les changements climatiques
B3: ="Action " & Accueil!D58 -> Action en cours
B4: =Accueil!D55 -> 13.7.1 | C4: =Accueil!E55 -> Programme d'aide au développement du transport collectif (PADTC) - Amélioration des services de transport en commun (urbain)
B5: Ministère porteur : | C5: =Accueil!$D$65 -> MTQ
B6: Détails et prévisions des dépenses par projet
D19: Informations en date du : | G19: 2022-03-31
B22: DÉTAILS DES PROJETS AUTORISÉS | O22: MONTANTS PROVENANT DU FECC ($) | AA22: =MONTH(#REF!) -> 
A23: No | B23: Nom du projet | C23: Nom du requérant ou du bénéficiaire | D23: Volet ou thématique | E23: Catégorie | F23: Nombre de projets | G23: Région administrative | H23: Municipalité | I23: Statut | J23: Classification du projet | K23: Montant engagé ($) | L23: Date de l'engagement | M23: Date du dernier versement | N23: Budget total du projet ($) | O23: 2013-2014 | P23: 2014-2015 | Q23: 2015-2016 | R23: 2016-2017 | S23: 2017-2018 | T23: 2018-2019 | U23: 2019-2020 | V23: 2020-2021 | W23: 2021-2022 | X23: 2022-2023 | Y23: 2023-2024 | Z23: 2024-2025 | AA23: MONTANT DES DÉPENSES RÉELLES ($) | AB23: TOTAL DES DÉPENSES RÉELLES ET PRÉVUES ($)
K24: (convention signée, contrat, lettre de confirmation du ministre ou de son représentant ou lettre d'octroi) | O24: Réel | P24: Réel | Q24: Réel | R24: Réel | S24: Réel | T24: Réel | U24: Réel | V24: Réel | W24: Réel | X24: Prévu | Y24: Prévu | Z24: Prévu
A25: 1 | B25: Amélioration des services | C25: Autorité régionale de transport métropolitain | D25: Amélioration des services | E25: Transports | F25: 1 | G25: 06-Montréal | I25: TE-Terminé | J25: SU-Subvention | K25: 26524513 | L25: 2018-03-29 | M25: 2020-05-25 | N25: 53049026 | S25: 26524513 | AA25: =SUM(O25:W25) -> 26524513 | AB25: =SUM(O25:Z25) -> 26524513
A26: 2 | B26: Amélioration des services | C26: Réseau de transport de la Capitale | D26: Amélioration des services | E26: Transports | F26: 1 | G26: 03-Capitale-Nationale | I26: TE-Terminé | J26: SU-Subvention | K26: 7020936 | L26: 2018-03-29 | M26: 2019-10-19 | N26: 14041872 | S26: 7020936 | U26: -706181 | AA26: =SUM(O26:W26) -> 6314755 | AB26: =SUM(O26:Z26) -> 6314755
A27: 3 | B27: Amélioration des services | C27: Société de transport de Lévis | D27: Amélioration des services | E27: Transports | F27: 1 | G27: 12 Chaudières-Appalaches | I27: TE-Terminé | J27: SU-Subvention | K27: 1591870 | L27: 2020-02-26 | M27: 2018-04-28 | N27: 3183740 | S27: 1591870 | U27: -263030 | W27: -171720 | AA27: =SUM(O27:W27) -> 1157120 | AB27: =SUM(O27:Z27) -> 1157120
A28: 4 | B28: Amélioration des services | C28: Société de transport de l'Outaouais | D28: Amélioration des services | E28: Transports | F28: 1 | G28: 07-Outaouais | I28: TE-Terminé | J28: SU-Subvention | K28: 6898582 | L28: 2018-03-29 | M28: 2018-05-27 | N28: 13797164 | S28: 6898582 | T28: -126343 | AA28: =SUM(O28:W28) -> 6772239 | AB28: =SUM(O28:Z28) -> 6772239
A29: 5 | B29: Amélioration des services | C29: Société de transport de Montréal | D29: Amélioration des services | E29: Transports | F29: 1 | G29: 06-Montréal | I29: TE-Terminé | J29: SU-Subvention | K29: 29960097 | L29: 2018-03-29 | M29: 2019-03-12 | N29: 59920194 | S29: 29960097 | T29: -456300 | AA29: 29503797 | AB29: 29503797
A30: 6 | B30: Amélioration des services | C30: Conseil intermunicipal de transport Chambly-Richelieu-Carignan | D30: Amélioration des services | E30: Transports | F30: 1 | G30: 16-Montérégie | I30: TE-Terminé | J30: SU-Subvention | K30: 742386 | L30: 2017-03-31 | M30: 2017-06-01 | N30: 1484772 | R30: 742386 | AA30: 742386 | AB30: 742386
A31: 7 | B31: Amélioration des services | C31: Société de transport de Montréal | D31: Amélioration des services | E31: Transports | F31: 1 | G31: 06-Montréal | I31: TE-Terminé | J31: SU-Subvention | K31: 25823955 | L31: 2017-03-31 | M31: 2017-06-02 | N31: 51647910 | R31: 25823955 | AA31: 25823955 | AB31: 25823955
A32: 8 | B32: Amélioration des services | C32: Réseau de transport de Longueuil | D32: Amélioration des services | E32: Transports | F32: 1 | G32: 16-Montérégie | I32: TE-Terminé | J32: SU-Subvention | K32: 2912730 | L32: 2017-03-31 | M32: 2017-06-20 | N32: 5825460 | R32: 2912730 | AA32: 2912730 | AB32: 2912730
A33: 9 | B33: Amélioration des services | C33: Conseil intermunicipal de transport de la Vallée du Richelieu | D33: Amélioration des services | E33: Transports | F33: 1 | G33: 16-Montérégie | I33: TE-Terminé | J33: SU-Subvention | K33: 641989 | L33: 2017-03-31 | M33: 2017-06-01 | N33: 1283978 | R33: 641989 | AA33: 641989 | AB33: 641989
A34: 10 | B34: Amélioration des services | C34: Conseil intermunicipal de transport des Laurentides | D34: Amélioration des services | E34: Transports | F34: 1 | G34: 13-Laval | I34: TE-Terminé | J34: SU-Subvention | K34: 2301345 | L34: 2017-03-31 | M34: 2017-06-01 | N34: 4602690 | R34: 2301345 | AA34: 2301345 | AB34: 2301345
A35: 11 | B35: Amélioration des services | C35: Ville de Granby | D35: Amélioration des services | E35: Transports | F35: 1 | G35: 16-Montérégie | I35: TE-Terminé | J35: SU-Subvention | K35: 276957 | L35: 2017-03-31 | M35: 2017-06-01 | N35: 553914 | R35: 276957 | AA35: 276957 | AB35: 276957
A36: 12 | B36: Amélioration des services | C36: Ville de Sainte-Julie | D36: Amélioration des services | E36: Transports | F36: 1 | G36: 16-Montérégie | I36: TE-Terminé | J36: SU-Subvention | K36: 353816 | L36: 2017-03-31 | M36: 2017-06-01 | N36: 707632 | R36: 353816 | AA36: 353816 | AB36: 353816
A37: 13 | B37: Amélioration des services | C37: Ville de Rimouski | D37: Amélioration des services | E37: Transports | F37: 1 | G37: 01-Bas-Saint-Laurent | I37: TE-Terminé | J37: SU-Subvention | K37: 137398 | L37: 2017-03-31 | M37: 2017-05-30 | N37: 274796 | R37: 137398 | AA37: 137398 | AB37: 137398
A38: 14 | B38: Amélioration des services | C38: Société de transport de Laval | D38: Amélioration des services | E38: Transports | F38: 1 | G38: 13-Laval | I38: TE-Terminé | J38: SU-Subvention | K38: 4734011 | L38: 2017-03-31 | M38: 2017-06-01 | N38: 9468022 | R38: 4734011 | AA38: 4734011 | AB38: 4734011
A39: 15 | B39: Amélioration des services | C39: Société de transport du Saguenay | D39: Amélioration des services | E39: Transports | F39: 1 | G39: 02-Saguenay- Lac-Saint-Jean | I39: TE-Terminé | J39: SU-Subvention | K39: 291559 | L39: 2017-03-31 | M39: 2017-06-08 | N39: 583118 | R39: 291559 | AA39: 291559 | AB39: 291559
A40: 16 | B40: Amélioration des services | C40: Conseil intermunicipal de transport du Sud-Ouest | D40: Amélioration des services | E40: Transports | F40: 1 | G40: 16-Montérégie | I40: TE-Terminé | J40: SU-Subvention | K40: 872773 | L40: 2017-03-31 | M40: 2017-06-14 | N40: 1745546 | R40: 872773 | AA40: 872773 | AB40: 872773
A41: 17 | B41: Amélioration des services | C41: Société de transport de Lévis | D41: Amélioration des services | E41: Transports | F41: 1 | G41: 12 Chaudières-Appalaches | I41: TE-Terminé | J41: SU-Subvention | K41: 1038434 | L41: 2017-03-31 | M41: 2017-06-08 | N41: 2076868 | R41: 1038434 | AA41: 1038434 | AB41: 1038434
A42: 18 | B42: Amélioration des services | C42: Société de transport de Trois-Rivières | D42: Amélioration des services | E42: Transports | F42: 1 | G42: 04-Mauricie | I42: TE-Terminé | J42: SU-Subvention | K42: 391571 | L42: 2017-03-31 | M42: 2017-06-01 | N42: 783142 | R42: 391571 | AA42: 391571 | AB42: 391571
A43: 19 | B43: Amélioration des services | C43: Réseau de transport de la Capitale | D43: Amélioration des services | E43: Transports | F43: 1 | G43: 03-Capitale-Nationale | I43: TE-Terminé | J43: SU-Subvention | K43: 5824589 | L43: 2017-03-31 | M43: 2017-06-14 | N43: 11649178 | R43: 5824589 | AA43: 5824589 | AB43: =SUM(O43:Z43) -> 5824589
A44: 20 | B44: Amélioration des services | C44: Agence métropolitaine de transport | D44: Amélioration des services | E44: Transports | F44: 1 | G44: 06-Montréal | I44: TE-Terminé | J44: SU-Subvention | K44: 4041928 | L44: 2017-03-31 | M44: 2017-06-20 | N44: 8083856 | R44: 4041928 | AA44: 4041928 | AB44: =SUM(O44:Z44) -> 4041928
A45: 21 | B45: Amélioration des services | C45: Conseil intermunicipal de transport de Sorel-Varennes | D45: Amélioration des services | E45: Transports | F45: 1 | G45: 16-Montérégie | I45: TE-Terminé | J45: SU-Subvention | K45: 613251 | L45: 2017-03-31 | M45: 2017-06-01 | N45: 1226502 | R45: 613251 | AA45: 613251 | AB45: =SUM(O45:Z45) -> 613251
A46: 22 | B46: Amélioration des services | C46: Société de transport de l'Outaouais | D46: Amélioration des services | E46: Transports | F46: 1 | G46: 07-Outaouais | I46: TE-Terminé | J46: SU-Subvention | K46: 3179999 | L46: 2017-03-31 | M46: 2017-06-14 | N46: 6359998 | R46: 3179999 | AA46: 3179999 | AB46: =SUM(O46:Z46) -> 3179999
A47: 23 | B47: Amélioration des services | C47: Conseil intermunicipal de transport de la Presqu'Île | D47: Amélioration des services | E47: Transports | F47: 1 | G47: 16-Montérégie | I47: TE-Terminé | J47: SU-Subvention | K47: 530173 | L47: 2017-03-31 | M47: 2017-06-14 | N47: 1060346 | R47: 530173 | AA47: 530173 | AB47: =SUM(O47:Z47) -> 530173
A48: 24 | B48: Amélioration des services | C48: Conseil intermunicipal de transport le Richelain | D48: Amélioration des services | E48: Transports | F48: 1 | G48: 16-Montérégie | I48: TE-Terminé | J48: SU-Subvention | K48: 580003 | L48: 2017-03-31 | M48: 2017-06-14 | N48: 1160006 | R48: 580003 | AA48: 580003 | AB48: =SUM(O48:Z48) -> 580003
A49: 25 | B49: Amélioration des services | C49: Conseil intermunicipal de transport de Roussillon | D49: Amélioration des services | E49: Transports | F49: 1 | G49: 16-Montérégie | I49: TE-Terminé | J49: SU-Subvention | K49: 540013 | L49: 2017-03-31 | M49: 2017-06-14 | N49: 1080026 | R49: 540013 | AA49: 540013 | AB49: =SUM(O49:Z49) -> 540013
A50: 26 | B50: Amélioration des services | C50: Ville de Saint-Jean-sur-Richelieu | D50: Amélioration des services | E50: Transports | F50: 1 | G50: 16-Montérégie | I50: TE-Terminé | J50: SU-Subvention | K50: 278259 | L50: 2017-03-31 | M50: 2017-06-14 | N50: 556518 | R50: 278259 | AA50: 278259 | AB50: =SUM(O50:Z50) -> 278259
A51: 27 | B51: Amélioration des services | C51: Société de transport de Sherbrooke | D51: Amélioration des services | E51: Transports | F51: 1 | G51: 05-Estrie | I51: TE-Terminé | J51: SU-Subvention | K51: 455230 | L51: 2017-03-31 | M51: 2017-06-01 | N51: 910460 | R51: 455230 | AA51: 455230 | AB51: =SUM(O51:Z51) -> 455230
A52: 28 | B52: Amélioration des services | C52: Conseil intermunicipal de transport du Haut St-Laurent | D52: Amélioration des services | E52: Transports | F52: 1 | G52: 16-Montérégie | I52: TE-Terminé | J52: SU-Subvention | K52: 42245 | L52: 2017-03-31 | M52: 2017-06-14 | N52: 84490 | R52: 42245 | S52: 0 | AA52: =SUM(O52:W52) -> 42245 | AB52: =SUM(O52:Z52) -> 42245
A53: 29 | B53: Amélioration des services | C53: Ville de Baie-Comeau | D53: Amélioration des services | E53: Transports | F53: 1 | G53: 09-Côte-Nord | I53: TE-Terminé | J53: SU-Subvention | K53: 26332 | L53: 2017-03-31 | M53: 2017-05-30 | N53: 52664 | R53: 26332 | AA53: =SUM(O53:W53) -> 26332 | AB53: =SUM(O53:Z53) -> 26332
A54: 30 | B54: Amélioration des services | C54: Ville de Drummondville | D54: Amélioration des services | E54: Transports | F54: 1 | G54: 17-Centre-du-Québec | I54: TE-Terminé | J54: SU-Subvention | K54: 105398 | L54: 2017-03-31 | M54: 2017-06-01 | N54: 210796 | R54: 105398 | AA54: =SUM(O54:W54) -> 105398 | AB54: =SUM(O54:Z54) -> 105398
A55: 31 | B55: Amélioration des services | C55: Ville de Salaberry-de-Valleyfield | D55: Amélioration des services | E55: Transports | F55: 1 | G55: 16-Montérégie | I55: TE-Terminé | J55: SU-Subvention | K55: 2845 | L55: 2017-03-31 | M55: 2017-06-14 | N55: 5690 | R55: 2845 | AA55: =SUM(O55:W55) -> 2845 | AB55: =SUM(O55:Z55) -> 2845
A56: 32 | B56: Amélioration des services | C56: Conseil régional de transport de Lanaudière | D56: Amélioration des services | E56: Transports | F56: 1 | G56: 13-Laval | I56: TE-Terminé | J56: SU-Subvention | K56: 1760811 | L56: 2017-03-31 | M56: 2017-06-01 | N56: 3521622 | R56: 1760811 | AA56: =SUM(O56:W56) -> 1760811 | AB56: =SUM(O56:Z56) -> 1760811
A57: 33 | B57: Amélioration des services | C57: Conseil intermunicipal de transport Chambly-Richelieu-Carignan | D57: Amélioration des services | E57: Transports | F57: 1 | G57: 16-Montérégie | I57: TE-Terminé | J57: SU-Subvention | K57: 979949 | L57: 2016-10-06 | M57: 2018-08-13 | N57: 1959898 | R57: 979949 | AA57: =SUM(O57:W57) -> 979949 | AB57: =SUM(O57:Z57) -> 979949
A58: 34 | B58: Amélioration des services | C58: Société de transport de Montréal | D58: Amélioration des services | E58: Transports | F58: 1 | G58: 06-Montréal | I58: TE-Terminé | J58: SU-Subvention | K58: 30595555 | L58: 2016-10-06 | M58: 2017-10-16 | N58: 61191110 | R58: 26567273 | S58: -520837 | AA58: =SUM(O58:W58) -> 26046436 | AB58: =SUM(O58:Z58) -> 26046436
A59: 35 | B59: Amélioration des services | C59: Réseau de transport de Longueuil | D59: Amélioration des services | E59: Transports | F59: 1 | G59: 16-Montérégie | I59: TE-Terminé | J59: SU-Subvention | K59: 3450927 | L59: 2016-10-06 | M59: 2018-08-06 | N59: 6901854 | R59: 3450927 | AA59: =SUM(O59:W59) -> 3450927 | AB59: =SUM(O59:Z59) -> 3450927
A60: 36 | B60: Amélioration des services | C60: Conseil intermunicipal de transport de la Vallée du Richelieu | D60: Amélioration des services | E60: Transports | F60: 1 | G60: 16-Montérégie | I60: TE-Terminé | J60: SU-Subvention | K60: 847426 | L60: 2016-10-06 | M60: 2018-01-29 | N60: 1694852 | R60: 847426 | AA60: =SUM(O60:W60) -> 847426 | AB60: =SUM(O60:Z60) -> 847426
A61: 37 | B61: Amélioration des services | C61: Conseil intermunicipal de transport des Laurentides | D61: Amélioration des services | E61: Transports | F61: 1 | G61: 13-Laval | I61: TE-Terminé | J61: SU-Subvention | K61: 3037776 | L61: 2016-10-06 | M61: 2018-03-26 | N61: 6075552 | R61: 3037776 | AA61: =SUM(O61:W61) -> 3037776 | AB61: =SUM(O61:Z61) -> 3037776
A62: 38 | B62: Amélioration des services | C62: Ville de Granby | D62: Amélioration des services | E62: Transports | F62: 1 | G62: 16-Montérégie | I62: TE-Terminé | J62: SU-Subvention | K62: 328131 | L62: 2016-10-06 | M62: 2018-05-27 | N62: 656262 | R62: 328131 | AA62: =SUM(O62:W62) -> 328131 | AB62: =SUM(O62:Z62) -> 328131
A63: 39 | B63: Amélioration des services | C63: Ville de Sainte-Julie | D63: Amélioration des services | E63: Transports | F63: 1 | G63: 16-Montérégie | I63: TE-Terminé | J63: SU-Subvention | K63: 467036 | L63: 2016-10-06 | M63: 2018-09-04 | N63: 934072 | R63: 467036 | AA63: =SUM(O63:W63) -> 467036 | AB63: =SUM(O63:Z63) -> 467036
A64: 40 | B64: Amélioration des services | C64: Ville de Rimouski | D64: Amélioration des services | E64: Transports | F64: 1 | G64: 01-Bas-Saint-Laurent | I64: TE-Terminé | J64: SU-Subvention | K64: 162786 | L64: 2016-10-06 | M64: 2018-05-04 | N64: 325572 | R64: 162786 | T64: -29598 | AA64: =SUM(O64:W64) -> 133188 | AB64: =SUM(O64:Z64) -> 133188
A65: 41 | B65: Amélioration des services | C65: Société de transport de Laval | D65: Amélioration des services | E65: Transports | F65: 1 | G65: 13-Laval | I65: TE-Terminé | J65: SU-Subvention | K65: 5608734 | L65: 2016-10-06 | M65: 2017-09-20 | N65: 11217468 | R65: 5608734 | AA65: =SUM(O65:W65) -> 5608734 | AB65: =SUM(O65:Z65) -> 5608734
A66: 42 | B66: Amélioration des services | C66: Société de transport du Saguenay | D66: Amélioration des services | E66: Transports | F66: 1 | G66: 02-Saguenay- Lac-Saint-Jean | I66: TE-Terminé | J66: SU-Subvention | K66: 282737 | L66: 2016-10-06 | M66: 2019-08-25 | N66: 565474 | R66: 282737 | U66: -76737 | W66: -81531 | AA66: =SUM(O66:W66) -> 124469 | AB66: =SUM(O66:Z66) -> 124469
A67: 43 | B67: Amélioration des services | C67: Conseil intermunicipal de transport du Sud-Ouest | D67: Amélioration des services | E67: Transports | F67: 1 | G67: 16-Montérégie | I67: TE-Terminé | J67: SU-Subvention | K67: 1118302 | L67: 2016-10-06 | M67: 2017-06-14 | N67: 2236604 | R67: 1118302 | S67: -89656 | AA67: =SUM(O67:W67) -> 1028646 | AB67: =SUM(O67:Z67) -> 1028646
A68: 44 | B68: Amélioration des services | C68: Société de transport de Lévis | D68: Amélioration des services | E68: Transports | F68: 1 | G68: 12 Chaudières-Appalaches | I68: TE-Terminé | J68: SU-Subvention | K68: 1230309 | L68: 2016-10-06 | M68: 2017-06-28 | N68: 2460618 | R68: 1230309 | AA68: =SUM(O68:W68) -> 1230309 | AB68: =SUM(O68:Z68) -> 1230309
A69: 45 | B69: Amélioration des services | C69: Société de transport de Trois-Rivières | D69: Amélioration des services | E69: Transports | F69: 1 | G69: 04-Mauricie | I69: TE-Terminé | J69: SU-Subvention | K69: 457247 | L69: 2016-10-06 | M69: 2018-06-26 | N69: 914494 | R69: 457247 | T69: -84350 | AA69: =SUM(O69:W69) -> 372897 | AB69: =SUM(O69:Z69) -> 372897
A70: 46 | B70: Amélioration des services | C70: Réseau de transport de la Capitale | D70: Amélioration des services | E70: Transports | F70: 1 | G70: 03-Capitale-Nationale | I70: TE-Terminé | J70: SU-Subvention | K70: 6900823 | L70: 2016-10-06 | M70: 2017-07-19 | N70: 13801646 | R70: 6900823 | S70: -1122340 | AA70: =SUM(O70:W70) -> 5778483 | AB70: =SUM(O70:Z70) -> 5778483
A71: 47 | B71: Amélioration des services | C71: Agence métropolitaine de transport | D71: Amélioration des services | E71: Transports | F71: 1 | G71: 06-Montréal | I71: TE-Terminé | J71: SU-Subvention | K71: 5335345 | L71: 2016-10-06 | M71: 2017-12-21 | N71: 10670690 | R71: 5335345 | AA71: =SUM(O71:W71) -> 5335345 | AB71: =SUM(O71:Z71) -> 5335345
A72: 48 | B72: Amélioration des services | C72: Conseil intermunicipal de transport de Sorel-Varennes | D72: Amélioration des services | E72: Transports | F72: 1 | G72: 16-Montérégie | I72: TE-Terminé | J72: SU-Subvention | K72: 809490 | L72: 2016-10-06 | M72: 2018-01-29 | N72: 1618980 | R72: 809490 | AA72: =SUM(O72:W72) -> 809490 | AB72: =SUM(O72:Z72) -> 809490
A73: 49 | B73: Amélioration des services | C73: Société de transport de l'Outaouais | D73: Amélioration des services | E73: Transports | F73: 1 | G73: 07-outaouais | I73: TE-Terminé | J73: SU-Subvention | K73: 3767581 | L73: 2016-10-06 | M73: 2017-06-28 | N73: 7535162 | R73: 3767581 | AA73: =SUM(O73:W73) -> 3767581 | AB73: =SUM(O73:Z73) -> 3767581
A74: 50 | B74: Amélioration des services | C74: Conseil intermunicipal de transport de la Presqu'Île | D74: Amélioration des services | E74: Transports | F74: 1 | G74: 16-Montérégie | I74: TE-Terminé | J74: SU-Subvention | K74: 699828 | L74: 2016-10-06 | M74: 2017-06-28 | N74: 1399656 | R74: 699828 | AA74: =SUM(O74:W74) -> 699828 | AB74: =SUM(O74:Z74) -> 699828
A75: 51 | B75: Amélioration des services | C75: Conseil intermunicipal de transport le Richelain | D75: Amélioration des services | E75: Transports | F75: 1 | G75: 16-Montérégie | I75: TE-Terminé | J75: SU-Subvention | K75: 765604 | L75: 2016-10-06 | M75: 2018-03-26 | N75: 1531208 | R75: 765604 | AA75: =SUM(O75:W75) -> 765604 | AB75: =SUM(O75:Z75) -> 765604
A76: 52 | B76: Amélioration des services | C76: Conseil intermunicipal de transport de Roussillon | D76: Amélioration des services | E76: Transports | F76: 1 | G76: 16-Montérégie | I76: TE-Terminé | J76: SU-Subvention | K76: 712817 | L76: 2016-10-06 | M76: 2018-03-26 | N76: 1425634 | R76: 712817 | AA76: =SUM(O76:W76) -> 712817 | AB76: =SUM(O76:Z76) -> 712817
A77: 53 | B77: Amélioration des services | C77: Ville de Saint-Jean-sur-Richelieu | D77: Amélioration des services | E77: Transports | F77: 1 | G77: 16-Montérégie | I77: TE-Terminé | J77: SU-Subvention | K77: 329674 | L77: 2016-10-06 | M77: 2017-06-14 | N77: 659348 | R77: 329674 | AA77: =SUM(O77:W77) -> 329674 | AB77: =SUM(O77:Z77) -> 329674
A78: 54 | B78: Amélioration des services | C78: Société de transport de Sherbrooke | D78: Amélioration des services | E78: Transports | F78: 1 | G78: 05-Estrie | I78: TE-Terminé | J78: SU-Subvention | K78: 539345 | L78: 2016-10-06 | M78: 2017-06-20 | N78: 1078690 | R78: 539345 | AA78: =SUM(O78:W78) -> 539345 | AB78: =SUM(O78:Z78) -> 539345
A79: 55 | B79: Amélioration des services | C79: Conseil intermunicipal de transport du Haut St-Laurent | D79: Amélioration des services | E79: Transports | F79: 1 | G79: 16-Montérégie | I79: TE-Terminé | J79: SU-Subvention | K79: 34185 | L79: 2016-10-06 | M79: 2017-06-14 | N79: 68370 | R79: 34185 | AA79: =SUM(O79:W79) -> 34185 | AB79: =SUM(O79:Z79) -> 34185
A80: 56 | B80: Amélioration des services | C80: Ville de Baie-Comeau | D80: Amélioration des services | E80: Transports | F80: 1 | G80: 09-Côte-Nord | I80: TE-Terminé | J80: SU-Subvention | K80: 31114 | L80: 2016-10-06 | M80: 2017-07-19 | N80: 62228 | R80: 31114 | S80: -449 | AA80: =SUM(O80:W80) -> 30665 | AB80: =SUM(O80:Z80) -> 30665
A81: 57 | B81: Amélioration des services | C81: Ville de Drummondville | D81: Amélioration des services | E81: Transports | F81: 1 | G81: 17-Centre-du-Québec | I81: TE-Terminé | J81: SU-Subvention | K81: 124873 | L81: 2016-10-06 | M81: 2017-06-28 | N81: 249746 | R81: 124873 | AA81: =SUM(O81:W81) -> 124873 | AB81: =SUM(O81:Z81) -> 124873
A82: 58 | B82: Amélioration des services | C82: Ville de Salaberry-de-Valleyfield | D82: Amélioration des services | E82: Transports | F82: 1 | G82: 16-Montérégie | I82: TE-Terminé | J82: SU-Subvention | K82: 3371 | L82: 2016-10-06 | M82: 2017-04-22 | N82: 6742 | R82: 3371 | AA82: =SUM(O82:W82) -> 3371 | AB82: =SUM(O82:Z82) -> 3371
A83: 59 | B83: Amélioration des services | C83: Conseil régional de transport de Lanaudière | D83: Amélioration des services | E83: Transports | F83: 1 | G83: 13-Laval | I83: TE-Terminé | J83: SU-Subvention | K83: 4225947 | L83: 2016-10-06 | M83: 2018-05-14 | N83: 8451894 | R83: 4225947 | AA83: =SUM(O83:W83) -> 4225947 | AB83: =SUM(O83:Z83) -> 4225947
A84: 60 | B84: Amélioration des services | C84: Ville de Thetford Mines | D84: Amélioration des services | E84: Transports | F84: 1 | G84: 12 Chaudières-Appalaches | I84: AB-Abandonné | J84: SU-Subvention | K84: 437 | L84: 2016-10-06 | M84: 2017-10-20 | N84: 874 | R84: 437 | S84: -437 | AA84: =SUM(O84:W84) -> 0 | AB84: =SUM(O84:Z84) -> 0
A85: 61 | B85: Amélioration des services | C85: Ville de Saint-Georges | D85: Amélioration des services | E85: Transports | F85: 1 | G85: 12 Chaudières-Appalaches | I85: TE-Terminé | J85: SU-Subvention | K85: 6188 | L85: 2016-10-06 | M85: 2018-05-04 | N85: 12376 | R85: 6188 | T85: -619 | AA85: =SUM(O85:W85) -> 5569 | AB85: =SUM(O85:Z85) -> 5569
A86: 62 | B86: Amélioration des services | C86: Ville de Rouyn-Noranda | D86: Amélioration des services | E86: Transports | F86: 1 | G86: 08-Abitibi-Témiscamingue | I86: TE-Terminé | J86: SU-Subvention | K86: 51844 | L86: 2016-10-06 | M86: 2018-02-23 | N86: 103688 | R86: 51844 | AA86: =SUM(O86:W86) -> 51844 | AB86: =SUM(O86:Z86) -> 51844
A87: 63 | B87: Amélioration des services | C87: Ville de Val D'Or | D87: Amélioration des services | E87: Transports | F87: 1 | G87: 08-Abitibi-Témiscamingue | I87: TE-Terminé | J87: SU-Subvention | K87: 53342 | L87: 2016-10-06 | M87: 2017-07-19 | N87: 106684 | R87: 53342 | AA87: =SUM(O87:W87) -> 53342 | AB87: =SUM(O87:Z87) -> 53342
A88: 64 | B88: Amélioration des services | C88: Ville de Victoriaville | D88: Amélioration des services | E88: Transports | F88: 1 | G88: 17-Centre-du-Québec | I88: TE-Terminé | J88: SU-Subvention | K88: 84354 | L88: 2016-10-06 | M88: 2017-09-15 | N88: 168708 | R88: 84354 | AA88: =SUM(O88:W88) -> 84354 | AB88: =SUM(O88:Z88) -> 84354
A89: 65 | B89: Amélioration des services | C89: Conseil intermunicipal de transport Chambly-Richelieu-Carignan | D89: Amélioration des services | E89: Transports | F89: 1 | G89: 16-Montérégie | I89: TE-Terminé | J89: SU-Subvention | K89: 801777 | L89: 2016-03-22 | M89: 2016-05-06 | N89: 1603554 | Q89: 801777 | AA89: =SUM(O89:W89) -> 801777 | AB89: =SUM(O89:Z89) -> 801777
A90: 66 | B90: Amélioration des services | C90: Société de transport de Montréal | D90: Amélioration des services | E90: Transports | F90: 1 | G90: 06-Montréal | I90: TE-Terminé | J90: SU-Subvention | K90: 25032727 | L90: 2016-03-22 | M90: 2016-04-24 | N90: 50065454 | Q90: 25032727 | AA90: =SUM(O90:W90) -> 25032727 | AB90: =SUM(O90:Z90) -> 25032727
A91: 67 | B91: Amélioration des services | C91: Réseau de transport de Longueuil | D91: Amélioration des services | E91: Transports | F91: 1 | G91: 16-Montérégie | I91: TE-Terminé | J91: SU-Subvention | K91: 2823486 | L91: 2016-03-22 | M91: 2016-05-09 | N91: 5646972 | Q91: 2823486 | AA91: =SUM(O91:W91) -> 2823486 | AB91: =SUM(O91:Z91) -> 2823486
A92: 68 | B92: Amélioration des services | C92: Conseil intermunicipal de transport de la Vallée du Richelieu | D92: Amélioration des services | E92: Transports | F92: 1 | G92: 16-Montérégie | I92: TE-Terminé | J92: SU-Subvention | K92: 693348 | L92: 2016-03-22 | M92: 2016-05-10 | N92: 1386696 | Q92: 693348 | AA92: =SUM(O92:W92) -> 693348 | AB92: =SUM(O92:Z92) -> 693348
A93: 69 | B93: Amélioration des services | C93: Conseil intermunicipal de transport des Laurentides | D93: Amélioration des services | E93: Transports | F93: 1 | G93: 13-Laval | I93: TE-Terminé | J93: SU-Subvention | K93: 2485453 | L93: 2016-03-22 | M93: 2016-07-06 | N93: 4970906 | Q93: 2485453 | AA93: =SUM(O93:W93) -> 2485453 | AB93: =SUM(O93:Z93) -> 2485453
A94: 70 | B94: Amélioration des services | C94: Ville de Granby | D94: Amélioration des services | E94: Transports | F94: 1 | G94: 16-Montérégie | I94: TE-Terminé | J94: SU-Subvention | K94: 268472 | L94: 2016-03-22 | M94: 2016-05-31 | N94: 536944 | Q94: 268472 | AA94: =SUM(O94:W94) -> 268472 | AB94: =SUM(O94:Z94) -> 268472
A95: 71 | B95: Amélioration des services | C95: Ville de Sainte-Julie | D95: Amélioration des services | E95: Transports | F95: 1 | G95: 16-Montérégie | I95: TE-Terminé | J95: SU-Subvention | K95: 382121 | L95: 2016-03-22 | M95: 2017-02-01 | N95: 764242 | Q95: 383121 | R95: -1000 | AA95: =SUM(O95:W95) -> 382121 | AB95: =SUM(O95:Z95) -> 382121
A96: 72 | B96: Amélioration des services | C96: Ville de Rimouski | D96: Amélioration des services | E96: Transports | F96: 1 | G96: 01-Bas-Saint-Laurent | I96: TE-Terminé | J96: SU-Subvention | K96: 133188 | L96: 2016-03-22 | M96: 2016-04-29 | N96: 266376 | Q96: 133188 | AA96: =SUM(O96:W96) -> 133188 | AB96: =SUM(O96:Z96) -> 133188
A97: 73 | B97: Amélioration des services | C97: Société de transport de Laval | D97: Amélioration des services | E97: Transports | F97: 1 | G97: 13-Laval | I97: TE-Terminé | J97: SU-Subvention | K97: 4588965 | L97: 2016-03-22 | M97: 2016-07-06 | N97: 9177930 | Q97: 4588965 | AA97: =SUM(O97:W97) -> 4588965 | AB97: =SUM(O97:Z97) -> 4588965
A98: 74 | B98: Amélioration des services | C98: Société de transport du Saguenay | D98: Amélioration des services | E98: Transports | F98: 1 | G98: 02-Saguenay- Lac-Saint-Jean | I98: TE-Terminé | J98: SU-Subvention | K98: 345320 | L98: 2016-03-22 | M98: 2016-07-06 | N98: 690640 | Q98: 345320 | AA98: =SUM(O98:W98) -> 345320 | AB98: =SUM(O98:Z98) -> 345320
A99: 75 | B99: Amélioration des services | C99: Conseil intermunicipal de transport du Sud-Ouest | D99: Amélioration des services | E99: Transports | F99: 1 | G99: 16-Montérégie | I99: TE-Terminé | J99: SU-Subvention | K99: 976353 | L99: 2016-03-22 | M99: 2016-05-06 | N99: 1952706 | Q99: 976353 | AA99: =SUM(O99:W99) -> 976353 | AB99: =SUM(O99:Z99) -> 976353
A100: 76 | B100: Amélioration des services | C100: Société de transport de Lévis | D100: Amélioration des services | E100: Transports | F100: 1 | G100: 12 Chaudières-Appalaches | I100: TE-Terminé | J100: SU-Subvention | K100: 1006617 | L100: 2016-03-22 | M100: 2016-07-06 | N100: 2013234 | Q100: 1006617 | AA100: =SUM(O100:W100) -> 1006617 | AB100: =SUM(O100:Z100) -> 1006617
A101: 77 | B101: Amélioration des services | C101: Société de transport de Trois-Rivières | D101: Amélioration des services | E101: Transports | F101: 1 | G101: 04-Mauricie | I101: TE-Terminé | J101: SU-Subvention | K101: 386249 | L101: 2016-03-22 | M101: 2016-10-14 | N101: 772498 | Q101: 386249 | AA101: =SUM(O101:W101) -> 386249 | AB101: =SUM(O101:Z101) -> 386249
A102: 78 | B102: Amélioration des services | C102: Réseau de transport de la Capitale | D102: Amélioration des services | E102: Transports | F102: 1 | G102: 03-Capitale-Nationale | I102: TE-Terminé | J102: SU-Subvention | K102: 5646127 | L102: 2016-03-22 | M102: 2016-10-14 | N102: 11292254 | Q102: 5646127 | AA102: =SUM(O102:W102) -> 5646127 | AB102: =SUM(O102:Z102) -> 5646127
A103: 79 | B103: Amélioration des services | C103: Agence métropolitaine de transport | D103: Amélioration des services | E103: Transports | F103: 1 | G103: 06-Montréal | I103: TE-Terminé | J103: SU-Subvention | K103: 4365282 | L103: 2016-03-22 | M103: 2016-04-29 | N103: 8730564 | Q103: 4365282 | AA103: =SUM(O103:W103) -> 4365282 | AB103: =SUM(O103:Z103) -> 4365282
A104: 80 | B104: Amélioration des services | C104: Conseil intermunicipal de transport de Sorel-Varennes | D104: Amélioration des services | E104: Transports | F104: 1 | G104: 16-Montérégie | I104: TE-Terminé | J104: SU-Subvention | K104: 662311 | L104: 2016-03-22 | M104: 2016-05-09 | N104: 1324622 | Q104: 662311 | AA104: =SUM(O104:W104) -> 662311 | AB104: =SUM(O104:Z104) -> 662311
A105: 81 | B105: Amélioration des services | C105: Société de transport de l'Outaouais | D105: Amélioration des services | E105: Transports | F105: 1 | G105: 07-Outaouais | I105: TE-Terminé | J105: SU-Subvention | K105: 3082566 | L105: 2016-03-22 | M105: 2016-05-30 | N105: 6165132 | Q105: 3082566 | AA105: =SUM(O105:W105) -> 3082566 | AB105: =SUM(O105:Z105) -> 3082566
A106: 82 | B106: Amélioration des services | C106: Conseil intermunicipal de transport de la Presqu'Île | D106: Amélioration des services | E106: Transports | F106: 1 | G106: 16-Montérégie | I106: TE-Terminé | J106: SU-Subvention | K106: 572586 | L106: 2016-03-22 | M106: 2016-05-06 | N106: 1145172 | Q106: 572586 | AA106: =SUM(O106:W106) -> 572586 | AB106: =SUM(O106:Z106) -> 572586
A107: 83 | B107: Amélioration des services | C107: Conseil intermunicipal de transport le Richelain | D107: Amélioration des services | E107: Transports | F107: 1 | G107: 16-Montérégie | I107: TE-Terminé | J107: SU-Subvention | K107: 626404 | L107: 2016-03-22 | M107: 2016-05-06 | N107: 1252808 | Q107: 626404 | AA107: =SUM(O107:W107) -> 626404 | AB107: =SUM(O107:Z107) -> 626404
A108: 84 | B108: Amélioration des services | C108: Conseil intermunicipal de transport de Roussillon | D108: Amélioration des services | E108: Transports | F108: 1 | G108: 16-Montérégie | I108: TE-Terminé | J108: SU-Subvention | K108: 583214 | L108: 2016-03-22 | M108: 2016-05-06 | N108: 1166428 | Q108: 583214 | AA108: =SUM(O108:W108) -> 583214 | AB108: =SUM(O108:Z108) -> 583214
A109: 85 | B109: Amélioration des services | C109: Ville de Saint-Jean-sur-Richelieu | D109: Amélioration des services | E109: Transports | F109: 1 | G109: 16-Montérégie | I109: TE-Terminé | J109: SU-Subvention | K109: 269734 | L109: 2016-03-22 | M109: 2016-05-06 | N109: 539468 | Q109: 269734 | AA109: =SUM(O109:W109) -> 269734 | AB109: =SUM(O109:Z109) -> 269734
A110: 86 | B110: Amélioration des services | C110: Société de transport de Sherbrooke | D110: Amélioration des services | E110: Transports | F110: 1 | G110: 05-Estrie | I110: TE-Terminé | J110: SU-Subvention | K110: 441282 | L110: 2016-03-22 | M110: 2016-05-31 | N110: 882564 | Q110: 441282 | AA110: =SUM(O110:W110) -> 441282 | AB110: =SUM(O110:Z110) -> 441282
A111: 87 | B111: Amélioration des services | C111: Conseil intermunicipal de transport du Haut St-Laurent | D111: Amélioration des services | E111: Transports | F111: 1 | G111: 16-Montérégie | I111: TE-Terminé | J111: SU-Subvention | K111: 67202 | L111: 2016-03-22 | M111: 2016-05-06 | N111: 134404 | Q111: 67202 | AA111: =SUM(O111:W111) -> 67202 | AB111: =SUM(O111:Z111) -> 67202
A112: 88 | B112: Amélioration des services | C112: Ville de Baie-Comeau | D112: Amélioration des services | E112: Transports | F112: 1 | G112: 09-Côte-Nord | I112: TE-Terminé | J112: SU-Subvention | K112: 25609 | L112: 2016-03-22 | M112: 2016-07-06 | N112: 51218 | Q112: 25609 | AA112: =SUM(O112:W112) -> 25609 | AB112: =SUM(O112:Z112) -> 25609
A113: 89 | B113: Amélioration des services | C113: Ville de Drummondville | D113: Amélioration des services | E113: Transports | F113: 1 | G113: 17-Centre-du-Québec | I113: TE-Terminé | J113: SU-Subvention | K113: 102168 | L113: 2016-03-22 | M113: 2016-07-28 | N113: 204336 | Q113: 102168 | AA113: =SUM(O113:W113) -> 102168 | AB113: =SUM(O113:Z113) -> 102168
A114: 90 | B114: Amélioration des services | C114: Ville de Salaberry-de-Valleyfield | D114: Amélioration des services | E114: Transports | F114: 1 | G114: 16-Montérégie | I114: TE-Terminé | J114: SU-Subvention | K114: 2758 | L114: 2016-03-22 | M114: 2017-01-24 | N114: 5516 | Q114: 2758 | AA114: =SUM(O114:W114) -> 2758 | AB114: =SUM(O114:Z114) -> 2758
A115: 91 | B115: Amélioration des services | C115: Conseil intermunicipal de transport Chambly-Richelieu-Carignan | D115: Amélioration des services | E115: Transports | F115: 1 | G115: 16-Montérégie | I115: TE-Terminé | J115: SU-Subvention | K115: 1781726 | L115: 2015-09-03 | M115: 2016-10-09 | N115: 3563452 | Q115: 1781726 | AA115: =SUM(O115:W115) -> 1781726 | AB115: =SUM(O115:Z115) -> 1781726
A116: 92 | B116: Amélioration des services | C116: Société de transport de Montréal | D116: Amélioration des services | E116: Transports | F116: 1 | G116: 06-Montréal | I116: TE-Terminé | J116: SU-Subvention | K116: 55628282 | L116: 2015-09-03 | M116: 2017-10-16 | N116: 111256564 | Q116: 55628282 | R116: -6966373 | S116: -42954 | AA116: =SUM(O116:W116) -> 48618955 | AB116: =SUM(O116:Z116) -> 48618955
A117: 93 | B117: Amélioration des services | C117: Réseau de transport de Longueuil | D117: Amélioration des services | E117: Transports | F117: 1 | G117: 16-Montérégie | I117: TE-Terminé | J117: SU-Subvention | K117: 6274413 | L117: 2015-09-03 | M117: 2016-10-09 | N117: 12548826 | Q117: 6274413 | AA117: =SUM(O117:W117) -> 6274413 | AB117: =SUM(O117:Z117) -> 6274413
A118: 94 | B118: Amélioration des services | C118: Conseil intermunicipal de transport de la Vallée du Richelieu | D118: Amélioration des services | E118: Transports | F118: 1 | G118: 16-Montérégie | I118: TE-Terminé | J118: SU-Subvention | K118: 1540774 | L118: 2015-09-03 | M118: 2016-09-28 | N118: 3081548 | Q118: 1540774 | AA118: =SUM(O118:W118) -> 1540774 | AB118: =SUM(O118:Z118) -> 1540774
A119: 95 | B119: Amélioration des services | C119: Conseil intermunicipal de transport des Laurentides | D119: Amélioration des services | E119: Transports | F119: 1 | G119: 13-Laval | I119: TE-Terminé | J119: SU-Subvention | K119: 5523229 | L119: 2015-09-03 | M119: 2016-07-06 | N119: 11046458 | Q119: 5523229 | AA119: =SUM(O119:W119) -> 5523229 | AB119: =SUM(O119:Z119) -> 5523229
A120: 96 | B120: Amélioration des services | C120: Ville de Granby | D120: Amélioration des services | E120: Transports | F120: 1 | G120: 16-Montérégie | I120: TE-Terminé | J120: SU-Subvention | K120: 596603 | L120: 2015-09-03 | M120: 2017-03-09 | N120: 1193206 | Q120: 596603 | R120: -23724 | AA120: =SUM(O120:W120) -> 572879 | AB120: =SUM(O120:Z120) -> 572879
A121: 97 | B121: Amélioration des services | C121: Ville de Sainte-Julie | D121: Amélioration des services | E121: Transports | F121: 1 | G121: 16-Montérégie | I121: TE-Terminé | J121: SU-Subvention | K121: 849157 | L121: 2015-09-03 | M121: 2016-10-09 | N121: 1698314 | Q121: 849157 | AA121: =SUM(O121:W121) -> 849157 | AB121: =SUM(O121:Z121) -> 849157
A122: 98 | B122: Amélioration des services | C122: Ville de Rimouski | D122: Amélioration des services | E122: Transports | F122: 1 | G122: 01-Bas-Saint-Laurent | I122: TE-Terminé | J122: SU-Subvention | K122: 295974 | L122: 2015-09-03 | M122: 2016-11-21 | N122: 591948 | Q122: 295974 | R122: -13416 | AA122: =SUM(O122:W122) -> 282558 | AB122: =SUM(O122:Z122) -> 282558
A123: 99 | B123: Amélioration des services | C123: Conseil régional de transport de Lanaudière | D123: Amélioration des services | E123: Transports | F123: 1 | G123: 13-Laval | I123: TE-Terminé | J123: SU-Subvention | K123: 4225947 | L123: 2015-09-03 | M123: 2017-06-21 | N123: 8451894 | Q123: 4225947 | AA123: =SUM(O123:W123) -> 4225947 | AB123: =SUM(O123:Z123) -> 4225947
A124: 100 | B124: Amélioration des services | C124: Société de transport de Laval | D124: Amélioration des services | E124: Transports | F124: 1 | G124: 13-Laval | I124: TE-Terminé | J124: SU-Subvention | K124: 10197699 | L124: 2015-09-03 | M124: 2016-12-23 | N124: 20395398 | Q124: 10197699 | R124: -122988 | AA124: =SUM(O124:W124) -> 10074711 | AB124: =SUM(O124:Z124) -> 10074711
A125: 101 | B125: Amélioration des services | C125: Société de transport du Saguenay | D125: Amélioration des services | E125: Transports | F125: 1 | G125: 02-Saguenay- Lac-Saint-Jean | I125: TE-Terminé | J125: SU-Subvention | K125: 767377 | L125: 2015-09-03 | M125: 2019-08-25 | N125: 1534754 | Q125: 767377 | U125: -282737 | W125: -4245 | AA125: =SUM(O125:W125) -> 480395 | AB125: =SUM(O125:Z125) -> 480395
A126: 102 | B126: Amélioration des services | C126: Conseil intermunicipal de transport du Sud-Ouest | D126: Amélioration des services | E126: Transports | F126: 1 | G126: 16-Montérégie | I126: TE-Terminé | J126: SU-Subvention | K126: 2169673 | L126: 2015-09-03 | M126: 2016-05-31 | N126: 4339346 | Q126: 2169673 | R126: -280857 | AA126: =SUM(O126:W126) -> 1888816 | AB126: =SUM(O126:Z126) -> 1888816
A127: 103 | B127: Amélioration des services | C127: Société de transport de Lévis | D127: Amélioration des services | E127: Transports | F127: 1 | G127: 12 Chaudières-Appalaches | I127: TE-Terminé | J127: SU-Subvention | K127: 2236926 | L127: 2015-09-03 | M127: 2016-05-09 | N127: 4473852 | Q127: 2236926 | AA127: =SUM(O127:W127) -> 2236926 | AB127: =SUM(O127:Z127) -> 2236926
A128: 104 | B128: Amélioration des services | C128: Société de transport de Trois-Rivières | D128: Amélioration des services | E128: Transports | F128: 1 | G128: 04-Mauricie | I128: TE-Terminé | J128: SU-Subvention | K128: 858332 | L128: 2015-09-03 | M128: 2017-01-22 | N128: 1716664 | Q128: 858332 | R128: -149480 | AA128: =SUM(O128:W128) -> 708852 | AB128: =SUM(O128:Z128) -> 708852
A129: 105 | B129: Amélioration des services | C129: Réseau de transport de la Capitale | D129: Amélioration des services | E129: Transports | F129: 1 | G129: 03-Capitale-Nationale | I129: TE-Terminé | J129: SU-Subvention | K129: 12546950 | L129: 2015-09-03 | M129: 2017-01-10 | N129: 25093900 | Q129: 12546950 | R129: -1277335 | AA129: =SUM(O129:W129) -> 11269615 | AB129: =SUM(O129:Z129) -> 11269615
A130: 106 | B130: Amélioration des services | C130: Agence métropolitaine de transport | D130: Amélioration des services | E130: Transports | F130: 1 | G130: 06-Montréal | I130: TE-Terminé | J130: SU-Subvention | K130: 9700627 | L130: 2015-09-03 | M130: 2016-07-28 | N130: 19401254 | Q130: 9700627 | AA130: =SUM(O130:W130) -> 9700627 | AB130: =SUM(O130:Z130) -> 9700627
A131: 107 | B131: Amélioration des services | C131: Conseil intermunicipal de transport de Sorel-Varennes | D131: Amélioration des services | E131: Transports | F131: 1 | G131: 16-Montérégie | I131: TE-Terminé | J131: SU-Subvention | K131: 1471801 | L131: 2015-09-03 | M131: 2016-10-09 | N131: 2943602 | Q131: 1471801 | AA131: =SUM(O131:W131) -> 1471801 | AB131: =SUM(O131:Z131) -> 1471801
A132: 108 | B132: Amélioration des services | C132: Société de transport de l'Outaouais | D132: Amélioration des services | E132: Transports | F132: 1 | G132: 07-outaouais | I132: TE-Terminé | J132: SU-Subvention | K132: 6850147 | L132: 2015-09-03 | M132: 2016-06-23 | N132: 13700294 | Q132: 6850147 | AA132: =SUM(O132:W132) -> 6850147 | AB132: =SUM(O132:Z132) -> 6850147
A133: 109 | B133: Amélioration des services | C133: Conseil intermunicipal de transport de la Presqu'Île | D133: Amélioration des services | E133: Transports | F133: 1 | G133: 16-Montérégie | I133: TE-Terminé | J133: SU-Subvention | K133: 1272414 | L133: 2015-09-03 | M133: 2016-10-09 | N133: 2544828 | Q133: 1272414 | AA133: =SUM(O133:W133) -> 1272414 | AB133: =SUM(O133:Z133) -> 1272414
A134: 110 | B134: Amélioration des services | C134: Conseil intermunicipal de transport le Richelain | D134: Amélioration des services | E134: Transports | F134: 1 | G134: 16-Montérégie | I134: TE-Terminé | J134: SU-Subvention | K134: 1392008 | L134: 2015-09-03 | M134: 2016-07-28 | N134: 2784016 | Q134: 1392008 | AA134: =SUM(O134:W134) -> 1392008 | AB134: =SUM(O134:Z134) -> 1392008
A135: 111 | B135: Amélioration des services | C135: Conseil intermunicipal de transport de Roussillon | D135: Amélioration des services | E135: Transports | F135: 1 | G135: 16-Montérégie | I135: TE-Terminé | J135: SU-Subvention | K135: 1296031 | L135: 2015-09-03 | M135: 2016-07-29 | N135: 2592062 | Q135: 1296031 | R135: -30383 | AA135: =SUM(O135:W135) -> 1265648 | AB135: =SUM(O135:Z135) -> 1265648
A136: 112 | B136: Amélioration des services | C136: Ville de Saint-Jean-sur-Richelieu | D136: Amélioration des services | E136: Transports | F136: 1 | G136: 16-Montérégie | I136: TE-Terminé | J136: SU-Subvention | K136: 599408 | L136: 2015-09-03 | M136: 2016-10-09 | N136: 1198816 | Q136: 599408 | AA136: =SUM(O136:W136) -> 599408 | AB136: =SUM(O136:Z136) -> 599408
A137: 113 | B137: Amélioration des services | C137: Société de transport de Sherbrooke | D137: Amélioration des services | E137: Transports | F137: 1 | G137: 05-Estrie | I137: TE-Terminé | J137: SU-Subvention | K137: 980627 | L137: 2015-09-03 | M137: 2017-01-23 | N137: 1961254 | Q137: 980627 | AA137: =SUM(O137:W137) -> 980627 | AB137: =SUM(O137:Z137) -> 980627
A138: 114 | B138: Amélioration des services | C138: Ville de Victoriaville | D138: Amélioration des services | E138: Transports | F138: 1 | G138: 17-Centre-du-Québec | I138: TE-Terminé | J138: SU-Subvention | K138: 84354 | L138: 2015-09-03 | M138: 2017-09-15 | N138: 168708 | Q138: 84354 | S138: -5047 | AA138: =SUM(O138:W138) -> 79307 | AB138: =SUM(O138:Z138) -> 79307
A139: 115 | B139: Amélioration des services | C139: Conseil intermunicipal de transport du Haut St-Laurent | D139: Amélioration des services | E139: Transports | F139: 1 | G139: 16-Montérégie | I139: TE-Terminé | J139: SU-Subvention | K139: 149337 | L139: 2015-09-03 | M139: 2016-06-28 | N139: 298674 | Q139: 149337 | R139: -56316 | AA139: =SUM(O139:W139) -> 93021 | AB139: =SUM(O139:Z139) -> 93021
A140: 116 | B140: Amélioration des services | C140: Ville de Baie-Comeau | D140: Amélioration des services | E140: Transports | F140: 1 | G140: 09-Côte-Nord | I140: TE-Terminé | J140: SU-Subvention | K140: 56910 | L140: 2015-09-03 | M140: 2017-06-14 | N140: 113820 | Q140: 56910 | AA140: =SUM(O140:W140) -> 56910 | AB140: =SUM(O140:Z140) -> 56910
A141: 117 | B141: Amélioration des services | C141: Ville de Drummondville | D141: Amélioration des services | E141: Transports | F141: 1 | G141: 17-Centre-du-Québec | I141: TE-Terminé | J141: SU-Subvention | K141: 227041 | L141: 2015-09-03 | M141: 2017-04-25 | N141: 454082 | Q141: 227041 | S141: -11211 | AA141: =SUM(O141:W141) -> 215830 | AB141: =SUM(O141:Z141) -> 215830
A142: 118 | B142: Amélioration des services | C142: Ville de Rouyn-Noranda | D142: Amélioration des services | E142: Transports | F142: 1 | G142: 08-Abitibi-Témiscamingue | I142: TE-Terminé | J142: SU-Subvention | K142: 51844 | L142: 2015-09-03 | M142: 2018-02-24 | N142: 103688 | Q142: 51844 | AA142: =SUM(O142:W142) -> 51844 | AB142: =SUM(O142:Z142) -> 51844
A143: 119 | B143: Amélioration des services | C143: Ville de Salaberry-de-Valleyfield | D143: Amélioration des services | E143: Transports | F143: 1 | G143: 16-Montérégie | I143: AB-Abandonné | J143: SU-Subvention | K143: 6129 | L143: 2015-09-03 | M143: 2016-10-13 | N143: 12258 | Q143: 6129 | R143: -6129 | AA143: =SUM(O143:W143) -> 0 | AB143: =SUM(O143:Z143) -> 0
A144: 120 | B144: Amélioration des services | C144: Ville de Val D'Or | D144: Amélioration des services | E144: Transports | F144: 1 | G144: 08-Abitibi-Témiscamingue | I144: TE-Terminé | J144: SU-Subvention | K144: 61694 | L144: 2015-09-03 | M144: 2017-07-19 | N144: 123388 | Q144: 61694 | S144: -7669 | AA144: =SUM(O144:W144) -> 54025 | AB144: =SUM(O144:Z144) -> 54025
A145: 121 | B145: Amélioration des services | C145: Conseil intermunicipal de transport Chambly-Richelieu-Carignan | D145: Amélioration des services | E145: Transports | F145: 1 | G145: 16-Montérégie | I145: TE-Terminé | J145: SU-Subvention | K145: 1691567 | L145: 2014-12-01 | M145: 2015-09-14 | N145: 3383134 | P145: 1691567 | AA145: =SUM(O145:W145) -> 1691567 | AB145: =SUM(O145:Z145) -> 1691567
A146: 122 | B146: Amélioration des services | C146: Société de transport de Montréal | D146: Amélioration des services | E146: Transports | F146: 1 | G146: 06-Montréal | I146: TE-Terminé | J146: SU-Subvention | K146: 61359142 | L146: 2014-12-01 | M146: 2015-10-04 | N146: 122718284 | P146: 61359142 | Q146: -10350112 | S146: -21816 | AA146: =SUM(O146:W146) -> 50987214 | AB146: =SUM(O146:Z146) -> 50987214
A147: 123 | B147: Amélioration des services | C147: Réseau de transport de Longueuil | D147: Amélioration des services | E147: Transports | F147: 1 | G147: 16-Montérégie | I147: TE-Terminé | J147: SU-Subvention | K147: 6062206 | L147: 2014-12-01 | M147: 2015-07-30 | N147: 12124412 | P147: 6062206 | AA147: =SUM(O147:W147) -> 6062206 | AB147: =SUM(O147:Z147) -> 6062206
A148: 124 | B148: Amélioration des services | C148: Conseil intermunicipal de transport de la Vallée du Richelieu | D148: Amélioration des services | E148: Transports | F148: 1 | G148: 16-Montérégie | I148: TE-Terminé | J148: SU-Subvention | K148: 1534135 | L148: 2014-12-01 | M148: 2015-10-15 | N148: 3068270 | P148: 1534135 | AA148: =SUM(O148:W148) -> 1534135 | AB148: =SUM(O148:Z148) -> 1534135
A149: 125 | B149: Amélioration des services | C149: Conseil intermunicipal de transport des Laurentides | D149: Amélioration des services | E149: Transports | F149: 1 | G149: 13-Laval | I149: TE-Terminé | J149: SU-Subvention | K149: 5523229 | L149: 2014-12-01 | M149: 2015-06-10 | N149: 11046458 | P149: 5523229 | AA149: =SUM(O149:W149) -> 5523229 | AB149: =SUM(O149:Z149) -> 5523229
A150: 126 | B150: Amélioration des services | C150: Ville de Granby | D150: Amélioration des services | E150: Transports | F150: 1 | G150: 16-Montérégie | I150: TE-Terminé | J150: SU-Subvention | K150: 708563 | L150: 2014-12-01 | M150: 2015-11-30 | N150: 1417126 | P150: 708563 | Q150: -106259 | AA150: =SUM(O150:W150) -> 602304 | AB150: =SUM(O150:Z150) -> 602304
A151: 127 | B151: Amélioration des services | C151: Ville de Sainte-Julie | D151: Amélioration des services | E151: Transports | F151: 1 | G151: 16-Montérégie | I151: TE-Terminé | J151: SU-Subvention | K151: 776048 | L151: 2014-12-01 | M151: 2015-10-15 | N151: 1552096 | P151: 776048 | AA151: =SUM(O151:W151) -> 776048 | AB151: =SUM(O151:Z151) -> 776048
A152: 128 | B152: Amélioration des services | C152: Ville de Rimouski | D152: Amélioration des services | E152: Transports | F152: 1 | G152: 01-Bas-Saint-Laurent | I152: TE-Terminé | J152: SU-Subvention | K152: 182959 | L152: 2014-12-01 | M152: 2015-10-09 | N152: 365918 | P152: 182959 | AA152: =SUM(O152:W152) -> 182959 | AB152: =SUM(O152:Z152) -> 182959
A153: 129 | B153: Amélioration des services | C153: Conseil régional de transport de Lanaudière | D153: Amélioration des services | E153: Transports | F153: 1 | G153: 13-Laval | I153: TE-Terminé | J153: SU-Subvention | K153: 3629287 | L153: 2014-12-01 | M153: 2016-07-29 | N153: 7258574 | P153: 3629287 | AA153: =SUM(O153:W153) -> 3629287 | AB153: =SUM(O153:Z153) -> 3629287
A154: 130 | B154: Amélioration des services | C154: Société de transport de Laval | D154: Amélioration des services | E154: Transports | F154: 1 | G154: 13-Laval | I154: TE-Terminé | J154: SU-Subvention | K154: 10197699 | L154: 2014-12-01 | M154: 2015-10-02 | N154: 20395398 | P154: 10197699 | Q154: -510175 | AA154: =SUM(O154:W154) -> 9687524 | AB154: =SUM(O154:Z154) -> 9687524
A155: 131 | B155: Amélioration des services | C155: Société de transport du Saguenay | D155: Amélioration des services | E155: Transports | F155: 1 | G155: 02-Saguenay- Lac-Saint-Jean | I155: TE-Terminé | J155: SU-Subvention | K155: 1148242 | L155: 2014-12-01 | M155: 2015-12-04 | N155: 2296484 | P155: 1148242 | Q155: -512152 | AA155: =SUM(O155:W155) -> 636090 | AB155: =SUM(O155:Z155) -> 636090
A156: 132 | B156: Amélioration des services | C156: Conseil intermunicipal de transport du Sud-Ouest | D156: Amélioration des services | E156: Transports | F156: 1 | G156: 16-Montérégie | I156: TE-Terminé | J156: SU-Subvention | K156: 3266496 | L156: 2014-12-01 | M156: 2015-07-09 | N156: 6532992 | P156: 3266496 | Q156: -1480320 | AA156: =SUM(O156:W156) -> 1786176 | AB156: =SUM(O156:Z156) -> 1786176
A157: 133 | B157: Amélioration des services | C157: Société de transport de Lévis | D157: Amélioration des services | E157: Transports | F157: 1 | G157: 12 Chaudières-Appalaches | I157: TE-Terminé | J157: SU-Subvention | K157: 2656640 | L157: 2014-12-01 | M157: 2015-07-30 | N157: 5313280 | P157: 2656640 | Q157: -439976 | AA157: =SUM(O157:W157) -> 2216664 | AB157: =SUM(O157:Z157) -> 2216664
A158: 134 | B158: Amélioration des services | C158: Société de transport de Trois-Rivières | D158: Amélioration des services | E158: Transports | F158: 1 | G158: 04-Mauricie | I158: TE-Terminé | J158: SU-Subvention | K158: 1321734 | L158: 2014-12-01 | M158: 2015-12-15 | N158: 2643468 | P158: 1321734 | Q158: -562281 | AA158: =SUM(O158:W158) -> 759453 | AB158: =SUM(O158:Z158) -> 759453
A159: 135 | B159: Amélioration des services | C159: Réseau de transport de la Capitale | D159: Amélioration des services | E159: Transports | F159: 1 | G159: 03-Capitale-Nationale | I159: TE-Terminé | J159: SU-Subvention | K159: 12958189 | L159: 2014-12-01 | M159: 2015-12-21 | N159: 25916378 | P159: 12958189 | Q159: -749898 | AA159: =SUM(O159:W159) -> 12208291 | AB159: =SUM(O159:Z159) -> 12208291
A160: 136 | B160: Amélioration des services | C160: Agence métropolitaine de transport | D160: Amélioration des services | E160: Transports | F160: 1 | G160: 06-Montréal | I160: TE-Terminé | J160: SU-Subvention | K160: 8000000 | L160: 2014-12-01 | M160: 2015-09-14 | N160: 16000000 | P160: 8000000 | AA160: =SUM(O160:W160) -> 8000000 | AB160: =SUM(O160:Z160) -> 8000000
A161: 137 | B161: Amélioration des services | C161: Conseil intermunicipal de transport de Sorel-Varennes | D161: Amélioration des services | E161: Transports | F161: 1 | G161: 16-Montérégie | I161: TE-Terminé | J161: SU-Subvention | K161: 1427203 | L161: 2014-12-01 | M161: 2015-07-30 | N161: 2854406 | P161: 1427203 | AA161: =SUM(O161:W161) -> 1427203 | AB161: =SUM(O161:Z161) -> 1427203
A162: 138 | B162: Amélioration des services | C162: Société de transport de l'Outaouais | D162: Amélioration des services | E162: Transports | F162: 1 | G162: 07-outaouais | I162: TE-Terminé | J162: SU-Subvention | K162: 5756949 | L162: 2014-12-01 | M162: 2015-05-27 | N162: 11513898 | P162: 5756949 | AA162: =SUM(O162:W162) -> 5756949 | AB162: =SUM(O162:Z162) -> 5756949
A163: 139 | B163: Amélioration des services | C163: Conseil intermunicipal de transport de la Presqu'Île | D163: Amélioration des services | E163: Transports | F163: 1 | G163: 16-Montérégie | I163: TE-Terminé | J163: SU-Subvention | K163: 1255654 | L163: 2014-12-01 | M163: 2015-11-18 | N163: 2511308 | P163: 1255654 | Q163: -63476 | AA163: =SUM(O163:W163) -> 1192178 | AB163: =SUM(O163:Z163) -> 1192178
A164: 140 | B164: Amélioration des services | C164: Conseil intermunicipal de transport le Richelain | D164: Amélioration des services | E164: Transports | F164: 1 | G164: 16-Montérégie | I164: TE-Terminé | J164: SU-Subvention | K164: 1351184 | L164: 2014-12-01 | M164: 2015-07-30 | N164: 2702368 | P164: 1351184 | AA164: =SUM(O164:W164) -> 1351184 | AB164: =SUM(O164:Z164) -> 1351184
A165: 141 | B165: Amélioration des services | C165: Conseil intermunicipal de transport de Roussillon | D165: Amélioration des services | E165: Transports | F165: 1 | G165: 16-Montérégie | I165: TE-Terminé | J165: SU-Subvention | K165: 1296031 | L165: 2014-12-01 | M165: 2015-07-16 | N165: 2592062 | P165: 1296031 | Q165: -137704 | AA165: =SUM(O165:W165) -> 1158327 | AB165: =SUM(O165:Z165) -> 1158327
A166: 142 | B166: Amélioration des services | C166: Ville de Saint-Jean-sur-Richelieu | D166: Amélioration des services | E166: Transports | F166: 1 | G166: 16-Montérégie | I166: TE-Terminé | J166: SU-Subvention | K166: 599408 | L166: 2014-12-01 | M166: 2015-10-22 | N166: 1198816 | P166: 599408 | Q166: -88189 | AA166: =SUM(O166:W166) -> 511219 | AB166: =SUM(O166:Z166) -> 511219
A167: 143 | B167: Amélioration des services | C167: Société de transport de Sherbrooke | D167: Amélioration des services | E167: Transports | F167: 1 | G167: 05-Estrie | I167: TE-Terminé | J167: SU-Subvention | K167: 1286825 | L167: 2014-12-01 | M167: 2015-10-14 | N167: 2573650 | P167: 1286825 | Q167: -306236 | AA167: =SUM(O167:W167) -> 980589 | AB167: =SUM(O167:Z167) -> 980589
A168: 144 | B168: Amélioration des services | C168: Ville de Victoriaville | D168: Amélioration des services | E168: Transports | F168: 1 | G168: 17-Centre-du-Québec | I168: TE-Terminé | J168: SU-Subvention | K168: 29314 | L168: 2014-12-01 | M168: 2016-04-13 | N168: 58628 | P168: 29314 | AA168: =SUM(O168:W168) -> 29314 | AB168: =SUM(O168:Z168) -> 29314
A169: 145 | B169: Amélioration des services | C169: Conseil intermunicipal de transport du Haut St-Laurent | D169: Amélioration des services | E169: Transports | F169: 1 | G169: 16-Montérégie | I169: TE-Terminé | J169: SU-Subvention | K169: 315683 | L169: 2014-12-01 | M169: 2015-12-24 | N169: 631366 | P169: 315683 | Q169: -213488 | AA169: =SUM(O169:W169) -> 102195 | AB169: =SUM(O169:Z169) -> 102195
A170: 146 | B170: Amélioration des services | C170: Ville de Baie-Comeau | D170: Amélioration des services | E170: Transports | F170: 1 | G170: 09-Côte-Nord | I170: TE-Terminé | J170: SU-Subvention | K170: 49880 | L170: 2014-12-01 | M170: 2016-01-23 | N170: 99760 | P170: 49880 | Q170: -200 | AA170: =SUM(O170:W170) -> 49680 | AB170: =SUM(O170:Z170) -> 49680
A171: 147 | B171: Amélioration des services | C171: Ville de Drummondville | D171: Amélioration des services | E171: Transports | F171: 1 | G171: 17-Centre-du-Québec | I171: TE-Terminé | J171: SU-Subvention | K171: 395412 | L171: 2014-12-01 | M171: 2016-03-08 | N171: 790824 | P171: 395412 | Q171: -272937 | AA171: =SUM(O171:W171) -> 122475 | AB171: =SUM(O171:Z171) -> 122475
A172: 148 | B172: Amélioration des services | C172: Ville de Rouyn-Noranda | D172: Amélioration des services | E172: Transports | F172: 1 | G172: 08-Abitibi-Témiscamingue | I172: TE-Terminé | J172: SU-Subvention | K172: 51797 | L172: 2014-12-01 | M172: 2015-10-09 | N172: 103594 | P172: 51797 | Q172: -588 | AA172: =SUM(O172:W172) -> 51209 | AB172: =SUM(O172:Z172) -> 51209
A173: 149 | B173: Amélioration des services | C173: Ville de Salaberry-de-Valleyfield | D173: Amélioration des services | E173: Transports | F173: 1 | G173: 16-Montérégie | I173: AB-Abandonné | J173: SU-Subvention | K173: 22864 | L173: 2014-12-01 | M173: 2015-08-27 | N173: 45728 | P173: 22864 | Q173: -22864 | AA173: =SUM(O173:W173) -> 0 | AB173: =SUM(O173:Z173) -> 0
A174: 150 | B174: Amélioration des services | C174: Ville de Sept-Iles | D174: Amélioration des services | E174: Transports | F174: 1 | G174: 09-Côte-Nord | I174: AB-Abandonné | J174: SU-Subvention | K174: 6405 | L174: 2014-12-01 | M174: 2016-02-22 | N174: 12810 | P174: 6405 | Q174: -6405 | AA174: =SUM(O174:W174) -> 0 | AB174: =SUM(O174:Z174) -> 0
A175: 151 | B175: Amélioration des services | C175: Ville de Val D'Or | D175: Amélioration des services | E175: Transports | F175: 1 | G175: 08-Abitibi-Témiscamingue | I175: TE-Terminé | J175: SU-Subvention | K175: 54438 | L175: 2014-12-01 | M175: 2016-03-10 | N175: 108876 | P175: 54438 | AA175: =SUM(O175:W175) -> 54438 | AB175: =SUM(O175:Z175) -> 54438
A176: 152 | B176: Amélioration des services | C176: Réseau de transport de la Capitale | D176: Maintien,développement,optimisation | E176: Transports | F176: 1 | G176: 03-Capitale-Nationale | I176: TE-Terminé | J176: SU-Subvention | K176: 11560973 | L176: 2019-02-07 | M176: 2019-03-06 | N176: 23121946 | T176: 11560973 | AA176: =SUM(O176:W176) -> 11560973 | AB176: =SUM(O176:Z176) -> 11560973
A177: 153 | B177: Amélioration des services | C177: Société de transport de Lévis | D177: Maintien,développement,optimisation | E177: Transports | F177: 1 | G177: 12 Chaudières-Appalaches | I177: TE-Terminé | J177: SU-Subvention | K177: 2367274 | L177: 2019-02-07 | M177: 2019-03-06 | N177: 4734548 | T177: 2367274 | AA177: =SUM(O177:W177) -> 2367274 | AB177: =SUM(O177:Z177) -> 2367274
A178: 154 | B178: Amélioration des services | C178: Société de transport de l'Outaouais | D178: Maintien,développement,optimisation | E178: Transports | F178: 1 | G178: 07-Outaouais | I178: TE-Terminé | J178: SU-Subvention | K178: 9070723 | L178: 2019-02-07 | M178: 2019-03-06 | N178: 18141446 | T178: 9070723 | AA178: =SUM(O178:W178) -> 9070723 | AB178: =SUM(O178:Z178) -> 9070723
A179: 155 | B179: Amélioration des services | C179: Société de transport de Sherbrooke | D179: Maintien,développement,optimisation | E179: Transports | F179: 1 | G179: 05-Estrie | I179: TE-Terminé | J179: SU-Subvention | K179: 1134591 | L179: 2019-02-07 | M179: 2019-03-06 | N179: 2269182 | T179: 1134591 | AA179: =SUM(O179:W179) -> 1134591 | AB179: =SUM(O179:Z179) -> 1134591
A180: 156 | B180: Amélioration des services | C180: Agence métropolitaine de transport | D180: Maintien,développement,optimisation | E180: Transports | F180: 1 | G180: 06-Montréal | I180: TE-Terminé | J180: SU-Subvention | K180: 101775306 | L180: 2019-02-07 | M180: 2019-03-06 | N180: 203550612 | T180: 101775306 | AA180: =SUM(O180:W180) -> 101775306 | AB180: =SUM(O180:Z180) -> 101775306
A181: 157 | B181: Amélioration des services | C181: Ville de Baie-Comeau | D181: Maintien,développement,optimisation | E181: Transports | F181: 1 | G181: 09-Côte-Nord | I181: TE-Terminé | J181: SU-Subvention | K181: 75489 | L181: 2019-02-07 | M181: 2019-12-12 | N181: 150978 | T181: 75489 | AA181: =SUM(O181:W181) -> 75489 | AB181: =SUM(O181:Z181) -> 75489
A182: 158 | B182: Amélioration des services | C182: Ville de Drummondville | D182: Maintien,développement,optimisation | E182: Transports | F182: 1 | G182: 17-Centre-du-Québec | I182: TE-Terminé | J182: SU-Subvention | K182: 304285 | L182: 2019-02-07 | M182: 2019-03-06 | N182: 608570 | T182: 304285 | AA182: =SUM(O182:W182) -> 304285 | AB182: =SUM(O182:Z182) -> 304285
A183: 159 | B183: Amélioration des services | C183: Ville de Salaberry-de-Valleyfield | D183: Maintien,développement,optimisation | E183: Transports | F183: 1 | G183: 16-Montérégie | I183: TE-Terminé | J183: SU-Subvention | K183: 44267 | L183: 2019-02-07 | M183: 2019-03-06 | N183: 88534 | T183: 44267 | AA183: =SUM(O183:W183) -> 44267 | AB183: =SUM(O183:Z183) -> 44267
A184: 160 | B184: Amélioration des services | C184: Ville de Val D'Or | D184: Maintien,développement,optimisation | E184: Transports | F184: 1 | G184: 08-Abitibi-Témiscamingue | I184: TE-Terminé | J184: SU-Subvention | K184: 79051 | L184: 2019-02-07 | M184: 2019-03-06 | N184: 158102 | T184: 79051 | AA184: =SUM(O184:W184) -> 79051 | AB184: =SUM(O184:Z184) -> 79051
A185: 161 | B185: Amélioration des services | C185: Ville de Granby | D185: Maintien,développement,optimisation | E185: Transports | F185: 1 | G185: 16-Montérégie | I185: TE-Terminé | J185: SU-Subvention | K185: 613775 | L185: 2019-02-07 | M185: 2019-03-06 | N185: 1227550 | T185: 613775 | AA185: =SUM(O185:W185) -> 613775 | AB185: =SUM(O185:Z185) -> 613775
A186: 162 | B186: Amélioration des services | C186: Ville de Rouyn-Noranda | D186: Maintien,développement,optimisation | E186: Transports | F186: 1 | G186: 08-Abitibi-Témiscamingue | I186: TE-Terminé | J186: SU-Subvention | K186: 47150 | L186: 2019-02-07 | M186: 2019-03-06 | N186: 94300 | T186: 47150 | AA186: =SUM(O186:W186) -> 47150 | AB186: =SUM(O186:Z186) -> 47150
A187: 163 | B187: Amélioration des services | C187: Ville de Rimouski | D187: Maintien,développement,optimisation | E187: Transports | F187: 1 | G187: 01-Bas-Saint-Laurent | I187: TE-Terminé | J187: SU-Subvention | K187: 304237 | L187: 2019-02-07 | M187: 2019-03-06 | N187: 608474 | T187: 304237 | AA187: =SUM(O187:W187) -> 304237 | AB187: =SUM(O187:Z187) -> 304237
A188: 164 | B188: Amélioration des services | C188: Ville de Victoriaville | D188: Maintien,développement,optimisation | E188: Transports | F188: 1 | G188: 17-Centre-du-Québec | I188: TE-Terminé | J188: SU-Subvention | K188: 249252 | L188: 2019-02-07 | M188: 2019-03-06 | N188: 498504 | T188: 249252 | AA188: =SUM(O188:W188) -> 249252 | AB188: =SUM(O188:Z188) -> 249252
A189: 165 | B189: Amélioration des services | C189: Société de transport du Saguenay | D189: Maintien,développement,optimisation | E189: Transports | F189: 1 | G189: 02-Saguenay- Lac-Saint-Jean | I189: TE-Terminé | J189: SU-Subvention | K189: 585592 | L189: 2019-02-07 | M189: 2019-03-18 | N189: 1171184 | T189: 585592 | AA189: =SUM(O189:W189) -> 585592 | AB189: =SUM(O189:Z189) -> 585592
A190: 166 | B190: Amélioration des services | C190: Ville de Saint-Georges | D190: Maintien,développement,optimisation | E190: Transports | F190: 1 | G190: 12-Chaudières-Appalaches | I190: TE-Terminé | J190: SU-Subvention | K190: 33908 | L190: 2019-02-07 | M190: 2019-03-06 | N190: 67816 | T190: 33908 | AA190: =SUM(O190:W190) -> 33908 | AB190: =SUM(O190:Z190) -> 33908
A191: 167 | B191: Amélioration des services | C191: Ville de Saint-Jean-sur-Richelieu | D191: Maintien,développement,optimisation | E191: Transports | F191: 1 | G191: 16-Montérégie | I191: TE-Terminé | J191: SU-Subvention | K191: 1488930 | L191: 2019-02-07 | M191: 2019-03-06 | N191: 2977860 | T191: 1488930 | AA191: =SUM(O191:W191) -> 1488930 | AB191: =SUM(O191:Z191) -> 1488930
A192: 168 | B192: Amélioration des services | C192: Société de transport de Trois-Rivières | D192: Maintien,développement,optimisation | E192: Transports | F192: 1 | G192: 04-Mauricie | I192: TE-Terminé | J192: SU-Subvention | K192: 759146 | L192: 2019-02-07 | M192: 2019-03-06 | N192: 1518292 | T192: 759146 | AA192: =SUM(O192:W192) -> 759146 | AB192: =SUM(O192:Z192) -> 759146
A193: 169 | B193: Amélioration des services | C193: Ville de Sept-Iles | D193: Maintien,développement,optimisation | E193: Transports | F193: 1 | G193: 09-Côte-Nord | I193: TE-Terminé | J193: SU-Subvention | K193: 3156 | L193: 2019-02-07 | M193: 2019-03-06 | N193: 6312 | T193: 3156 | AA193: =SUM(O193:W193) -> 3156 | AB193: =SUM(O193:Z193) -> 3156
A194: 170 | B194: Amélioration des services | C194: MRC d'Autray | D194: Maintien,développement,optimisation | E194: Transports | F194: 1 | G194: 14-Lanaudière | I194: TE-Terminé | J194: SU-Subvention | K194: 2895 | L194: 2019-02-07 | M194: 2019-12-12 | N194: 5790 | T194: 2895 | AA194: =SUM(O194:W194) -> 2895 | AB194: =SUM(O194:Z194) -> 2895
A195: 171 | B195: Amélioration des services | C195: Autorité régionale de transport métropolitain | D195: Maintien,développement,optimisation | E195: Transports | F195: 1 | G195: 06-Montréal | I195: AC-Actif | J195: SU-Subvention | K195: 159528605 | L195: 2020-04-30 | M195: 2020-05-14 | N195: 159528605 | T195: 42750796 | U195: 81716842 | V195: 66576245 | AA195: =SUM(O195:W195) -> 191043883 | AB195: =SUM(O195:Z195) -> 191043883
A196: 172 | B196: Amélioration des services | C196: Réseau de transport de la Capitale | D196: Maintien,développement,optimisation | E196: Transports | F196: 1 | G196: 03-Capitale-Nationale | I196: TE-Terminé | J196: SU-Subvention | K196: 14719581 | L196: 2020-04-30 | M196: 2020-12-31 | N196: 14719581 | T196: 5780486 | V196: 3049608 | AA196: =SUM(O196:W196) -> 8830094 | AB196: =SUM(O196:Z196) -> 8830094
A197: 173 | B197: Amélioration des services | C197: Société de transport de Lévis | D197: Maintien,développement,optimisation | E197: Transports | F197: 1 | G197: 12-Chaudières-Appalaches | I197: TE-Terminé | J197: SU-Subvention | K197: 3391806 | L197: 2020-04-30 | M197: 2020-12-31 | N197: 3391806 | T197: 1183637 | U197: 604905 | V197: 1736309 | AA197: =SUM(O197:W197) -> 3524851 | AB197: =SUM(O197:Z197) -> 3524851
A198: 174 | B198: Amélioration des services | C198: Société de transport de l'Outaouais | D198: Maintien,développement,optimisation | E198: Transports | F198: 1 | G198: 07-Outaouais | I198: TE-Terminé | J198: SU-Subvention | K198: 14176116 | L198: 2020-04-30 | M198: 2020-12-31 | N198: 14176116 | T198: 4535361 | V198: 9187631 | AA198: =SUM(O198:W198) -> 13722992 | AB198: =SUM(O198:Z198) -> 13722992
A199: 175 | B199: Amélioration des services | C199: Société de transport de Sherbrooke | D199: Maintien,développement,optimisation | E199: Transports | F199: 1 | G199: 05-Estrie | I199: TE-Terminé | J199: SU-Subvention | K199: 2531620 | L199: 2020-04-30 | M199: 2020-12-31 | N199: 2531620 | U199: 567296 | V199: 2889074 | AA199: =SUM(O199:W199) -> 3456370 | AB199: =SUM(O199:Z199) -> 3456370
A200: 176 | B200: Amélioration des services | C200: Société de transport de Trois-Rivières | D200: Maintien,développement,optimisation | E200: Transports | F200: 1 | G200: 04-Mauricie | I200: TE-Terminé | J200: SU-Subvention | K200: 719513 | L200: 2020-04-30 | M200: 2020-12-31 | N200: 719513 | U200: 379573 | V200: 289089 | AA200: =SUM(O200:W200) -> 668662 | AB200: =SUM(O200:Z200) -> 668662
A201: 177 | B201: Amélioration des services | C201: Société de transport du Saguenay | D201: Maintien,développement,optimisation | E201: Transports | F201: 1 | G201: 02-Saguenay- Lac-Saint-Jean | I201: TE-Terminé | J201: SU-Subvention | K201: 894185 | L201: 2020-04-30 | M201: 2020-12-31 | N201: 894185 | U201: 292796 | AA201: =SUM(O201:W201) -> 292796 | AB201: =SUM(O201:Z201) -> 292796
A202: 178 | B202: Amélioration des services | C202: Ville de Baie-Comeau | D202: Maintien,développement,optimisation | E202: Transports | F202: 1 | G202: 09-Côte-Nord | I202: TE-Terminé | J202: SU-Subvention | K202: 149059 | L202: 2020-07-14 | M202: 2020-12-31 | N202: 149059 | U202: 25525 | V202: 74824 | AA202: =SUM(O202:W202) -> 100349 | AB202: =SUM(O202:Z202) -> 100349
A203: 179 | B203: Amélioration des services | C203: Ville de Drummondville | D203: Maintien,développement,optimisation | E203: Transports | F203: 1 | G203: 17-Centre-du-Québec | I203: TE-Terminé | J203: SU-Subvention | K203: 1047785 | L203: 2020-04-30 | M203: 2020-12-31 | N203: 1047785 | U203: 152142 | V203: 757592 | AA203: =SUM(O203:W203) -> 909734 | AB203: =SUM(O203:Z203) -> 909734
A204: 180 | B204: Amélioration des services | C204: Ville de Granby | D204: Maintien,développement,optimisation | E204: Transports | F204: 1 | G204: 16-Montérégie | I204: TE-Terminé | J204: SU-Subvention | K204: 802049 | L204: 2020-04-30 | M204: 2020-12-31 | N204: 802049 | U204: 306887 | V204: 646780 | AA204: =SUM(O204:W204) -> 953667 | AB204: =SUM(O204:Z204) -> 953667
A205: 181 | B205: Amélioration des services | C205: Ville de Rimouski | D205: Maintien,développement,optimisation | E205: Transports | F205: 1 | G205: 01-Bas-Saint-Laurent | I205: TE-Terminé | J205: SU-Subvention | K205: 457114 | L205: 2020-04-30 | M205: 2020-12-31 | N205: 457114 | U205: 152118 | V205: 376599 | AA205: =SUM(O205:W205) -> 528717 | AB205: =SUM(O205:Z205) -> 528717
A206: 182 | B206: Amélioration des services | C206: Ville de Rouyn-Noranda | D206: Maintien,développement,optimisation | E206: Transports | F206: 1 | G206: 08-Abitibi-Témiscamingue | I206: TE-Terminé | J206: SU-Subvention | K206: 128041 | L206: 2020-04-30 | M206: 2020-12-31 | N206: 128041 | U206: 23575 | V206: 57618 | AA206: =SUM(O206:W206) -> 81193 | AB206: =SUM(O206:Z206) -> 81193
A207: 183 | B207: Amélioration des services | C207: Ville de Saint-Georges | D207: Maintien,développement,optimisation | E207: Transports | F207: 1 | G207: 12-Chaudières-Appalaches | I207: TE-Terminé | J207: SU-Subvention | K207: 277976 | L207: 2020-04-30 | M207: 2020-12-31 | N207: 277976 | U207: 2785 | V207: 65539 | AA207: =SUM(O207:W207) -> 68324 | AB207: =SUM(O207:Z207) -> 68324
A208: 184 | B208: Amélioration des services | C208: Ville de Saint-Jean-sur-Richelieu | D208: Maintien,développement,optimisation | E208: Transports | F208: 1 | G208: 16-Montérégie | I208: TE-Terminé | J208: SU-Subvention | K208: 3019956 | L208: 2020-05-25 | M208: 2020-12-31 | N208: 3019956 | U208: 744465 | V208: 1373714 | AA208: =SUM(O208:W208) -> 2118179 | AB208: =SUM(O208:Z208) -> 2118179
A209: 185 | B209: Amélioration des services | C209: Ville de Salaberry-de-Valleyfield | D209: Maintien,développement,optimisation | E209: Transports | F209: 1 | G209: 16-Montérégie | I209: TE-Terminé | J209: SU-Subvention | K209: 402440 | L209: 2020-04-30 | M209: 2020-12-31 | N209: 402440 | U209: 22133 | V209: 234102 | AA209: =SUM(O209:W209) -> 256235 | AB209: =SUM(O209:Z209) -> 256235
A210: 186 | B210: Amélioration des services | C210: Ville de Val-d'Or | D210: Maintien,développement,optimisation | E210: Transports | F210: 1 | G210: 08-Abitibi-Témiscamingue | I210: TE-Terminé | J210: SU-Subvention | K210: 119896 | L210: 2020-04-30 | M210: 2020-12-31 | N210: 119896 | U210: 34052 | AA210: =SUM(O210:W210) -> 34052 | AB210: =SUM(O210:Z210) -> 34052
A211: 187 | B211: Amélioration des services | C211: Ville de Victoriaville | D211: Maintien,développement,optimisation | E211: Transports | F211: 1 | G211: 17-Centre-du-Québec | I211: TE-Terminé | J211: SU-Subvention | K211: 590197 | L211: 2020-04-30 | M211: 2020-12-31 | N211: 590197 | U211: 124626 | V211: 299015 | AA211: =SUM(O211:W211) -> 423641 | AB211: =SUM(O211:Z211) -> 423641
A212: 188 | AA212: =SUM(O212:W212) -> 0 | AB212: =SUM(O212:Z212) -> 0
A213: 189 | AA213: =SUM(O213:W213) -> 0 | AB213: =SUM(O213:Z213) -> 0
A214: 190 | AA214: =SUM(O214:W214) -> 0 | AB214: =SUM(O214:Z214) -> 0
A215: 191 | AA215: =SUM(O215:W215) -> 0 | AB215: =SUM(O215:Z215) -> 0
... 69 more rows

Sheet GES (hidden)
B2: =Utilitaire!E8 -> Plan d'action 2013-2020 sur les changements climatiques | I2: Conseils de rédaction : | L2: Informations en date du : | O2: =Utilitaire!G6 -> 2022-03-31
B3: ="Action " & Accueil!D58 -> Action en cours | I3: - Répondez aux questions et commentaires s'il y a lieu. - Des précisions sur les contenus attendus sont disponibles en commentaires dans les cellules titres. - Pensez à remplir les cases G20 et P20. - Les projets inscrits sont ceux définis dans l'onglet « Détail des projets ». - Pensez à inscrire le coût par tonne de la colonne H, même si seul un potentiel de réduction est inclus pour cette action.
B4: =Accueil!D55 -> 13.7.1 | C4: =Accueil!E55 -> Programme d'aide au développement du transport collectif (PADTC) - Amélioration des services de transport en commun (urbain)
B5: Ministère porteur : | C5: =Accueil!$D$65 -> MTQ
B6: GES
B20: Potentiel de réduction des GES évalué lors de la sélection des projets de cette action : | G20: Non | I20: Réductions réelles quantifiables des émissions de GES attendues pour cette action : | O20: Non
F22: ÉVALUATION DU POTENTIEL DE RÉDUCTION ET D'ÉVITEMENT D'ÉMISSIONS DE GES À TERME. | H22: DÉTAIL DES ÉMISSIONS DE GES RÉDUITES OU ÉVITÉES (en tonnes éq. CO2)
B23: Nom du projet | C23: Nom du requérant ou du bénéficiaire | D23: Région administrative | E23: Montant engagé ($) | F23: Potentiel de réduction des GES sur une base annuelle | G23: Horizon temporel pour la réalisation du potentiel | H23: Coût/tonne estimé | I23: Type d'émission | J23: Émissions rapportées dans l'inventaire | K23: Durée du projet | L23: Émissions | N23: Vérifiées | P23: 2013-2014 | R23: 2014-2015 | T23: 2015-2016 | V23: 2016-2017 | X23: 2017-2018 | Z23: 2018-2019 | AB23: 2019-2020 | AD23: 2020-2021 | AF23: 2021-2022 | AH23: 2022-2023 | AJ23: 2023-2024 | AL23: 2024-2025
F24: (tonnes éq. CO2) | H24: $ ------------ tonne éq. CO2 | K24: (années) | L24: Réduites | M24: Évitées | N24: Tierce partie | O24: M/O | P24: Vérifié | Q24: Non vérifié | R24: Vérifié | S24: Non vérifié | T24: Vérifié | U24: Non vérifié | V24: Vérifié | W24: Non vérifié | X24: Vérifié | Y24: Non vérifié | Z24: Vérifié | AA24: Non vérifié | AB24: Vérifié | AC24: Non vérifié | AD24: Vérifié | AE24: Non vérifié | AF24: Vérifié | AG24: Non vérifié | AH24: Vérifié | AI24: Non vérifié | AJ24: Vérifié | AK24: Non vérifié | AL24: Vérifié | AM24: Non vérifié
B25: =IF(LEN('Détail des projets'!B25)=0,"",'Détail des projets'!B25) -> Amélioration des services | C25: ='Détail des projets'!C25 -> Autorité régionale de transport métropolitain | D25: =IF(LEN('Détail des projets'!G25)=0,"",'Détail des projets'!G25) -> 06-Montréal | E25: =IF(LEN('Détail des projets'!K25)=0,"",'Détail des projets'!K25) -> 26524513
B26: =IF(LEN('Détail des projets'!B26)=0,"",'Détail des projets'!B26) -> Amélioration des services | C26: =IF(LEN('Détail des projets'!C26)=0,"",'Détail des projets'!C26) -> Réseau de transport de la Capitale | D26: =IF(LEN('Détail des projets'!G26)=0,"",'Détail des projets'!G26) -> 03-Capitale-Nationale | E26: =IF(LEN('Détail des projets'!K26)=0,"",'Détail des projets'!K26) -> 7020936
B27: =IF(LEN('Détail des projets'!B27)=0,"",'Détail des projets'!B27) -> Amélioration des services | C27: =IF(LEN('Détail des projets'!C27)=0,"",'Détail des projets'!C27) -> Société de transport de Lévis | D27: =IF(LEN('Détail des projets'!G27)=0,"",'Détail des projets'!G27) -> 12 Chaudières-Appalaches | E27: =IF(LEN('Détail des projets'!K27)=0,"",'Détail des projets'!K27) -> 1591870
B28: =IF(LEN('Détail des projets'!B28)=0,"",'Détail des projets'!B28) -> Amélioration des services | C28: =IF(LEN('Détail des projets'!C28)=0,"",'Détail des projets'!C28) -> Société de transport de l'Outaouais | D28: =IF(LEN('Détail des projets'!G28)=0,"",'Détail des projets'!G28) -> 07-Outaouais | E28: =IF(LEN('Détail des projets'!K28)=0,"",'Détail des projets'!K28) -> 6898582
B29: =IF(LEN('Détail des projets'!B29)=0,"",'Détail des projets'!B29) -> Amélioration des services | C29: =IF(LEN('Détail des projets'!C29)=0,"",'Détail des projets'!C29) -> Société de transport de Montréal | D29: =IF(LEN('Détail des projets'!G29)=0,"",'Détail des projets'!G29) -> 06-Montréal | E29: =IF(LEN('Détail des projets'!K29)=0,"",'Détail des projets'!K29) -> 29960097
B30: =IF(LEN('Détail des projets'!B30)=0,"",'Détail des projets'!B30) -> Amélioration des services | C30: =IF(LEN('Détail des projets'!C30)=0,"",'Détail des projets'!C30) -> Conseil intermunicipal de transport Chambly-Richelieu-Carignan | D30: =IF(LEN('Détail des projets'!G30)=0,"",'Détail des projets'!G30) -> 16-Montérégie | E30: =IF(LEN('Détail des projets'!K30)=0,"",'Détail des projets'!K30) -> 742386
B31: =IF(LEN('Détail des projets'!B31)=0,"",'Détail des projets'!B31) -> Amélioration des services | C31: =IF(LEN('Détail des projets'!C31)=0,"",'Détail des projets'!C31) -> Société de transport de Montréal | D31: =IF(LEN('Détail des projets'!G31)=0,"",'Détail des projets'!G31) -> 06-Montréal | E31: =IF(LEN('Détail des projets'!K31)=0,"",'Détail des projets'!K31) -> 25823955
B32: =IF(LEN('Détail des projets'!B32)=0,"",'Détail des projets'!B32) -> Amélioration des services | C32: =IF(LEN('Détail des projets'!C32)=0,"",'Détail des projets'!C32) -> Réseau de transport de Longueuil | D32: =IF(LEN('Détail des projets'!G32)=0,"",'Détail des projets'!G32) -> 16-Montérégie | E32: =IF(LEN('Détail des projets'!K32)=0,"",'Détail des projets'!K32) -> 2912730
B33: =IF(LEN('Détail des projets'!B33)=0,"",'Détail des projets'!B33) -> Amélioration des services | C33: =IF(LEN('Détail des projets'!C33)=0,"",'Détail des projets'!C33) -> Conseil intermunicipal de transport de la Vallée du Richelieu | D33: =IF(LEN('Détail des projets'!G33)=0,"",'Détail des projets'!G33) -> 16-Montérégie | E33: =IF(LEN('Détail des projets'!K33)=0,"",'Détail des projets'!K33) -> 641989
B34: =IF(LEN('Détail des projets'!B34)=0,"",'Détail des projets'!B34) -> Amélioration des services | C34: =IF(LEN('Détail des projets'!C34)=0,"",'Détail des projets'!C34) -> Conseil intermunicipal de transport des Laurentides | D34: =IF(LEN('Détail des projets'!G34)=0,"",'Détail des projets'!G34) -> 13-Laval | E34: =IF(LEN('Détail des projets'!K34)=0,"",'Détail des projets'!K34) -> 2301345
B35: =IF(LEN('Détail des projets'!B35)=0,"",'Détail des projets'!B35) -> Amélioration des services | C35: =IF(LEN('Détail des projets'!C35)=0,"",'Détail des projets'!C35) -> Ville de Granby | D35: =IF(LEN('Détail des projets'!G35)=0,"",'Détail des projets'!G35) -> 16-Montérégie | E35: =IF(LEN('Détail des projets'!K35)=0,"",'Détail des projets'!K35) -> 276957
B36: =IF(LEN('Détail des projets'!B36)=0,"",'Détail des projets'!B36) -> Amélioration des services | C36: =IF(LEN('Détail des projets'!C36)=0,"",'Détail des projets'!C36) -> Ville de Sainte-Julie | D36: =IF(LEN('Détail des projets'!G36)=0,"",'Détail des projets'!G36) -> 16-Montérégie | E36: =IF(LEN('Détail des projets'!K36)=0,"",'Détail des projets'!K36) -> 353816
B37: =IF(LEN('Détail des projets'!B37)=0,"",'Détail des projets'!B37) -> Amélioration des services | C37: =IF(LEN('Détail des projets'!C37)=0,"",'Détail des projets'!C37) -> Ville de Rimouski | D37: =IF(LEN('Détail des projets'!G37)=0,"",'Détail des projets'!G37) -> 01-Bas-Saint-Laurent | E37: =IF(LEN('Détail des projets'!K37)=0,"",'Détail des projets'!K37) -> 137398
B38: =IF(LEN('Détail des projets'!B38)=0,"",'Détail des projets'!B38) -> Amélioration des services | C38: =IF(LEN('Détail des projets'!C38)=0,"",'Détail des projets'!C38) -> Société de transport de Laval | D38: =IF(LEN('Détail des projets'!G38)=0,"",'Détail des projets'!G38) -> 13-Laval | E38: =IF(LEN('Détail des projets'!K38)=0,"",'Détail des projets'!K38) -> 4734011
B39: =IF(LEN('Détail des projets'!B39)=0,"",'Détail des projets'!B39) -> Amélioration des services | C39: =IF(LEN('Détail des projets'!C39)=0,"",'Détail des projets'!C39) -> Société de transport du Saguenay | D39: =IF(LEN('Détail des projets'!G39)=0,"",'Détail des projets'!G39) -> 02-Saguenay- Lac-Saint-Jean | E39: =IF(LEN('Détail des projets'!K39)=0,"",'Détail des projets'!K39) -> 291559
B40: =IF(LEN('Détail des projets'!B40)=0,"",'Détail des projets'!B40) -> Amélioration des services | C40: =IF(LEN('Détail des projets'!C40)=0,"",'Détail des projets'!C40) -> Conseil intermunicipal de transport du Sud-Ouest | D40: =IF(LEN('Détail des projets'!G40)=0,"",'Détail des projets'!G40) -> 16-Montérégie | E40: =IF(LEN('Détail des projets'!K40)=0,"",'Détail des projets'!K40) -> 872773
B41: =IF(LEN('Détail des projets'!B41)=0,"",'Détail des projets'!B41) -> Amélioration des services | C41: =IF(LEN('Détail des projets'!C41)=0,"",'Détail des projets'!C41) -> Société de transport de Lévis | D41: =IF(LEN('Détail des projets'!G41)=0,"",'Détail des projets'!G41) -> 12 Chaudières-Appalaches | E41: =IF(LEN('Détail des projets'!K41)=0,"",'Détail des projets'!K41) -> 1038434
B42: =IF(LEN('Détail des projets'!B42)=0,"",'Détail des projets'!B42) -> Amélioration des services | C42: =IF(LEN('Détail des projets'!C42)=0,"",'Détail des projets'!C42) -> Société de transport de Trois-Rivières | D42: =IF(LEN('Détail des projets'!G42)=0,"",'Détail des projets'!G42) -> 04-Mauricie | E42: =IF(LEN('Détail des projets'!K42)=0,"",'Détail des projets'!K42) -> 391571
B43: =IF(LEN('Détail des projets'!B43)=0,"",'Détail des projets'!B43) -> Amélioration des services | C43: =IF(LEN('Détail des projets'!C43)=0,"",'Détail des projets'!C43) -> Réseau de transport de la Capitale | D43: =IF(LEN('Détail des projets'!G43)=0,"",'Détail des projets'!G43) -> 03-Capitale-Nationale | E43: =IF(LEN('Détail des projets'!K43)=0,"",'Détail des projets'!K43) -> 5824589
B44: =IF(LEN('Détail des projets'!B44)=0,"",'Détail des projets'!B44) -> Amélioration des services | C44: =IF(LEN('Détail des projets'!C44)=0,"",'Détail des projets'!C44) -> Agence métropolitaine de transport | D44: =IF(LEN('Détail des projets'!G44)=0,"",'Détail des projets'!G44) -> 06-Montréal | E44: =IF(LEN('Détail des projets'!K44)=0,"",'Détail des projets'!K44) -> 4041928
B45: =IF(LEN('Détail des projets'!B45)=0,"",'Détail des projets'!B45) -> Amélioration des services | C45: =IF(LEN('Détail des projets'!C45)=0,"",'Détail des projets'!C45) -> Conseil intermunicipal de transport de Sorel-Varennes | D45: =IF(LEN('Détail des projets'!G45)=0,"",'Détail des projets'!G45) -> 16-Montérégie | E45: =IF(LEN('Détail des projets'!K45)=0,"",'Détail des projets'!K45) -> 613251
B46: =IF(LEN('Détail des projets'!B46)=0,"",'Détail des projets'!B46) -> Amélioration des services | C46: =IF(LEN('Détail des projets'!C46)=0,"",'Détail des projets'!C46) -> Société de transport de l'Outaouais | D46: =IF(LEN('Détail des projets'!G46)=0,"",'Détail des projets'!G46) -> 07-Outaouais | E46: =IF(LEN('Détail des projets'!K46)=0,"",'Détail des projets'!K46) -> 3179999
B47: =IF(LEN('Détail des projets'!B47)=0,"",'Détail des projets'!B47) -> Amélioration des services | C47: =IF(LEN('Détail des projets'!C47)=0,"",'Détail des projets'!C47) -> Conseil intermunicipal de transport de la Presqu'Île | D47: =IF(LEN('Détail des projets'!G47)=0,"",'Détail des projets'!G47) -> 16-Montérégie | E47: =IF(LEN('Détail des projets'!K47)=0,"",'Détail des projets'!K47) -> 530173
B48: =IF(LEN('Détail des projets'!B48)=0,"",'Détail des projets'!B48) -> Amélioration des services | C48: =IF(LEN('Détail des projets'!C48)=0,"",'Détail des projets'!C48) -> Conseil intermunicipal de transport le Richelain | D48: =IF(LEN('Détail des projets'!G48)=0,"",'Détail des projets'!G48) -> 16-Montérégie | E48: =IF(LEN('Détail des projets'!K48)=0,"",'Détail des projets'!K48) -> 580003
B49: =IF(LEN('Détail des projets'!B49)=0,"",'Détail des projets'!B49) -> Amélioration des services | C49: =IF(LEN('Détail des projets'!C49)=0,"",'Détail des projets'!C49) -> Conseil intermunicipal de transport de Roussillon | D49: =IF(LEN('Détail des projets'!G49)=0,"",'Détail des projets'!G49) -> 16-Montérégie | E49: =IF(LEN('Détail des projets'!K49)=0,"",'Détail des projets'!K49) -> 540013
B50: =IF(LEN('Détail des projets'!B50)=0,"",'Détail des projets'!B50) -> Amélioration des services | C50: =IF(LEN('Détail des projets'!C50)=0,"",'Détail des projets'!C50) -> Ville de Saint-Jean-sur-Richelieu | D50: =IF(LEN('Détail des projets'!G50)=0,"",'Détail des projets'!G50) -> 16-Montérégie | E50: =IF(LEN('Détail des projets'!K50)=0,"",'Détail des projets'!K50) -> 278259
B51: =IF(LEN('Détail des projets'!B51)=0,"",'Détail des projets'!B51) -> Amélioration des services | C51: =IF(LEN('Détail des projets'!C51)=0,"",'Détail des projets'!C51) -> Société de transport de Sherbrooke | D51: =IF(LEN('Détail des projets'!G51)=0,"",'Détail des projets'!G51) -> 05-Estrie | E51: =IF(LEN('Détail des projets'!K51)=0,"",'Détail des projets'!K51) -> 455230
B52: =IF(LEN('Détail des projets'!B52)=0,"",'Détail des projets'!B52) -> Amélioration des services | C52: =IF(LEN('Détail des projets'!C52)=0,"",'Détail des projets'!C52) -> Conseil intermunicipal de transport du Haut St-Laurent | D52: =IF(LEN('Détail des projets'!G52)=0,"",'Détail des projets'!G52) -> 16-Montérégie | E52: =IF(LEN('Détail des projets'!K52)=0,"",'Détail des projets'!K52) -> 42245
B53: =IF(LEN('Détail des projets'!B53)=0,"",'Détail des projets'!B53) -> Amélioration des services | C53: =IF(LEN('Détail des projets'!C53)=0,"",'Détail des projets'!C53) -> Ville de Baie-Comeau | D53: =IF(LEN('Détail des projets'!G53)=0,"",'Détail des projets'!G53) -> 09-Côte-Nord | E53: =IF(LEN('Détail des projets'!K53)=0,"",'Détail des projets'!K53) -> 26332
B54: =IF(LEN('Détail des projets'!B54)=0,"",'Détail des projets'!B54) -> Amélioration des services | C54: =IF(LEN('Détail des projets'!C54)=0,"",'Détail des projets'!C54) -> Ville de Drummondville | D54: =IF(LEN('Détail des projets'!G54)=0,"",'Détail des projets'!G54) -> 17-Centre-du-Québec | E54: =IF(LEN('Détail des projets'!K54)=0,"",'Détail des projets'!K54) -> 105398
B55: =IF(LEN('Détail des projets'!B55)=0,"",'Détail des projets'!B55) -> Amélioration des services | C55: =IF(LEN('Détail des projets'!C55)=0,"",'Détail des projets'!C55) -> Ville de Salaberry-de-Valleyfield | D55: =IF(LEN('Détail des projets'!G55)=0,"",'Détail des projets'!G55) -> 16-Montérégie | E55: =IF(LEN('Détail des projets'!K55)=0,"",'Détail des projets'!K55) -> 2845
B56: =IF(LEN('Détail des projets'!B56)=0,"",'Détail des projets'!B56) -> Amélioration des services | C56: =IF(LEN('Détail des projets'!C56)=0,"",'Détail des projets'!C56) -> Conseil régional de transport de Lanaudière | D56: =IF(LEN('Détail des projets'!G56)=0,"",'Détail des projets'!G56) -> 13-Laval | E56: =IF(LEN('Détail des projets'!K56)=0,"",'Détail des projets'!K56) -> 1760811
B57: =IF(LEN('Détail des projets'!B57)=0,"",'Détail des projets'!B57) -> Amélioration des services | C57: =IF(LEN('Détail des projets'!C57)=0,"",'Détail des projets'!C57) -> Conseil intermunicipal de transport Chambly-Richelieu-Carignan | D57: =IF(LEN('Détail des projets'!G57)=0,"",'Détail des projets'!G57) -> 16-Montérégie | E57: =IF(LEN('Détail des projets'!K57)=0,"",'Détail des projets'!K57) -> 979949
B58: =IF(LEN('Détail des projets'!B58)=0,"",'Détail des projets'!B58) -> Amélioration des services | C58: =IF(LEN('Détail des projets'!C58)=0,"",'Détail des projets'!C58) -> Société de transport de Montréal | D58: =IF(LEN('Détail des projets'!G58)=0,"",'Détail des projets'!G58) -> 06-Montréal | E58: =IF(LEN('Détail des projets'!K58)=0,"",'Détail des projets'!K58) -> 30595555
B59: =IF(LEN('Détail des projets'!B59)=0,"",'Détail des projets'!B59) -> Amélioration des services | C59: =IF(LEN('Détail des projets'!C59)=0,"",'Détail des projets'!C59) -> Réseau de transport de Longueuil | D59: =IF(LEN('Détail des projets'!G59)=0,"",'Détail des projets'!G59) -> 16-Montérégie | E59: =IF(LEN('Détail des projets'!K59)=0,"",'Détail des projets'!K59) -> 3450927
B60: =IF(LEN('Détail des projets'!B60)=0,"",'Détail des projets'!B60) -> Amélioration des services | C60: =IF(LEN('Détail des projets'!C60)=0,"",'Détail des projets'!C60) -> Conseil intermunicipal de transport de la Vallée du Richelieu | D60: =IF(LEN('Détail des projets'!G60)=0,"",'Détail des projets'!G60) -> 16-Montérégie | E60: =IF(LEN('Détail des projets'!K60)=0,"",'Détail des projets'!K60) -> 847426
B61: =IF(LEN('Détail des projets'!B61)=0,"",'Détail des projets'!B61) -> Amélioration des services | C61: =IF(LEN('Détail des projets'!C61)=0,"",'Détail des projets'!C61) -> Conseil intermunicipal de transport des Laurentides | D61: =IF(LEN('Détail des projets'!G61)=0,"",'Détail des projets'!G61) -> 13-Laval | E61: =IF(LEN('Détail des projets'!K61)=0,"",'Détail des projets'!K61) -> 3037776
B62: =IF(LEN('Détail des projets'!B62)=0,"",'Détail des projets'!B62) -> Amélioration des services | C62: =IF(LEN('Détail des projets'!C62)=0,"",'Détail des projets'!C62) -> Ville de Granby | D62: =IF(LEN('Détail des projets'!G62)=0,"",'Détail des projets'!G62) -> 16-Montérégie | E62: =IF(LEN('Détail des projets'!K62)=0,"",'Détail des projets'!K62) -> 328131
B63: =IF(LEN('Détail des projets'!B63)=0,"",'Détail des projets'!B63) -> Amélioration des services | C63: =IF(LEN('Détail des projets'!C63)=0,"",'Détail des projets'!C63) -> Ville de Sainte-Julie | D63: =IF(LEN('Détail des projets'!G63)=0,"",'Détail des projets'!G63) -> 16-Montérégie | E63: =IF(LEN('Détail des projets'!K63)=0,"",'Détail des projets'!K63) -> 467036
B64: =IF(LEN('Détail des projets'!B64)=0,"",'Détail des projets'!B64) -> Amélioration des services | C64: =IF(LEN('Détail des projets'!C64)=0,"",'Détail des projets'!C64) -> Ville de Rimouski | D64: =IF(LEN('Détail des projets'!G64)=0,"",'Détail des projets'!G64) -> 01-Bas-Saint-Laurent | E64: =IF(LEN('Détail des projets'!K64)=0,"",'Détail des projets'!K64) -> 162786
B65: =IF(LEN('Détail des projets'!B65)=0,"",'Détail des projets'!B65) -> Amélioration des services | C65: =IF(LEN('Détail des projets'!C65)=0,"",'Détail des projets'!C65) -> Société de transport de Laval | D65: =IF(LEN('Détail des projets'!G65)=0,"",'Détail des projets'!G65) -> 13-Laval | E65: =IF(LEN('Détail des projets'!K65)=0,"",'Détail des projets'!K65) -> 5608734
B66: =IF(LEN('Détail des projets'!B66)=0,"",'Détail des projets'!B66) -> Amélioration des services | C66: =IF(LEN('Détail des projets'!C66)=0,"",'Détail des projets'!C66) -> Société de transport du Saguenay | D66: =IF(LEN('Détail des projets'!G66)=0,"",'Détail des projets'!G66) -> 02-Saguenay- Lac-Saint-Jean | E66: =IF(LEN('Détail des projets'!K66)=0,"",'Détail des projets'!K66) -> 282737
B67: =IF(LEN('Détail des projets'!B67)=0,"",'Détail des projets'!B67) -> Amélioration des services | C67: =IF(LEN('Détail des projets'!C67)=0,"",'Détail des projets'!C67) -> Conseil intermunicipal de transport du Sud-Ouest | D67: =IF(LEN('Détail des projets'!G67)=0,"",'Détail des projets'!G67) -> 16-Montérégie | E67: =IF(LEN('Détail des projets'!K67)=0,"",'Détail des projets'!K67) -> 1118302
B68: =IF(LEN('Détail des projets'!B68)=0,"",'Détail des projets'!B68) -> Amélioration des services | C68: =IF(LEN('Détail des projets'!C68)=0,"",'Détail des projets'!C68) -> Société de transport de Lévis | D68: =IF(LEN('Détail des projets'!G68)=0,"",'Détail des projets'!G68) -> 12 Chaudières-Appalaches | E68: =IF(LEN('Détail des projets'!K68)=0,"",'Détail des projets'!K68) -> 1230309
B69: =IF(LEN('Détail des projets'!B69)=0,"",'Détail des projets'!B69) -> Amélioration des services | C69: =IF(LEN('Détail des projets'!C69)=0,"",'Détail des projets'!C69) -> Société de transport de Trois-Rivières | D69: =IF(LEN('Détail des projets'!G69)=0,"",'Détail des projets'!G69) -> 04-Mauricie | E69: =IF(LEN('Détail des projets'!K69)=0,"",'Détail des projets'!K69) -> 457247
B70: =IF(LEN('Détail des projets'!B70)=0,"",'Détail des projets'!B70) -> Amélioration des services | C70: =IF(LEN('Détail des projets'!C70)=0,"",'Détail des projets'!C70) -> Réseau de transport de la Capitale | D70: =IF(LEN('Détail des projets'!G70)=0,"",'Détail des projets'!G70) -> 03-Capitale-Nationale | E70: =IF(LEN('Détail des projets'!K70)=0,"",'Détail des projets'!K70) -> 6900823
B71: =IF(LEN('Détail des projets'!B71)=0,"",'Détail des projets'!B71) -> Amélioration des services | C71: =IF(LEN('Détail des projets'!C71)=0,"",'Détail des projets'!C71) -> Agence métropolitaine de transport | D71: =IF(LEN('Détail des projets'!G71)=0,"",'Détail des projets'!G71) -> 06-Montréal | E71: =IF(LEN('Détail des projets'!K71)=0,"",'Détail des projets'!K71) -> 5335345
B72: =IF(LEN('Détail des projets'!B72)=0,"",'Détail des projets'!B72) -> Amélioration des services | C72: =IF(LEN('Détail des projets'!C72)=0,"",'Détail des projets'!C72) -> Conseil intermunicipal de transport de Sorel-Varennes | D72: =IF(LEN('Détail des projets'!G72)=0,"",'Détail des projets'!G72) -> 16-Montérégie | E72: =IF(LEN('Détail des projets'!K72)=0,"",'Détail des projets'!K72) -> 809490
B73: =IF(LEN('Détail des projets'!B73)=0,"",'Détail des projets'!B73) -> Amélioration des services | C73: =IF(LEN('Détail des projets'!C73)=0,"",'Détail des projets'!C73) -> Société de transport de l'Outaouais | D73: =IF(LEN('Détail des projets'!G73)=0,"",'Détail des projets'!G73) -> 07-outaouais | E73: =IF(LEN('Détail des projets'!K73)=0,"",'Détail des projets'!K73) -> 3767581
B74: =IF(LEN('Détail des projets'!B74)=0,"",'Détail des projets'!B74) -> Amélioration des services | C74: =IF(LEN('Détail des projets'!C74)=0,"",'Détail des projets'!C74) -> Conseil intermunicipal de transport de la Presqu'Île | D74: =IF(LEN('Détail des projets'!G74)=0,"",'Détail des projets'!G74) -> 16-Montérégie | E74: =IF(LEN('Détail des projets'!K74)=0,"",'Détail des projets'!K74) -> 699828
B75: =IF(LEN('Détail des projets'!B75)=0,"",'Détail des projets'!B75) -> Amélioration des services | C75: =IF(LEN('Détail des projets'!C75)=0,"",'Détail des projets'!C75) -> Conseil intermunicipal de transport le Richelain | D75: =IF(LEN('Détail des projets'!G75)=0,"",'Détail des projets'!G75) -> 16-Montérégie | E75: =IF(LEN('Détail des projets'!K75)=0,"",'Détail des projets'!K75) -> 765604
B76: =IF(LEN('Détail des projets'!B76)=0,"",'Détail des projets'!B76) -> Amélioration des services | C76: =IF(LEN('Détail des projets'!C76)=0,"",'Détail des projets'!C76) -> Conseil intermunicipal de transport de Roussillon | D76: =IF(LEN('Détail des projets'!G76)=0,"",'Détail des projets'!G76) -> 16-Montérégie | E76: =IF(LEN('Détail des projets'!K76)=0,"",'Détail des projets'!K76) -> 712817
B77: =IF(LEN('Détail des projets'!B77)=0,"",'Détail des projets'!B77) -> Amélioration des services | C77: =IF(LEN('Détail des projets'!C77)=0,"",'Détail des projets'!C77) -> Ville de Saint-Jean-sur-Richelieu | D77: =IF(LEN('Détail des projets'!G77)=0,"",'Détail des projets'!G77) -> 16-Montérégie | E77: =IF(LEN('Détail des projets'!K77)=0,"",'Détail des projets'!K77) -> 329674
B78: =IF(LEN('Détail des projets'!B78)=0,"",'Détail des projets'!B78) -> Amélioration des services | C78: =IF(LEN('Détail des projets'!C78)=0,"",'Détail des projets'!C78) -> Société de transport de Sherbrooke | D78: =IF(LEN('Détail des projets'!G78)=0,"",'Détail des projets'!G78) -> 05-Estrie | E78: =IF(LEN('Détail des projets'!K78)=0,"",'Détail des projets'!K78) -> 539345
B79: =IF(LEN('Détail des projets'!B79)=0,"",'Détail des projets'!B79) -> Amélioration des services | C79: =IF(LEN('Détail des projets'!C79)=0,"",'Détail des projets'!C79) -> Conseil intermunicipal de transport du Haut St-Laurent | D79: =IF(LEN('Détail des projets'!G79)=0,"",'Détail des projets'!G79) -> 16-Montérégie | E79: =IF(LEN('Détail des projets'!K79)=0,"",'Détail des projets'!K79) -> 34185
B80: =IF(LEN('Détail des projets'!B80)=0,"",'Détail des projets'!B80) -> Amélioration des services | C80: =IF(LEN('Détail des projets'!C80)=0,"",'Détail des projets'!C80) -> Ville de Baie-Comeau | D80: =IF(LEN('Détail des projets'!G80)=0,"",'Détail des projets'!G80) -> 09-Côte-Nord | E80: =IF(LEN('Détail des projets'!K80)=0,"",'Détail des projets'!K80) -> 31114
B81: =IF(LEN('Détail des projets'!B81)=0,"",'Détail des projets'!B81) -> Amélioration des services | C81: =IF(LEN('Détail des projets'!C81)=0,"",'Détail des projets'!C81) -> Ville de Drummondville | D81: =IF(LEN('Détail des projets'!G81)=0,"",'Détail des projets'!G81) -> 17-Centre-du-Québec | E81: =IF(LEN('Détail des projets'!K81)=0,"",'Détail des projets'!K81) -> 124873
B82: =IF(LEN('Détail des projets'!B82)=0,"",'Détail des projets'!B82) -> Amélioration des services | C82: =IF(LEN('Détail des projets'!C82)=0,"",'Détail des projets'!C82) -> Ville de Salaberry-de-Valleyfield | D82: =IF(LEN('Détail des projets'!G82)=0,"",'Détail des projets'!G82) -> 16-Montérégie | E82: =IF(LEN('Détail des projets'!K82)=0,"",'Détail des projets'!K82) -> 3371
B83: =IF(LEN('Détail des projets'!B83)=0,"",'Détail des projets'!B83) -> Amélioration des services | C83: =IF(LEN('Détail des projets'!C83)=0,"",'Détail des projets'!C83) -> Conseil régional de transport de Lanaudière | D83: =IF(LEN('Détail des projets'!G83)=0,"",'Détail des projets'!G83) -> 13-Laval | E83: =IF(LEN('Détail des projets'!K83)=0,"",'Détail des projets'!K83) -> 4225947
B84: =IF(LEN('Détail des projets'!B84)=0,"",'Détail des projets'!B84) -> Amélioration des services | C84: =IF(LEN('Détail des projets'!C84)=0,"",'Détail des projets'!C84) -> Ville de Thetford Mines | D84: =IF(LEN('Détail des projets'!G84)=0,"",'Détail des projets'!G84) -> 12 Chaudières-Appalaches | E84: =IF(LEN('Détail des projets'!K84)=0,"",'Détail des projets'!K84) -> 437
B85: =IF(LEN('Détail des projets'!B85)=0,"",'Détail des projets'!B85) -> Amélioration des services | C85: =IF(LEN('Détail des projets'!C85)=0,"",'Détail des projets'!C85) -> Ville de Saint-Georges | D85: =IF(LEN('Détail des projets'!G85)=0,"",'Détail des projets'!G85) -> 12 Chaudières-Appalaches | E85: =IF(LEN('Détail des projets'!K85)=0,"",'Détail des projets'!K85) -> 6188
B86: =IF(LEN('Détail des projets'!B86)=0,"",'Détail des projets'!B86) -> Amélioration des services | C86: =IF(LEN('Détail des projets'!C86)=0,"",'Détail des projets'!C86) -> Ville de Rouyn-Noranda | D86: =IF(LEN('Détail des projets'!G86)=0,"",'Détail des projets'!G86) -> 08-Abitibi-Témiscamingue | E86: =IF(LEN('Détail des projets'!K86)=0,"",'Détail des projets'!K86) -> 51844
B87: =IF(LEN('Détail des projets'!B87)=0,"",'Détail des projets'!B87) -> Amélioration des services | C87: =IF(LEN('Détail des projets'!C87)=0,"",'Détail des projets'!C87) -> Ville de Val D'Or | D87: =IF(LEN('Détail des projets'!G87)=0,"",'Détail des projets'!G87) -> 08-Abitibi-Témiscamingue | E87: =IF(LEN('Détail des projets'!K87)=0,"",'Détail des projets'!K87) -> 53342
B88: =IF(LEN('Détail des projets'!B88)=0,"",'Détail des projets'!B88) -> Amélioration des services | C88: =IF(LEN('Détail des projets'!C88)=0,"",'Détail des projets'!C88) -> Ville de Victoriaville | D88: =IF(LEN('Détail des projets'!G88)=0,"",'Détail des projets'!G88) -> 17-Centre-du-Québec | E88: =IF(LEN('Détail des projets'!K88)=0,"",'Détail des projets'!K88) -> 84354
B89: =IF(LEN('Détail des projets'!B89)=0,"",'Détail des projets'!B89) -> Amélioration des services | C89: =IF(LEN('Détail des projets'!C89)=0,"",'Détail des projets'!C89) -> Conseil intermunicipal de transport Chambly-Richelieu-Carignan | D89: =IF(LEN('Détail des projets'!G89)=0,"",'Détail des projets'!G89) -> 16-Montérégie | E89: =IF(LEN('Détail des projets'!K89)=0,"",'Détail des projets'!K89) -> 801777
B90: =IF(LEN('Détail des projets'!B90)=0,"",'Détail des projets'!B90) -> Amélioration des services | C90: =IF(LEN('Détail des projets'!C90)=0,"",'Détail des projets'!C90) -> Société de transport de Montréal | D90: =IF(LEN('Détail des projets'!G90)=0,"",'Détail des projets'!G90) -> 06-Montréal | E90: =IF(LEN('Détail des projets'!K90)=0,"",'Détail des projets'!K90) -> 25032727
B91: =IF(LEN('Détail des projets'!B91)=0,"",'Détail des projets'!B91) -> Amélioration des services | C91: =IF(LEN('Détail des projets'!C91)=0,"",'Détail des projets'!C91) -> Réseau de transport de Longueuil | D91: =IF(LEN('Détail des projets'!G91)=0,"",'Détail des projets'!G91) -> 16-Montérégie | E91: =IF(LEN('Détail des projets'!K91)=0,"",'Détail des projets'!K91) -> 2823486
B92: =IF(LEN('Détail des projets'!B92)=0,"",'Détail des projets'!B92) -> Amélioration des services | C92: =IF(LEN('Détail des projets'!C92)=0,"",'Détail des projets'!C92) -> Conseil intermunicipal de transport de la Vallée du Richelieu | D92: =IF(LEN('Détail des projets'!G92)=0,"",'Détail des projets'!G92) -> 16-Montérégie | E92: =IF(LEN('Détail des projets'!K92)=0,"",'Détail des projets'!K92) -> 693348
B93: =IF(LEN('Détail des projets'!B93)=0,"",'Détail des projets'!B93) -> Amélioration des services | C93: =IF(LEN('Détail des projets'!C93)=0,"",'Détail des projets'!C93) -> Conseil intermunicipal de transport des Laurentides | D93: =IF(LEN('Détail des projets'!G93)=0,"",'Détail des projets'!G93) -> 13-Laval | E93: =IF(LEN('Détail des projets'!K93)=0,"",'Détail des projets'!K93) -> 2485453
B94: =IF(LEN('Détail des projets'!B94)=0,"",'Détail des projets'!B94) -> Amélioration des services | C94: =IF(LEN('Détail des projets'!C94)=0,"",'Détail des projets'!C94) -> Ville de Granby | D94: =IF(LEN('Détail des projets'!G94)=0,"",'Détail des projets'!G94) -> 16-Montérégie | E94: =IF(LEN('Détail des projets'!K94)=0,"",'Détail des projets'!K94) -> 268472
B95: =IF(LEN('Détail des projets'!B95)=0,"",'Détail des projets'!B95) -> Amélioration des services | C95: =IF(LEN('Détail des projets'!C95)=0,"",'Détail des projets'!C95) -> Ville de Sainte-Julie | D95: =IF(LEN('Détail des projets'!G95)=0,"",'Détail des projets'!G95) -> 16-Montérégie | E95: =IF(LEN('Détail des projets'!K95)=0,"",'Détail des projets'!K95) -> 382121
B96: =IF(LEN('Détail des projets'!B96)=0,"",'Détail des projets'!B96) -> Amélioration des services | C96: =IF(LEN('Détail des projets'!C96)=0,"",'Détail des projets'!C96) -> Ville de Rimouski | D96: =IF(LEN('Détail des projets'!G96)=0,"",'Détail des projets'!G96) -> 01-Bas-Saint-Laurent | E96: =IF(LEN('Détail des projets'!K96)=0,"",'Détail des projets'!K96) -> 133188
B97: =IF(LEN('Détail des projets'!B97)=0,"",'Détail des projets'!B97) -> Amélioration des services | C97: =IF(LEN('Détail des projets'!C97)=0,"",'Détail des projets'!C97) -> Société de transport de Laval | D97: =IF(LEN('Détail des projets'!G97)=0,"",'Détail des projets'!G97) -> 13-Laval | E97: =IF(LEN('Détail des projets'!K97)=0,"",'Détail des projets'!K97) -> 4588965
B98: =IF(LEN('Détail des projets'!B98)=0,"",'Détail des projets'!B98) -> Amélioration des services | C98: =IF(LEN('Détail des projets'!C98)=0,"",'Détail des projets'!C98) -> Société de transport du Saguenay | D98: =IF(LEN('Détail des projets'!G98)=0,"",'Détail des projets'!G98) -> 02-Saguenay- Lac-Saint-Jean | E98: =IF(LEN('Détail des projets'!K98)=0,"",'Détail des projets'!K98) -> 345320
B99: =IF(LEN('Détail des projets'!B99)=0,"",'Détail des projets'!B99) -> Amélioration des services | C99: =IF(LEN('Détail des projets'!C99)=0,"",'Détail des projets'!C99) -> Conseil intermunicipal de transport du Sud-Ouest | D99: =IF(LEN('Détail des projets'!G99)=0,"",'Détail des projets'!G99) -> 16-Montérégie | E99: =IF(LEN('Détail des projets'!K99)=0,"",'Détail des projets'!K99) -> 976353
B100: =IF(LEN('Détail des projets'!B100)=0,"",'Détail des projets'!B100) -> Amélioration des services | C100: =IF(LEN('Détail des projets'!C100)=0,"",'Détail des projets'!C100) -> Société de transport de Lévis | D100: =IF(LEN('Détail des projets'!G100)=0,"",'Détail des projets'!G100) -> 12 Chaudières-Appalaches | E100: =IF(LEN('Détail des projets'!K100)=0,"",'Détail des projets'!K100) -> 1006617
B101: =IF(LEN('Détail des projets'!B101)=0,"",'Détail des projets'!B101) -> Amélioration des services | C101: =IF(LEN('Détail des projets'!C101)=0,"",'Détail des projets'!C101) -> Société de transport de Trois-Rivières | D101: =IF(LEN('Détail des projets'!G101)=0,"",'Détail des projets'!G101) -> 04-Mauricie | E101: =IF(LEN('Détail des projets'!K101)=0,"",'Détail des projets'!K101) -> 386249
B102: =IF(LEN('Détail des projets'!B102)=0,"",'Détail des projets'!B102) -> Amélioration des services | C102: =IF(LEN('Détail des projets'!C102)=0,"",'Détail des projets'!C102) -> Réseau de transport de la Capitale | D102: =IF(LEN('Détail des projets'!G102)=0,"",'Détail des projets'!G102) -> 03-Capitale-Nationale | E102: =IF(LEN('Détail des projets'!K102)=0,"",'Détail des projets'!K102) -> 5646127
B103: =IF(LEN('Détail des projets'!B103)=0,"",'Détail des projets'!B103) -> Amélioration des services | C103: =IF(LEN('Détail des projets'!C103)=0,"",'Détail des projets'!C103) -> Agence métropolitaine de transport | D103: =IF(LEN('Détail des projets'!G103)=0,"",'Détail des projets'!G103) -> 06-Montréal | E103: =IF(LEN('Détail des projets'!K103)=0,"",'Détail des projets'!K103) -> 4365282
B104: =IF(LEN('Détail des projets'!B104)=0,"",'Détail des projets'!B104) -> Amélioration des services | C104: =IF(LEN('Détail des projets'!C104)=0,"",'Détail des projets'!C104) -> Conseil intermunicipal de transport de Sorel-Varennes | D104: =IF(LEN('Détail des projets'!G104)=0,"",'Détail des projets'!G104) -> 16-Montérégie | E104: =IF(LEN('Détail des projets'!K104)=0,"",'Détail des projets'!K104) -> 662311
B105: =IF(LEN('Détail des projets'!B105)=0,"",'Détail des projets'!B105) -> Amélioration des services | C105: =IF(LEN('Détail des projets'!C105)=0,"",'Détail des projets'!C105) -> Société de transport de l'Outaouais | D105: =IF(LEN('Détail des projets'!G105)=0,"",'Détail des projets'!G105) -> 07-Outaouais | E105: =IF(LEN('Détail des projets'!K105)=0,"",'Détail des projets'!K105) -> 3082566
B106: =IF(LEN('Détail des projets'!B106)=0,"",'Détail des projets'!B106) -> Amélioration des services | C106: =IF(LEN('Détail des projets'!C106)=0,"",'Détail des projets'!C106) -> Conseil intermunicipal de transport de la Presqu'Île | D106: =IF(LEN('Détail des projets'!G106)=0,"",'Détail des projets'!G106) -> 16-Montérégie | E106: =IF(LEN('Détail des projets'!K106)=0,"",'Détail des projets'!K106) -> 572586
B107: =IF(LEN('Détail des projets'!B107)=0,"",'Détail des projets'!B107) -> Amélioration des services | C107: =IF(LEN('Détail des projets'!C107)=0,"",'Détail des projets'!C107) -> Conseil intermunicipal de transport le Richelain | D107: =IF(LEN('Détail des projets'!G107)=0,"",'Détail des projets'!G107) -> 16-Montérégie | E107: =IF(LEN('Détail des projets'!K107)=0,"",'Détail des projets'!K107) -> 626404
B108: =IF(LEN('Détail des projets'!B108)=0,"",'Détail des projets'!B108) -> Amélioration des services | C108: =IF(LEN('Détail des projets'!C108)=0,"",'Détail des projets'!C108) -> Conseil intermunicipal de transport de Roussillon | D108: =IF(LEN('Détail des projets'!G108)=0,"",'Détail des projets'!G108) -> 16-Montérégie | E108: =IF(LEN('Détail des projets'!K108)=0,"",'Détail des projets'!K108) -> 583214
B109: =IF(LEN('Détail des projets'!B109)=0,"",'Détail des projets'!B109) -> Amélioration des services | C109: =IF(LEN('Détail des projets'!C109)=0,"",'Détail des projets'!C109) -> Ville de Saint-Jean-sur-Richelieu | D109: =IF(LEN('Détail des projets'!G109)=0,"",'Détail des projets'!G109) -> 16-Montérégie | E109: =IF(LEN('Détail des projets'!K109)=0,"",'Détail des projets'!K109) -> 269734
B110: =IF(LEN('Détail des projets'!B110)=0,"",'Détail des projets'!B110) -> Amélioration des services | C110: =IF(LEN('Détail des projets'!C110)=0,"",'Détail des projets'!C110) -> Société de transport de Sherbrooke | D110: =IF(LEN('Détail des projets'!G110)=0,"",'Détail des projets'!G110) -> 05-Estrie | E110: =IF(LEN('Détail des projets'!K110)=0,"",'Détail des projets'!K110) -> 441282
B111: =IF(LEN('Détail des projets'!B111)=0,"",'Détail des projets'!B111) -> Amélioration des services | C111: =IF(LEN('Détail des projets'!C111)=0,"",'Détail des projets'!C111) -> Conseil intermunicipal de transport du Haut St-Laurent | D111: =IF(LEN('Détail des projets'!G111)=0,"",'Détail des projets'!G111) -> 16-Montérégie | E111: =IF(LEN('Détail des projets'!K111)=0,"",'Détail des projets'!K111) -> 67202
B112: =IF(LEN('Détail des projets'!B112)=0,"",'Détail des projets'!B112) -> Amélioration des services | C112: =IF(LEN('Détail des projets'!C112)=0,"",'Détail des projets'!C112) -> Ville de Baie-Comeau | D112: =IF(LEN('Détail des projets'!G112)=0,"",'Détail des projets'!G112) -> 09-Côte-Nord | E112: =IF(LEN('Détail des projets'!K112)=0,"",'Détail des projets'!K112) -> 25609
B113: =IF(LEN('Détail des projets'!B113)=0,"",'Détail des projets'!B113) -> Amélioration des services | C113: =IF(LEN('Détail des projets'!C113)=0,"",'Détail des projets'!C113) -> Ville de Drummondville | D113: =IF(LEN('Détail des projets'!G113)=0,"",'Détail des projets'!G113) -> 17-Centre-du-Québec | E113: =IF(LEN('Détail des projets'!K113)=0,"",'Détail des projets'!K113) -> 102168
B114: =IF(LEN('Détail des projets'!B114)=0,"",'Détail des projets'!B114) -> Amélioration des services | C114: =IF(LEN('Détail des projets'!C114)=0,"",'Détail des projets'!C114) -> Ville de Salaberry-de-Valleyfield | D114: =IF(LEN('Détail des projets'!G114)=0,"",'Détail des projets'!G114) -> 16-Montérégie | E114: =IF(LEN('Détail des projets'!K114)=0,"",'Détail des projets'!K114) -> 2758
B115: =IF(LEN('Détail des projets'!B115)=0,"",'Détail des projets'!B115) -> Amélioration des services | C115: =IF(LEN('Détail des projets'!C115)=0,"",'Détail des projets'!C115) -> Conseil intermunicipal de transport Chambly-Richelieu-Carignan | D115: =IF(LEN('Détail des projets'!G115)=0,"",'Détail des projets'!G115) -> 16-Montérégie | E115: =IF(LEN('Détail des projets'!K115)=0,"",'Détail des projets'!K115) -> 1781726
B116: =IF(LEN('Détail des projets'!B116)=0,"",'Détail des projets'!B116) -> Amélioration des services | C116: =IF(LEN('Détail des projets'!C116)=0,"",'Détail des projets'!C116) -> Société de transport de Montréal | D116: =IF(LEN('Détail des projets'!G116)=0,"",'Détail des projets'!G116) -> 06-Montréal | E116: =IF(LEN('Détail des projets'!K116)=0,"",'Détail des projets'!K116) -> 55628282
B117: =IF(LEN('Détail des projets'!B117)=0,"",'Détail des projets'!B117) -> Amélioration des services | C117: =IF(LEN('Détail des projets'!C117)=0,"",'Détail des projets'!C117) -> Réseau de transport de Longueuil | D117: =IF(LEN('Détail des projets'!G117)=0,"",'Détail des projets'!G117) -> 16-Montérégie | E117: =IF(LEN('Détail des projets'!K117)=0,"",'Détail des projets'!K117) -> 6274413
B118: =IF(LEN('Détail des projets'!B118)=0,"",'Détail des projets'!B118) -> Amélioration des services | C118: =IF(LEN('Détail des projets'!C118)=0,"",'Détail des projets'!C118) -> Conseil intermunicipal de transport de la Vallée du Richelieu | D118: =IF(LEN('Détail des projets'!G118)=0,"",'Détail des projets'!G118) -> 16-Montérégie | E118: =IF(LEN('Détail des projets'!K118)=0,"",'Détail des projets'!K118) -> 1540774
B119: =IF(LEN('Détail des projets'!B119)=0,"",'Détail des projets'!B119) -> Amélioration des services | C119: =IF(LEN('Détail des projets'!C119)=0,"",'Détail des projets'!C119) -> Conseil intermunicipal de transport des Laurentides | D119: =IF(LEN('Détail des projets'!G119)=0,"",'Détail des projets'!G119) -> 13-Laval | E119: =IF(LEN('Détail des projets'!K119)=0,"",'Détail des projets'!K119) -> 5523229
B120: =IF(LEN('Détail des projets'!B120)=0,"",'Détail des projets'!B120) -> Amélioration des services | C120: =IF(LEN('Détail des projets'!C120)=0,"",'Détail des projets'!C120) -> Ville de Granby | D120: =IF(LEN('Détail des projets'!G120)=0,"",'Détail des projets'!G120) -> 16-Montérégie | E120: =IF(LEN('Détail des projets'!K120)=0,"",'Détail des projets'!K120) -> 596603
B121: =IF(LEN('Détail des projets'!B121)=0,"",'Détail des projets'!B121) -> Amélioration des services | C121: =IF(LEN('Détail des projets'!C121)=0,"",'Détail des projets'!C121) -> Ville de Sainte-Julie | D121: =IF(LEN('Détail des projets'!G121)=0,"",'Détail des projets'!G121) -> 16-Montérégie | E121: =IF(LEN('Détail des projets'!K121)=0,"",'Détail des projets'!K121) -> 849157
B122: =IF(LEN('Détail des projets'!B122)=0,"",'Détail des projets'!B122) -> Amélioration des services | C122: =IF(LEN('Détail des projets'!C122)=0,"",'Détail des projets'!C122) -> Ville de Rimouski | D122: =IF(LEN('Détail des projets'!G122)=0,"",'Détail des projets'!G122) -> 01-Bas-Saint-Laurent | E122: =IF(LEN('Détail des projets'!K122)=0,"",'Détail des projets'!K122) -> 295974
B123: =IF(LEN('Détail des projets'!B123)=0,"",'Détail des projets'!B123) -> Amélioration des services | C123: =IF(LEN('Détail des projets'!C123)=0,"",'Détail des projets'!C123) -> Conseil régional de transport de Lanaudière | D123: =IF(LEN('Détail des projets'!G123)=0,"",'Détail des projets'!G123) -> 13-Laval | E123: =IF(LEN('Détail des projets'!K123)=0,"",'Détail des projets'!K123) -> 4225947
B124: =IF(LEN('Détail des projets'!B124)=0,"",'Détail des projets'!B124) -> Amélioration des services | C124: =IF(LEN('Détail des projets'!C124)=0,"",'Détail des projets'!C124) -> Société de transport de Laval | D124: =IF(LEN('Détail des projets'!G124)=0,"",'Détail des projets'!G124) -> 13-Laval | E124: =IF(LEN('Détail des projets'!K124)=0,"",'Détail des projets'!K124) -> 10197699
B125: =IF(LEN('Détail des projets'!B125)=0,"",'Détail des projets'!B125) -> Amélioration des services | C125: =IF(LEN('Détail des projets'!C125)=0,"",'Détail des projets'!C125) -> Société de transport du Saguenay | D125: =IF(LEN('Détail des projets'!G125)=0,"",'Détail des projets'!G125) -> 02-Saguenay- Lac-Saint-Jean | E125: =IF(LEN('Détail des projets'!K125)=0,"",'Détail des projets'!K125) -> 767377
B126: =IF(LEN('Détail des projets'!B126)=0,"",'Détail des projets'!B126) -> Amélioration des services | C126: =IF(LEN('Détail des projets'!C126)=0,"",'Détail des projets'!C126) -> Conseil intermunicipal de transport du Sud-Ouest | D126: =IF(LEN('Détail des projets'!G126)=0,"",'Détail des projets'!G126) -> 16-Montérégie | E126: =IF(LEN('Détail des projets'!K126)=0,"",'Détail des projets'!K126) -> 2169673
B127: =IF(LEN('Détail des projets'!B127)=0,"",'Détail des projets'!B127) -> Amélioration des services | C127: =IF(LEN('Détail des projets'!C127)=0,"",'Détail des projets'!C127) -> Société de transport de Lévis | D127: =IF(LEN('Détail des projets'!G127)=0,"",'Détail des projets'!G127) -> 12 Chaudières-Appalaches | E127: =IF(LEN('Détail des projets'!K127)=0,"",'Détail des projets'!K127) -> 2236926
B128: =IF(LEN('Détail des projets'!B128)=0,"",'Détail des projets'!B128) -> Amélioration des services | C128: =IF(LEN('Détail des projets'!C128)=0,"",'Détail des projets'!C128) -> Société de transport de Trois-Rivières | D128: =IF(LEN('Détail des projets'!G128)=0,"",'Détail des projets'!G128) -> 04-Mauricie | E128: =IF(LEN('Détail des projets'!K128)=0,"",'Détail des projets'!K128) -> 858332
B129: =IF(LEN('Détail des projets'!B129)=0,"",'Détail des projets'!B129) -> Amélioration des services | C129: =IF(LEN('Détail des projets'!C129)=0,"",'Détail des projets'!C129) -> Réseau de transport de la Capitale | D129: =IF(LEN('Détail des projets'!G129)=0,"",'Détail des projets'!G129) -> 03-Capitale-Nationale | E129: =IF(LEN('Détail des projets'!K129)=0,"",'Détail des projets'!K129) -> 12546950
B130: =IF(LEN('Détail des projets'!B130)=0,"",'Détail des projets'!B130) -> Amélioration des services | C130: =IF(LEN('Détail des projets'!C130)=0,"",'Détail des projets'!C130) -> Agence métropolitaine de transport | D130: =IF(LEN('Détail des projets'!G130)=0,"",'Détail des projets'!G130) -> 06-Montréal | E130: =IF(LEN('Détail des projets'!K130)=0,"",'Détail des projets'!K130) -> 9700627
B131: =IF(LEN('Détail des projets'!B131)=0,"",'Détail des projets'!B131) -> Amélioration des services | C131: =IF(LEN('Détail des projets'!C131)=0,"",'Détail des projets'!C131) -> Conseil intermunicipal de transport de Sorel-Varennes | D131: =IF(LEN('Détail des projets'!G131)=0,"",'Détail des projets'!G131) -> 16-Montérégie | E131: =IF(LEN('Détail des projets'!K131)=0,"",'Détail des projets'!K131) -> 1471801
B132: =IF(LEN('Détail des projets'!B132)=0,"",'Détail des projets'!B132) -> Amélioration des services | C132: =IF(LEN('Détail des projets'!C132)=0,"",'Détail des projets'!C132) -> Société de transport de l'Outaouais | D132: =IF(LEN('Détail des projets'!G132)=0,"",'Détail des projets'!G132) -> 07-outaouais | E132: =IF(LEN('Détail des projets'!K132)=0,"",'Détail des projets'!K132) -> 6850147
B133: =IF(LEN('Détail des projets'!B133)=0,"",'Détail des projets'!B133) -> Amélioration des services | C133: =IF(LEN('Détail des projets'!C133)=0,"",'Détail des projets'!C133) -> Conseil intermunicipal de transport de la Presqu'Île | D133: =IF(LEN('Détail des projets'!G133)=0,"",'Détail des projets'!G133) -> 16-Montérégie | E133: =IF(LEN('Détail des projets'!K133)=0,"",'Détail des projets'!K133) -> 1272414
B134: =IF(LEN('Détail des projets'!B134)=0,"",'Détail des projets'!B134) -> Amélioration des services | C134: =IF(LEN('Détail des projets'!C134)=0,"",'Détail des projets'!C134) -> Conseil intermunicipal de transport le Richelain | D134: =IF(LEN('Détail des projets'!G134)=0,"",'Détail des projets'!G134) -> 16-Montérégie | E134: =IF(LEN('Détail des projets'!K134)=0,"",'Détail des projets'!K134) -> 1392008
B135: =IF(LEN('Détail des projets'!B135)=0,"",'Détail des projets'!B135) -> Amélioration des services | C135: =IF(LEN('Détail des projets'!C135)=0,"",'Détail des projets'!C135) -> Conseil intermunicipal de transport de Roussillon | D135: =IF(LEN('Détail des projets'!G135)=0,"",'Détail des projets'!G135) -> 16-Montérégie | E135: =IF(LEN('Détail des projets'!K135)=0,"",'Détail des projets'!K135) -> 1296031
B136: =IF(LEN('Détail des projets'!B136)=0,"",'Détail des projets'!B136) -> Amélioration des services | C136: =IF(LEN('Détail des projets'!C136)=0,"",'Détail des projets'!C136) -> Ville de Saint-Jean-sur-Richelieu | D136: =IF(LEN('Détail des projets'!G136)=0,"",'Détail des projets'!G136) -> 16-Montérégie | E136: =IF(LEN('Détail des projets'!K136)=0,"",'Détail des projets'!K136) -> 599408
B137: =IF(LEN('Détail des projets'!B137)=0,"",'Détail des projets'!B137) -> Amélioration des services | C137: =IF(LEN('Détail des projets'!C137)=0,"",'Détail des projets'!C137) -> Société de transport de Sherbrooke | D137: =IF(LEN('Détail des projets'!G137)=0,"",'Détail des projets'!G137) -> 05-Estrie | E137: =IF(LEN('Détail des projets'!K137)=0,"",'Détail des projets'!K137) -> 980627
B138: =IF(LEN('Détail des projets'!B138)=0,"",'Détail des projets'!B138) -> Amélioration des services | C138: =IF(LEN('Détail des projets'!C138)=0,"",'Détail des projets'!C138) -> Ville de Victoriaville | D138: =IF(LEN('Détail des projets'!G138)=0,"",'Détail des projets'!G138) -> 17-Centre-du-Québec | E138: =IF(LEN('Détail des projets'!K138)=0,"",'Détail des projets'!K138) -> 84354
B139: =IF(LEN('Détail des projets'!B139)=0,"",'Détail des projets'!B139) -> Amélioration des services | C139: =IF(LEN('Détail des projets'!C139)=0,"",'Détail des projets'!C139) -> Conseil intermunicipal de transport du Haut St-Laurent | D139: =IF(LEN('Détail des projets'!G139)=0,"",'Détail des projets'!G139) -> 16-Montérégie | E139: =IF(LEN('Détail des projets'!K139)=0,"",'Détail des projets'!K139) -> 149337
B140: =IF(LEN('Détail des projets'!B140)=0,"",'Détail des projets'!B140) -> Amélioration des services | C140: =IF(LEN('Détail des projets'!C140)=0,"",'Détail des projets'!C140) -> Ville de Baie-Comeau | D140: =IF(LEN('Détail des projets'!G140)=0,"",'Détail des projets'!G140) -> 09-Côte-Nord | E140: =IF(LEN('Détail des projets'!K140)=0,"",'Détail des projets'!K140) -> 56910
B141: =IF(LEN('Détail des projets'!B141)=0,"",'Détail des projets'!B141) -> Amélioration des services | C141: =IF(LEN('Détail des projets'!C141)=0,"",'Détail des projets'!C141) -> Ville de Drummondville | D141: =IF(LEN('Détail des projets'!G141)=0,"",'Détail des projets'!G141) -> 17-Centre-du-Québec | E141: =IF(LEN('Détail des projets'!K141)=0,"",'Détail des projets'!K141) -> 227041
B142: =IF(LEN('Détail des projets'!B142)=0,"",'Détail des projets'!B142) -> Amélioration des services | C142: =IF(LEN('Détail des projets'!C142)=0,"",'Détail des projets'!C142) -> Ville de Rouyn-Noranda | D142: =IF(LEN('Détail des projets'!G142)=0,"",'Détail des projets'!G142) -> 08-Abitibi-Témiscamingue | E142: =IF(LEN('Détail des projets'!K142)=0,"",'Détail des projets'!K142) -> 51844
B143: =IF(LEN('Détail des projets'!B143)=0,"",'Détail des projets'!B143) -> Amélioration des services | C143: =IF(LEN('Détail des projets'!C143)=0,"",'Détail des projets'!C143) -> Ville de Salaberry-de-Valleyfield | D143: =IF(LEN('Détail des projets'!G143)=0,"",'Détail des projets'!G143) -> 16-Montérégie | E143: =IF(LEN('Détail des projets'!K143)=0,"",'Détail des projets'!K143) -> 6129
B144: =IF(LEN('Détail des projets'!B144)=0,"",'Détail des projets'!B144) -> Amélioration des services | C144: =IF(LEN('Détail des projets'!C144)=0,"",'Détail des projets'!C144) -> Ville de Val D'Or | D144: =IF(LEN('Détail des projets'!G144)=0,"",'Détail des projets'!G144) -> 08-Abitibi-Témiscamingue | E144: =IF(LEN('Détail des projets'!K144)=0,"",'Détail des projets'!K144) -> 61694
B145: =IF(LEN('Détail des projets'!B145)=0,"",'Détail des projets'!B145) -> Amélioration des services | C145: =IF(LEN('Détail des projets'!C145)=0,"",'Détail des projets'!C145) -> Conseil intermunicipal de transport Chambly-Richelieu-Carignan | D145: =IF(LEN('Détail des projets'!G145)=0,"",'Détail des projets'!G145) -> 16-Montérégie | E145: =IF(LEN('Détail des projets'!K145)=0,"",'Détail des projets'!K145) -> 1691567
B146: =IF(LEN('Détail des projets'!B146)=0,"",'Détail des projets'!B146) -> Amélioration des services | C146: =IF(LEN('Détail des projets'!C146)=0,"",'Détail des projets'!C146) -> Société de transport de Montréal | D146: =IF(LEN('Détail des projets'!G146)=0,"",'Détail des projets'!G146) -> 06-Montréal | E146: =IF(LEN('Détail des projets'!K146)=0,"",'Détail des projets'!K146) -> 61359142
B147: =IF(LEN('Détail des projets'!B147)=0,"",'Détail des projets'!B147) -> Amélioration des services | C147: =IF(LEN('Détail des projets'!C147)=0,"",'Détail des projets'!C147) -> Réseau de transport de Longueuil | D147: =IF(LEN('Détail des projets'!G147)=0,"",'Détail des projets'!G147) -> 16-Montérégie | E147: =IF(LEN('Détail des projets'!K147)=0,"",'Détail des projets'!K147) -> 6062206
B148: =IF(LEN('Détail des projets'!B148)=0,"",'Détail des projets'!B148) -> Amélioration des services | C148: =IF(LEN('Détail des projets'!C148)=0,"",'Détail des projets'!C148) -> Conseil intermunicipal de transport de la Vallée du Richelieu | D148: =IF(LEN('Détail des projets'!G148)=0,"",'Détail des projets'!G148) -> 16-Montérégie | E148: =IF(LEN('Détail des projets'!K148)=0,"",'Détail des projets'!K148) -> 1534135
B149: =IF(LEN('Détail des projets'!B149)=0,"",'Détail des projets'!B149) -> Amélioration des services | C149: =IF(LEN('Détail des projets'!C149)=0,"",'Détail des projets'!C149) -> Conseil intermunicipal de transport des Laurentides | D149: =IF(LEN('Détail des projets'!G149)=0,"",'Détail des projets'!G149) -> 13-Laval | E149: =IF(LEN('Détail des projets'!K149)=0,"",'Détail des projets'!K149) -> 5523229
B150: =IF(LEN('Détail des projets'!B150)=0,"",'Détail des projets'!B150) -> Amélioration des services | C150: =IF(LEN('Détail des projets'!C150)=0,"",'Détail des projets'!C150) -> Ville de Granby | D150: =IF(LEN('Détail des projets'!G150)=0,"",'Détail des projets'!G150) -> 16-Montérégie | E150: =IF(LEN('Détail des projets'!K150)=0,"",'Détail des projets'!K150) -> 708563
B151: =IF(LEN('Détail des projets'!B151)=0,"",'Détail des projets'!B151) -> Amélioration des services | C151: =IF(LEN('Détail des projets'!C151)=0,"",'Détail des projets'!C151) -> Ville de Sainte-Julie | D151: =IF(LEN('Détail des projets'!G151)=0,"",'Détail des projets'!G151) -> 16-Montérégie | E151: =IF(LEN('Détail des projets'!K151)=0,"",'Détail des projets'!K151) -> 776048
B152: =IF(LEN('Détail des projets'!B152)=0,"",'Détail des projets'!B152) -> Amélioration des services | C152: =IF(LEN('Détail des projets'!C152)=0,"",'Détail des projets'!C152) -> Ville de Rimouski | D152: =IF(LEN('Détail des projets'!G152)=0,"",'Détail des projets'!G152) -> 01-Bas-Saint-Laurent | E152: =IF(LEN('Détail des projets'!K152)=0,"",'Détail des projets'!K152) -> 182959
B153: =IF(LEN('Détail des projets'!B153)=0,"",'Détail des projets'!B153) -> Amélioration des services | C153: =IF(LEN('Détail des projets'!C153)=0,"",'Détail des projets'!C153) -> Conseil régional de transport de Lanaudière | D153: =IF(LEN('Détail des projets'!G153)=0,"",'Détail des projets'!G153) -> 13-Laval | E153: =IF(LEN('Détail des projets'!K153)=0,"",'Détail des projets'!K153) -> 3629287
B154: =IF(LEN('Détail des projets'!B154)=0,"",'Détail des projets'!B154) -> Amélioration des services | C154: =IF(LEN('Détail des projets'!C154)=0,"",'Détail des projets'!C154) -> Société de transport de Laval | D154: =IF(LEN('Détail des projets'!G154)=0,"",'Détail des projets'!G154) -> 13-Laval | E154: =IF(LEN('Détail des projets'!K154)=0,"",'Détail des projets'!K154) -> 10197699
B155: =IF(LEN('Détail des projets'!B155)=0,"",'Détail des projets'!B155) -> Amélioration des services | C155: =IF(LEN('Détail des projets'!C155)=0,"",'Détail des projets'!C155) -> Société de transport du Saguenay | D155: =IF(LEN('Détail des projets'!G155)=0,"",'Détail des projets'!G155) -> 02-Saguenay- Lac-Saint-Jean | E155: =IF(LEN('Détail des projets'!K155)=0,"",'Détail des projets'!K155) -> 1148242
B156: =IF(LEN('Détail des projets'!B156)=0,"",'Détail des projets'!B156) -> Amélioration des services | C156: =IF(LEN('Détail des projets'!C156)=0,"",'Détail des projets'!C156) -> Conseil intermunicipal de transport du Sud-Ouest | D156: =IF(LEN('Détail des projets'!G156)=0,"",'Détail des projets'!G156) -> 16-Montérégie | E156: =IF(LEN('Détail des projets'!K156)=0,"",'Détail des projets'!K156) -> 3266496
B157: =IF(LEN('Détail des projets'!B157)=0,"",'Détail des projets'!B157) -> Amélioration des services | C157: =IF(LEN('Détail des projets'!C157)=0,"",'Détail des projets'!C157) -> Société de transport de Lévis | D157: =IF(LEN('Détail des projets'!G157)=0,"",'Détail des projets'!G157) -> 12 Chaudières-Appalaches | E157: =IF(LEN('Détail des projets'!K157)=0,"",'Détail des projets'!K157) -> 2656640
B158: =IF(LEN('Détail des projets'!B158)=0,"",'Détail des projets'!B158) -> Amélioration des services | C158: =IF(LEN('Détail des projets'!C158)=0,"",'Détail des projets'!C158) -> Société de transport de Trois-Rivières | D158: =IF(LEN('Détail des projets'!G158)=0,"",'Détail des projets'!G158) -> 04-Mauricie | E158: =IF(LEN('Détail des projets'!K158)=0,"",'Détail des projets'!K158) -> 1321734
B159: =IF(LEN('Détail des projets'!B159)=0,"",'Détail des projets'!B159) -> Amélioration des services | C159: =IF(LEN('Détail des projets'!C159)=0,"",'Détail des projets'!C159) -> Réseau de transport de la Capitale | D159: =IF(LEN('Détail des projets'!G159)=0,"",'Détail des projets'!G159) -> 03-Capitale-Nationale | E159: =IF(LEN('Détail des projets'!K159)=0,"",'Détail des projets'!K159) -> 12958189
B160: =IF(LEN('Détail des projets'!B160)=0,"",'Détail des projets'!B160) -> Amélioration des services | C160: =IF(LEN('Détail des projets'!C160)=0,"",'Détail des projets'!C160) -> Agence métropolitaine de transport | D160: =IF(LEN('Détail des projets'!G160)=0,"",'Détail des projets'!G160) -> 06-Montréal | E160: =IF(LEN('Détail des projets'!K160)=0,"",'Détail des projets'!K160) -> 8000000
B161: =IF(LEN('Détail des projets'!B161)=0,"",'Détail des projets'!B161) -> Amélioration des services | C161: =IF(LEN('Détail des projets'!C161)=0,"",'Détail des projets'!C161) -> Conseil intermunicipal de transport de Sorel-Varennes | D161: =IF(LEN('Détail des projets'!G161)=0,"",'Détail des projets'!G161) -> 16-Montérégie | E161: =IF(LEN('Détail des projets'!K161)=0,"",'Détail des projets'!K161) -> 1427203
B162: =IF(LEN('Détail des projets'!B162)=0,"",'Détail des projets'!B162) -> Amélioration des services | C162: =IF(LEN('Détail des projets'!C162)=0,"",'Détail des projets'!C162) -> Société de transport de l'Outaouais | D162: =IF(LEN('Détail des projets'!G162)=0,"",'Détail des projets'!G162) -> 07-outaouais | E162: =IF(LEN('Détail des projets'!K162)=0,"",'Détail des projets'!K162) -> 5756949
B163: =IF(LEN('Détail des projets'!B163)=0,"",'Détail des projets'!B163) -> Amélioration des services | C163: =IF(LEN('Détail des projets'!C163)=0,"",'Détail des projets'!C163) -> Conseil intermunicipal de transport de la Presqu'Île | D163: =IF(LEN('Détail des projets'!G163)=0,"",'Détail des projets'!G163) -> 16-Montérégie | E163: =IF(LEN('Détail des projets'!K163)=0,"",'Détail des projets'!K163) -> 1255654
B164: =IF(LEN('Détail des projets'!B164)=0,"",'Détail des projets'!B164) -> Amélioration des services | C164: =IF(LEN('Détail des projets'!C164)=0,"",'Détail des projets'!C164) -> Conseil intermunicipal de transport le Richelain | D164: =IF(LEN('Détail des projets'!G164)=0,"",'Détail des projets'!G164) -> 16-Montérégie | E164: =IF(LEN('Détail des projets'!K164)=0,"",'Détail des projets'!K164) -> 1351184
B165: =IF(LEN('Détail des projets'!B165)=0,"",'Détail des projets'!B165) -> Amélioration des services | C165: =IF(LEN('Détail des projets'!C165)=0,"",'Détail des projets'!C165) -> Conseil intermunicipal de transport de Roussillon | D165: =IF(LEN('Détail des projets'!G165)=0,"",'Détail des projets'!G165) -> 16-Montérégie | E165: =IF(LEN('Détail des projets'!K165)=0,"",'Détail des projets'!K165) -> 1296031
B166: =IF(LEN('Détail des projets'!B166)=0,"",'Détail des projets'!B166) -> Amélioration des services | C166: =IF(LEN('Détail des projets'!C166)=0,"",'Détail des projets'!C166) -> Ville de Saint-Jean-sur-Richelieu | D166: =IF(LEN('Détail des projets'!G166)=0,"",'Détail des projets'!G166) -> 16-Montérégie | E166: =IF(LEN('Détail des projets'!K166)=0,"",'Détail des projets'!K166) -> 599408
B167: =IF(LEN('Détail des projets'!B167)=0,"",'Détail des projets'!B167) -> Amélioration des services | C167: =IF(LEN('Détail des projets'!C167)=0,"",'Détail des projets'!C167) -> Société de transport de Sherbrooke | D167: =IF(LEN('Détail des projets'!G167)=0,"",'Détail des projets'!G167) -> 05-Estrie | E167: =IF(LEN('Détail des projets'!K167)=0,"",'Détail des projets'!K167) -> 1286825
B168: =IF(LEN('Détail des projets'!B168)=0,"",'Détail des projets'!B168) -> Amélioration des services | C168: =IF(LEN('Détail des projets'!C168)=0,"",'Détail des projets'!C168) -> Ville de Victoriaville | D168: =IF(LEN('Détail des projets'!G168)=0,"",'Détail des projets'!G168) -> 17-Centre-du-Québec | E168: =IF(LEN('Détail des projets'!K168)=0,"",'Détail des projets'!K168) -> 29314
B169: =IF(LEN('Détail des projets'!B169)=0,"",'Détail des projets'!B169) -> Amélioration des services | C169: =IF(LEN('Détail des projets'!C169)=0,"",'Détail des projets'!C169) -> Conseil intermunicipal de transport du Haut St-Laurent | D169: =IF(LEN('Détail des projets'!G169)=0,"",'Détail des projets'!G169) -> 16-Montérégie | E169: =IF(LEN('Détail des projets'!K169)=0,"",'Détail des projets'!K169) -> 315683
B170: =IF(LEN('Détail des projets'!B170)=0,"",'Détail des projets'!B170) -> Amélioration des services | C170: =IF(LEN('Détail des projets'!C170)=0,"",'Détail des projets'!C170) -> Ville de Baie-Comeau | D170: =IF(LEN('Détail des projets'!G170)=0,"",'Détail des projets'!G170) -> 09-Côte-Nord | E170: =IF(LEN('Détail des projets'!K170)=0,"",'Détail des projets'!K170) -> 49880
B171: =IF(LEN('Détail des projets'!B171)=0,"",'Détail des projets'!B171) -> Amélioration des services | C171: =IF(LEN('Détail des projets'!C171)=0,"",'Détail des projets'!C171) -> Ville de Drummondville | D171: =IF(LEN('Détail des projets'!G171)=0,"",'Détail des projets'!G171) -> 17-Centre-du-Québec | E171: =IF(LEN('Détail des projets'!K171)=0,"",'Détail des projets'!K171) -> 395412
B172: =IF(LEN('Détail des projets'!B172)=0,"",'Détail des projets'!B172) -> Amélioration des services | C172: =IF(LEN('Détail des projets'!C172)=0,"",'Détail des projets'!C172) -> Ville de Rouyn-Noranda | D172: =IF(LEN('Détail des projets'!G172)=0,"",'Détail des projets'!G172) -> 08-Abitibi-Témiscamingue | E172: =IF(LEN('Détail des projets'!K172)=0,"",'Détail des projets'!K172) -> 51797
B173: =IF(LEN('Détail des projets'!B173)=0,"",'Détail des projets'!B173) -> Amélioration des services | C173: =IF(LEN('Détail des projets'!C173)=0,"",'Détail des projets'!C173) -> Ville de Salaberry-de-Valleyfield | D173: =IF(LEN('Détail des projets'!G173)=0,"",'Détail des projets'!G173) -> 16-Montérégie | E173: =IF(LEN('Détail des projets'!K173)=0,"",'Détail des projets'!K173) -> 22864
B174: =IF(LEN('Détail des projets'!B174)=0,"",'Détail des projets'!B174) -> Amélioration des services | C174: =IF(LEN('Détail des projets'!C174)=0,"",'Détail des projets'!C174) -> Ville de Sept-Iles | D174: =IF(LEN('Détail des projets'!G174)=0,"",'Détail des projets'!G174) -> 09-Côte-Nord | E174: =IF(LEN('Détail des projets'!K174)=0,"",'Détail des projets'!K174) -> 6405
B175: =IF(LEN('Détail des projets'!B175)=0,"",'Détail des projets'!B175) -> Amélioration des services | C175: =IF(LEN('Détail des projets'!C175)=0,"",'Détail des projets'!C175) -> Ville de Val D'Or | D175: =IF(LEN('Détail des projets'!G175)=0,"",'Détail des projets'!G175) -> 08-Abitibi-Témiscamingue | E175: =IF(LEN('Détail des projets'!K175)=0,"",'Détail des projets'!K175) -> 54438
B176: =IF(LEN('Détail des projets'!B176)=0,"",'Détail des projets'!B176) -> Amélioration des services | C176: =IF(LEN('Détail des projets'!C176)=0,"",'Détail des projets'!C176) -> Réseau de transport de la Capitale | D176: =IF(LEN('Détail des projets'!G176)=0,"",'Détail des projets'!G176) -> 03-Capitale-Nationale | E176: =IF(LEN('Détail des projets'!K176)=0,"",'Détail des projets'!K176) -> 11560973
B177: =IF(LEN('Détail des projets'!B177)=0,"",'Détail des projets'!B177) -> Amélioration des services | C177: =IF(LEN('Détail des projets'!C177)=0,"",'Détail des projets'!C177) -> Société de transport de Lévis | D177: =IF(LEN('Détail des projets'!G177)=0,"",'Détail des projets'!G177) -> 12 Chaudières-Appalaches | E177: =IF(LEN('Détail des projets'!K177)=0,"",'Détail des projets'!K177) -> 2367274
B178: =IF(LEN('Détail des projets'!B178)=0,"",'Détail des projets'!B178) -> Amélioration des services | C178: =IF(LEN('Détail des projets'!C178)=0,"",'Détail des projets'!C178) -> Société de transport de l'Outaouais | D178: =IF(LEN('Détail des projets'!G178)=0,"",'Détail des projets'!G178) -> 07-Outaouais | E178: =IF(LEN('Détail des projets'!K178)=0,"",'Détail des projets'!K178) -> 9070723
B179: =IF(LEN('Détail des projets'!B179)=0,"",'Détail des projets'!B179) -> Amélioration des services | C179: =IF(LEN('Détail des projets'!C179)=0,"",'Détail des projets'!C179) -> Société de transport de Sherbrooke | D179: =IF(LEN('Détail des projets'!G179)=0,"",'Détail des projets'!G179) -> 05-Estrie | E179: =IF(LEN('Détail des projets'!K179)=0,"",'Détail des projets'!K179) -> 1134591
B180: =IF(LEN('Détail des projets'!B180)=0,"",'Détail des projets'!B180) -> Amélioration des services | C180: =IF(LEN('Détail des projets'!C180)=0,"",'Détail des projets'!C180) -> Agence métropolitaine de transport | D180: =IF(LEN('Détail des projets'!G180)=0,"",'Détail des projets'!G180) -> 06-Montréal | E180: =IF(LEN('Détail des projets'!K180)=0,"",'Détail des projets'!K180) -> 101775306
B181: =IF(LEN('Détail des projets'!B181)=0,"",'Détail des projets'!B181) -> Amélioration des services | C181: =IF(LEN('Détail des projets'!C181)=0,"",'Détail des projets'!C181) -> Ville de Baie-Comeau | D181: =IF(LEN('Détail des projets'!G181)=0,"",'Détail des projets'!G181) -> 09-Côte-Nord | E181: =IF(LEN('Détail des projets'!K181)=0,"",'Détail des projets'!K181) -> 75489
B182: =IF(LEN('Détail des projets'!B182)=0,"",'Détail des projets'!B182) -> Amélioration des services | C182: =IF(LEN('Détail des projets'!C182)=0,"",'Détail des projets'!C182) -> Ville de Drummondville | D182: =IF(LEN('Détail des projets'!G182)=0,"",'Détail des projets'!G182) -> 17-Centre-du-Québec | E182: =IF(LEN('Détail des projets'!K182)=0,"",'Détail des projets'!K182) -> 304285
B183: =IF(LEN('Détail des projets'!B183)=0,"",'Détail des projets'!B183) -> Amélioration des services | C183: =IF(LEN('Détail des projets'!C183)=0,"",'Détail des projets'!C183) -> Ville de Salaberry-de-Valleyfield | D183: =IF(LEN('Détail des projets'!G183)=0,"",'Détail des projets'!G183) -> 16-Montérégie | E183: =IF(LEN('Détail des projets'!K183)=0,"",'Détail des projets'!K183) -> 44267
B184: =IF(LEN('Détail des projets'!B184)=0,"",'Détail des projets'!B184) -> Amélioration des services | C184: =IF(LEN('Détail des projets'!C184)=0,"",'Détail des projets'!C184) -> Ville de Val D'Or | D184: =IF(LEN('Détail des projets'!G184)=0,"",'Détail des projets'!G184) -> 08-Abitibi-Témiscamingue | E184: =IF(LEN('Détail des projets'!K184)=0,"",'Détail des projets'!K184) -> 79051
B185: =IF(LEN('Détail des projets'!B185)=0,"",'Détail des projets'!B185) -> Amélioration des services | C185: =IF(LEN('Détail des projets'!C185)=0,"",'Détail des projets'!C185) -> Ville de Granby | D185: =IF(LEN('Détail des projets'!G185)=0,"",'Détail des projets'!G185) -> 16-Montérégie | E185: =IF(LEN('Détail des projets'!K185)=0,"",'Détail des projets'!K185) -> 613775
B186: =IF(LEN('Détail des projets'!B186)=0,"",'Détail des projets'!B186) -> Amélioration des services | C186: =IF(LEN('Détail des projets'!C186)=0,"",'Détail des projets'!C186) -> Ville de Rouyn-Noranda | D186: =IF(LEN('Détail des projets'!G186)=0,"",'Détail des projets'!G186) -> 08-Abitibi-Témiscamingue | E186: =IF(LEN('Détail des projets'!K186)=0,"",'Détail des projets'!K186) -> 47150
B187: =IF(LEN('Détail des projets'!B187)=0,"",'Détail des projets'!B187) -> Amélioration des services | C187: =IF(LEN('Détail des projets'!C187)=0,"",'Détail des projets'!C187) -> Ville de Rimouski | D187: =IF(LEN('Détail des projets'!G187)=0,"",'Détail des projets'!G187) -> 01-Bas-Saint-Laurent | E187: =IF(LEN('Détail des projets'!K187)=0,"",'Détail des projets'!K187) -> 304237
B188: =IF(LEN('Détail des projets'!B188)=0,"",'Détail des projets'!B188) -> Amélioration des services | C188: =IF(LEN('Détail des projets'!C188)=0,"",'Détail des projets'!C188) -> Ville de Victoriaville | D188: =IF(LEN('Détail des projets'!G188)=0,"",'Détail des projets'!G188) -> 17-Centre-du-Québec | E188: =IF(LEN('Détail des projets'!K188)=0,"",'Détail des projets'!K188) -> 249252
B189: =IF(LEN('Détail des projets'!B189)=0,"",'Détail des projets'!B189) -> Amélioration des services | C189: =IF(LEN('Détail des projets'!C189)=0,"",'Détail des projets'!C189) -> Société de transport du Saguenay | D189: =IF(LEN('Détail des projets'!G189)=0,"",'Détail des projets'!G189) -> 02-Saguenay- Lac-Saint-Jean | E189: =IF(LEN('Détail des projets'!K189)=0,"",'Détail des projets'!K189) -> 585592
B190: =IF(LEN('Détail des projets'!B190)=0,"",'Détail des projets'!B190) -> Amélioration des services | C190: =IF(LEN('Détail des projets'!C190)=0,"",'Détail des projets'!C190) -> Ville de Saint-Georges | D190: =IF(LEN('Détail des projets'!G190)=0,"",'Détail des projets'!G190) -> 12-Chaudières-Appalaches | E190: =IF(LEN('Détail des projets'!K190)=0,"",'Détail des projets'!K190) -> 33908
B191: =IF(LEN('Détail des projets'!B191)=0,"",'Détail des projets'!B191) -> Amélioration des services | C191: =IF(LEN('Détail des projets'!C191)=0,"",'Détail des projets'!C191) -> Ville de Saint-Jean-sur-Richelieu | D191: =IF(LEN('Détail des projets'!G191)=0,"",'Détail des projets'!G191) -> 16-Montérégie | E191: =IF(LEN('Détail des projets'!K191)=0,"",'Détail des projets'!K191) -> 1488930
B192: =IF(LEN('Détail des projets'!B192)=0,"",'Détail des projets'!B192) -> Amélioration des services | C192: =IF(LEN('Détail des projets'!C192)=0,"",'Détail des projets'!C192) -> Société de transport de Trois-Rivières | D192: =IF(LEN('Détail des projets'!G192)=0,"",'Détail des projets'!G192) -> 04-Mauricie | E192: =IF(LEN('Détail des projets'!K192)=0,"",'Détail des projets'!K192) -> 759146
B193: =IF(LEN('Détail des projets'!B193)=0,"",'Détail des projets'!B193) -> Amélioration des services | C193: =IF(LEN('Détail des projets'!C193)=0,"",'Détail des projets'!C193) -> Ville de Sept-Iles | D193: =IF(LEN('Détail des projets'!G193)=0,"",'Détail des projets'!G193) -> 09-Côte-Nord | E193: =IF(LEN('Détail des projets'!K193)=0,"",'Détail des projets'!K193) -> 3156
B194: =IF(LEN('Détail des projets'!B194)=0,"",'Détail des projets'!B194) -> Amélioration des services | C194: =IF(LEN('Détail des projets'!C194)=0,"",'Détail des projets'!C194) -> MRC d'Autray | D194: =IF(LEN('Détail des projets'!G194)=0,"",'Détail des projets'!G194) -> 14-Lanaudière | E194: =IF(LEN('Détail des projets'!K194)=0,"",'Détail des projets'!K194) -> 2895
B195: =IF(LEN('Détail des projets'!B195)=0,"",'Détail des projets'!B195) -> Amélioration des services | C195: =IF(LEN('Détail des projets'!C195)=0,"",'Détail des projets'!C195) -> Autorité régionale de transport métropolitain | D195: =IF(LEN('Détail des projets'!G195)=0,"",'Détail des projets'!G195) -> 06-Montréal | E195: =IF(LEN('Détail des projets'!K195)=0,"",'Détail des projets'!K195) -> 159528605
B196: =IF(LEN('Détail des projets'!B196)=0,"",'Détail des projets'!B196) -> Amélioration des services | C196: =IF(LEN('Détail des projets'!C196)=0,"",'Détail des projets'!C196) -> Réseau de transport de la Capitale | D196: =IF(LEN('Détail des projets'!G196)=0,"",'Détail des projets'!G196) -> 03-Capitale-Nationale | E196: =IF(LEN('Détail des projets'!K196)=0,"",'Détail des projets'!K196) -> 14719581
B197: =IF(LEN('Détail des projets'!B197)=0,"",'Détail des projets'!B197) -> Amélioration des services | C197: =IF(LEN('Détail des projets'!C197)=0,"",'Détail des projets'!C197) -> Société de transport de Lévis | D197: =IF(LEN('Détail des projets'!G197)=0,"",'Détail des projets'!G197) -> 12-Chaudières-Appalaches | E197: =IF(LEN('Détail des projets'!K197)=0,"",'Détail des projets'!K197) -> 3391806
B198: =IF(LEN('Détail des projets'!B198)=0,"",'Détail des projets'!B198) -> Amélioration des services | C198: =IF(LEN('Détail des projets'!C198)=0,"",'Détail des projets'!C198) -> Société de transport de l'Outaouais | D198: =IF(LEN('Détail des projets'!G198)=0,"",'Détail des projets'!G198) -> 07-Outaouais | E198: =IF(LEN('Détail des projets'!K198)=0,"",'Détail des projets'!K198) -> 14176116
B199: =IF(LEN('Détail des projets'!B199)=0,"",'Détail des projets'!B199) -> Amélioration des services | C199: =IF(LEN('Détail des projets'!C199)=0,"",'Détail des projets'!C199) -> Société de transport de Sherbrooke | D199: =IF(LEN('Détail des projets'!G199)=0,"",'Détail des projets'!G199) -> 05-Estrie | E199: =IF(LEN('Détail des projets'!K199)=0,"",'Détail des projets'!K199) -> 2531620
B200: =IF(LEN('Détail des projets'!B200)=0,"",'Détail des projets'!B200) -> Amélioration des services | C200: =IF(LEN('Détail des projets'!C200)=0,"",'Détail des projets'!C200) -> Société de transport de Trois-Rivières | D200: =IF(LEN('Détail des projets'!G200)=0,"",'Détail des projets'!G200) -> 04-Mauricie | E200: =IF(LEN('Détail des projets'!K200)=0,"",'Détail des projets'!K200) -> 719513
B201: =IF(LEN('Détail des projets'!B201)=0,"",'Détail des projets'!B201) -> Amélioration des services | C201: =IF(LEN('Détail des projets'!C201)=0,"",'Détail des projets'!C201) -> Société de transport du Saguenay | D201: =IF(LEN('Détail des projets'!G201)=0,"",'Détail des projets'!G201) -> 02-Saguenay- Lac-Saint-Jean | E201: =IF(LEN('Détail des projets'!K201)=0,"",'Détail des projets'!K201) -> 894185
B202: =IF(LEN('Détail des projets'!B202)=0,"",'Détail des projets'!B202) -> Amélioration des services | C202: =IF(LEN('Détail des projets'!C202)=0,"",'Détail des projets'!C202) -> Ville de Baie-Comeau | D202: =IF(LEN('Détail des projets'!G202)=0,"",'Détail des projets'!G202) -> 09-Côte-Nord | E202: =IF(LEN('Détail des projets'!K202)=0,"",'Détail des projets'!K202) -> 149059
B203: =IF(LEN('Détail des projets'!B203)=0,"",'Détail des projets'!B203) -> Amélioration des services | C203: =IF(LEN('Détail des projets'!C203)=0,"",'Détail des projets'!C203) -> Ville de Drummondville | D203: =IF(LEN('Détail des projets'!G203)=0,"",'Détail des projets'!G203) -> 17-Centre-du-Québec | E203: =IF(LEN('Détail des projets'!K203)=0,"",'Détail des projets'!K203) -> 1047785
B204: =IF(LEN('Détail des projets'!B204)=0,"",'Détail des projets'!B204) -> Amélioration des services | C204: =IF(LEN('Détail des projets'!C204)=0,"",'Détail des projets'!C204) -> Ville de Granby | D204: =IF(LEN('Détail des projets'!G204)=0,"",'Détail des projets'!G204) -> 16-Montérégie | E204: =IF(LEN('Détail des projets'!K204)=0,"",'Détail des projets'!K204) -> 802049
B205: =IF(LEN('Détail des projets'!B205)=0,"",'Détail des projets'!B205) -> Amélioration des services | C205: =IF(LEN('Détail des projets'!C205)=0,"",'Détail des projets'!C205) -> Ville de Rimouski | D205: =IF(LEN('Détail des projets'!G205)=0,"",'Détail des projets'!G205) -> 01-Bas-Saint-Laurent | E205: =IF(LEN('Détail des projets'!K205)=0,"",'Détail des projets'!K205) -> 457114
B206: =IF(LEN('Détail des projets'!B206)=0,"",'Détail des projets'!B206) -> Amélioration des services | C206: =IF(LEN('Détail des projets'!C206)=0,"",'Détail des projets'!C206) -> Ville de Rouyn-Noranda | D206: =IF(LEN('Détail des projets'!G206)=0,"",'Détail des projets'!G206) -> 08-Abitibi-Témiscamingue | E206: =IF(LEN('Détail des projets'!K206)=0,"",'Détail des projets'!K206) -> 128041
B207: =IF(LEN('Détail des projets'!B207)=0,"",'Détail des projets'!B207) -> Amélioration des services | C207: =IF(LEN('Détail des projets'!C207)=0,"",'Détail des projets'!C207) -> Ville de Saint-Georges | D207: =IF(LEN('Détail des projets'!G207)=0,"",'Détail des projets'!G207) -> 12-Chaudières-Appalaches | E207: =IF(LEN('Détail des projets'!K207)=0,"",'Détail des projets'!K207) -> 277976
B208: =IF(LEN('Détail des projets'!B208)=0,"",'Détail des projets'!B208) -> Amélioration des services | C208: =IF(LEN('Détail des projets'!C208)=0,"",'Détail des projets'!C208) -> Ville de Saint-Jean-sur-Richelieu | D208: =IF(LEN('Détail des projets'!G208)=0,"",'Détail des projets'!G208) -> 16-Montérégie | E208: =IF(LEN('Détail des projets'!K208)=0,"",'Détail des projets'!K208) -> 3019956
B209: =IF(LEN('Détail des projets'!B209)=0,"",'Détail des projets'!B209) -> Amélioration des services | C209: =IF(LEN('Détail des projets'!C209)=0,"",'Détail des projets'!C209) -> Ville de Salaberry-de-Valleyfield | D209: =IF(LEN('Détail des projets'!G209)=0,"",'Détail des projets'!G209) -> 16-Montérégie | E209: =IF(LEN('Détail des projets'!K209)=0,"",'Détail des projets'!K209) -> 402440
B210: =IF(LEN('Détail des projets'!B210)=0,"",'Détail des projets'!B210) -> Amélioration des services | C210: =IF(LEN('Détail des projets'!C210)=0,"",'Détail des projets'!C210) -> Ville de Val-d'Or | D210: =IF(LEN('Détail des projets'!G210)=0,"",'Détail des projets'!G210) -> 08-Abitibi-Témiscamingue | E210: =IF(LEN('Détail des projets'!K210)=0,"",'Détail des projets'!K210) -> 119896
B211: =IF(LEN('Détail des projets'!B211)=0,"",'Détail des projets'!B211) -> Amélioration des services | C211: =IF(LEN('Détail des projets'!C211)=0,"",'Détail des projets'!C211) -> Ville de Victoriaville | D211: =IF(LEN('Détail des projets'!G211)=0,"",'Détail des projets'!G211) -> 17-Centre-du-Québec | E211: =IF(LEN('Détail des projets'!K211)=0,"",'Détail des projets'!K211) -> 590197
B212: =IF(LEN('Détail des projets'!B212)=0,"",'Détail des projets'!B212) ->  | C212: =IF(LEN('Détail des projets'!C212)=0,"",'Détail des projets'!C212) ->  | D212: =IF(LEN('Détail des projets'!G212)=0,"",'Détail des projets'!G212) ->  | E212: =IF(LEN('Détail des projets'!K212)=0,"",'Détail des projets'!K212) -> 
B213: =IF(LEN('Détail des projets'!B213)=0,"",'Détail des projets'!B213) ->  | C213: =IF(LEN('Détail des projets'!C213)=0,"",'Détail des projets'!C213) ->  | D213: =IF(LEN('Détail des projets'!G213)=0,"",'Détail des projets'!G213) ->  | E213: =IF(LEN('Détail des projets'!K213)=0,"",'Détail des projets'!K213) -> 
B214: =IF(LEN('Détail des projets'!B214)=0,"",'Détail des projets'!B214) ->  | C214: =IF(LEN('Détail des projets'!C214)=0,"",'Détail des projets'!C214) ->  | D214: =IF(LEN('Détail des projets'!G214)=0,"",'Détail des projets'!G214) ->  | E214: =IF(LEN('Détail des projets'!K214)=0,"",'Détail des projets'!K214) -> 
B215: =IF(LEN('Détail des projets'!B215)=0,"",'Détail des projets'!B215) ->  | C215: =IF(LEN('Détail des projets'!C215)=0,"",'Détail des projets'!C215) ->  | D215: =IF(LEN('Détail des projets'!G215)=0,"",'Détail des projets'!G215) ->  | E215: =IF(LEN('Détail des projets'!K215)=0,"",'Détail des projets'!K215) -> 
... 66 more rows

Sheet Indicateurs
B2: =Utilitaire!E8 -> Plan d'action 2013-2020 sur les changements climatiques
B3: ="Action " & Accueil!D58 -> Action en cours
B4: =Accueil!D55 -> 13.7.1 | C4: =Accueil!E55 -> Programme d'aide au développement du transport collectif (PADTC) - Amélioration des services de transport en commun (urbain)
B5: Ministère porteur: | C5: =Accueil!$D$65 -> MTQ
B6: Indicateurs
B20: Informations en date du : | E20: 2022-03-31
B22: INDICATEURS DE PERFORMANCE | H22: =IF(OR(AND(MONTH(#REF!)>6,YEAR(#REF!)=VALUE(MID(G23,1,4))),YEAR(#REF!)>VALUE(MID(G23,1,4))),"Réel","Prévu") ->  | I22: =IF(OR(AND(MONTH(#REF!)>6,YEAR(#REF!)=VALUE(MID(H23,1,4))),YEAR(#REF!)>VALUE(MID(H23,1,4))),"Réel","Prévu") ->  | J22: =IF(OR(AND(MONTH(#REF!)>6,YEAR(#REF!)=VALUE(MID(I23,1,4))),YEAR(#REF!)>VALUE(MID(I23,1,4))),"Réel","Prévu") ->  | K22: =IF(OR(AND(MONTH(#REF!)>6,YEAR(#REF!)=VALUE(MID(J23,1,4))),YEAR(#REF!)>VALUE(MID(J23,1,4))),"Réel","Prévu") ->  | L22: =IF(OR(AND(MONTH(#REF!)>6,YEAR(#REF!)=VALUE(MID(K23,1,4))),YEAR(#REF!)>VALUE(MID(K23,1,4))),"Réel","Prévu") ->  | M22: =IF(OR(AND(MONTH(#REF!)>6,YEAR(#REF!)=VALUE(MID(L23,1,4))),YEAR(#REF!)>VALUE(MID(L23,1,4))),"Réel","Prévu") ->  | N22: =IF(OR(AND(MONTH(#REF!)>6,YEAR(#REF!)=VALUE(MID(M23,1,4))),YEAR(#REF!)>VALUE(MID(M23,1,4))),"Réel","Prévu") ->  | O22: =IF(OR(AND(MONTH(#REF!)>6,YEAR(#REF!)=VALUE(MID(N23,1,4))),YEAR(#REF!)>VALUE(MID(N23,1,4))),"Réel","Prévu") ->  | P22: =IF(OR(AND(MONTH(#REF!)>6,YEAR(#REF!)=VALUE(MID(O23,1,4))),YEAR(#REF!)>VALUE(MID(O23,1,4))),"Réel","Prévu") ->  | Q22: =IF(OR(AND(MONTH(#REF!)>6,YEAR(#REF!)=VALUE(MID(P23,1,4))),YEAR(#REF!)>VALUE(MID(P23,1,4))),"Réel","Prévu") ->  | S22: =IF(OR(AND(MONTH(#REF!)>6,YEAR(#REF!)=VALUE(MID(Q23,1,4))),YEAR(#REF!)>VALUE(MID(Q23,1,4))),"Réel","Prévu") ->  | T22: =MONTH(#REF!) -> 
B23: Cible | C23: Unité de mesure | D23: Année prévue d'atteinte de la cible | E23: Description de l'indicateur | F23: Type d'indicateur | G23: 2013-2014 | H23: 2014-2015 | I23: 2015-2016 | J23: 2016-2017 | K23: 2017-2018 | L23: 2018-2019 | M23: 2019-2020 | N23: 2020-2021 | O23: 2021-2022 | P23: 2022-2023 | Q23: 2023-2024 | R23: 2024-2025 | S23: RÉSULTAT À COMPARER AVEC LA CIBLE | T23: Pourcentage d'atteinte de la cible | U23: Commentaires sur les résultats
G24: Réel | H24: Réel | I24: Réel | J24: Réel | K24: Réel | L24: Réel | M24: Réel | N24: Réel | O24: Réel | P24: Prévu | Q24: Prévu | R24: Prévu | U24: (facultatif)
A25: 1 | G25: =PourcentageAvancementJbf(Utilitaire!C229,'Détail des projets'!O281,1000000*Accueil!$D$67) -> 0 | H25: =PourcentageAvancementJbf(Utilitaire!D229,'Détail des projets'!P281,1000000*Accueil!$D$67) -> 0.09428976448 | I25: =PourcentageAvancementJbf(Utilitaire!E229,'Détail des projets'!Q281,1000000*Accueil!$D$67) -> 0.1189793781 | J25: =PourcentageAvancementJbf(Utilitaire!F229,'Détail des projets'!R281,1000000*Accueil!$D$67) -> 0.08287815076 | K25: =PourcentageAvancementJbf(Utilitaire!G229,'Détail des projets'!S281,1000000*Accueil!$D$67) -> 0.04904303854 | L25: =PourcentageAvancementJbf(Utilitaire!H229,'Détail des projets'!T281,1000000*Accueil!$D$67) -> 0.1286313389 | M25: =PourcentageAvancementJbf(Utilitaire!I229,'Détail des projets'!U281,1000000*Accueil!$D$67) -> 0.05858099491 | N25: =PourcentageAvancementJbf(Utilitaire!J229,'Détail des projets'!V281,1000000*Accueil!$D$67) -> 0.06123164667 | O25: =PourcentageAvancementJbf(Utilitaire!K229,'Détail des projets'!W281,1000000*Accueil!$D$67) -> -0.0001799592652 | T25: =IF(COUNTA(B25)=1,IF(COUNTA(S25)=1,IF(F25="Minimum à atteindre",IF(B25=0,IF(S25>0,1,0),S25/B25),IF(F25="Maximum à ne pas dépasser",IF(B25=0,IF(S25<0,1,0),(B25-S25)/B25+1),IF(F25="Binaire",IF(B25=S25,1,0),""))),0),"") -> 
A26: 2 | B26: 14 | C26: % | D26: 2015 | E26: Hausse de l'achalandage (année de référence = 2006) | F26: minimum à atteindre | H26: =_11_4_2014_2015 -> 15.5 | I26: =_11_4_2015_2016 -> 14.3 | S26: 14.3 | T26: =IF(COUNTA(B26)=1,IF(COUNTA(S26)=1,IF(F26="Minimum à atteindre",IF(B26=0,IF(S26>0,1,0),S26/B26),IF(F26="Maximum à ne pas dépasser",IF(B26=0,IF(S26<0,1,0),(B26-S26)/B26+1),IF(F26="Binaire",IF(B26=S26,1,0),""))),0),"") -> 1.021428571
A27: 3 | B27: 14 | C27: % | D27: 2017 | E27: Hausse de l'achalandage (année de référence = 2006) | F27: minimum à atteindre | H27: =_11_4_2014_2015 -> 15.5 | I27: =_11_4_2015_2016 -> 14.3 | J27: =_11_4_2016_2017 -> 15.3 | K27: =_11_4_2017_2018 -> 18.1 | S27: 18.1 | T27: 1.292857143
A28: 4 | B28: 14 | C28: % | D28: 2020 | E28: Hausse de l'achalandage (année de référence = 2006) | F28: minimum à atteindre | H28: 15.5 | I28: 14.3 | J28: 15.3 | K28: 18.1 | L28: 22.9 | M28: 24 | S28: 24 | T28: 1.714285714 | U28: Les résultats 20-21 et 21-22 seront disponibles lorsque la reddition de comptes sera reçue au MTQ de la part des bénéficiaires. Les derniers résultats disponibles remontent donc à l’année 2019-2020.
A29: 5 | B29: 28.9 | C29: % | D29: 2020 | E29: Maintien de la hausse de l'offre de services (année de référence = 2006) | F29: minimum à atteindre | H29: 29.6 | I29: 30 | J29: 31.7 | K29: 34 | L29: 36.1 | M29: 38.1 | N29: 33.5 | S29: 38.1 | T29: 1.3183391 | U29: Les résultats 20-21 et 21-22 seront disponibles lorsque la reddition de comptes sera reçue au MTQ de la part des bénéficiaires. Les derniers résultats disponibles remontent donc à l’année 2019-2020.
A30: 6 | B30: 28 | C30: % | D30: 2015 | E30: Hausse de l'offre de service (année de référence = 2006) | F30: minimum à atteindre | H30: 29.6 | I30: 30 | S30: 30 | T30: 1.071428571
A31: 7 | B31: 28 | C31: % | D31: 2016 | E31: Hausse de l'offre de service (année de référence = 2006) | F31: minimum à atteindre | H31: =_11_6_2014_2015 -> 29.6 | I31: =_11_6_2015_2016 -> 30 | J31: =_11_8_2016_2017 -> 31.7 | K31: =_11_6_2017_2018 -> 0 | L31: =_11_6_2018_2019 -> 0 | M31: =_11_6_2019_2020 -> 0 | S31: 31.7 | T31: 1.132142857
A32: 8 | B32: 28 | C32: % | D32: 2017 | E32: Hausse de l'offre de service (année de référence = 2006) | F32: minimum à atteindre | H32: 29.6 | I32: 30 | J32: 31.7 | K32: 34 | L32: 36.1 | M32: 38.1 | S32: 34 | T32: 1.214285714
A33: 9 | B33: 30000 | C33: T/CO2 | D33: 2017 | E33: Réduction annuelle des émissions de gaz à effet de serre (GES) | F33: minimum à atteindre | H33: 40872.48803 | I33: 22895.30986 | J33: 22473.61087 | K33: 43258.44485 | L33: 70935.64176 | M33: 70571 | S33: 43258.44 | T33: 1.441948
A34: 10 | B34: 23000 | C34: T/CO2 | D34: 2020 | E34: Réduction annuelle des émissions de gaz à effet de serre (GES) | F34: minimum à atteindre | H34: 40872.48803 | I34: 22895.30986 | J34: 22473.61087 | K34: 43258.44485 | L34: 70935.64176 | M34: 70571 | S34: 70571 | T34: 3.068304348 | U34: Les résultats 20-21 et 21-22 seront disponibles lorsque la reddition de comptes sera reçue au MTQ de la part des bénéficiaires. Les derniers résultats disponibles remontent donc à l’année 2019-2020.
A35: 11 | T35: =IF(COUNTA(B35)=1,IF(COUNTA(S35)=1,IF(F35="Minimum à atteindre",IF(B35=0,IF(S35>0,1,0),S35/B35),IF(F35="Maximum à ne pas dépasser",IF(B35=0,IF(S35<0,1,0),(B35-S35)/B35+1),IF(F35="Binaire",IF(B35=S35,1,0),""))),0),"") -> 
A36: 12 | T36: =IF(COUNTA(B36)=1,IF(COUNTA(S36)=1,IF(F36="Minimum à atteindre",IF(B36=0,IF(S36>0,1,0),S36/B36),IF(F36="Maximum à ne pas dépasser",IF(B36=0,IF(S36<0,1,0),(B36-S36)/B36+1),IF(F36="Binaire",IF(B36=S36,1,0),""))),0),"") -> 
A37: 13 | T37: =IF(COUNTA(B37)=1,IF(COUNTA(S37)=1,IF(F37="Minimum à atteindre",IF(B37=0,IF(S37>0,1,0),S37/B37),IF(F37="Maximum à ne pas dépasser",IF(B37=0,IF(S37<0,1,0),(B37-S37)/B37+1),IF(F37="Binaire",IF(B37=S37,1,0),""))),0),"") -> 
A38: 14
A39: 15 | T39: =IF(COUNTA(B39)=1,IF(COUNTA(S39)=1,IF(F39="Minimum à atteindre",IF(B39=0,IF(S39>0,1,0),S39/B39),IF(F39="Maximum à ne pas dépasser",IF(B39=0,IF(S39<0,1,0),(B39-S39)/B39+1),IF(F39="Binaire",IF(B39=S39,1,0),""))),0),"") -> 
A40: 16 | T40: =IF(COUNTA(B40)=1,IF(COUNTA(S40)=1,IF(F40="Minimum à atteindre",IF(B40=0,IF(S40>0,1,0),S40/B40),IF(F40="Maximum à ne pas dépasser",IF(B40=0,IF(S40<0,1,0),(B40-S40)/B40+1),IF(F40="Binaire",IF(B40=S40,1,0),""))),0),"") -> 
A41: 17
A42: 18
A43: 19
A44: 20
A45: 21 | AQ45: FALSE
B69: PRÉVISIONS DES RETOMBÉES SUR LES RÉDUCTIONS DES ÉMISSIONS DE GES | F69: Ce tableau et les résultats par action qu'il contient ne seront pas publiés. L'objectif est de permettre une appréciation à l'échelle du PACC des résultats escomptés. Veuillez le compléter et vérifier l'information qui y est contenue, au meilleur de vos connaissances et avec l'information dont vous disposez.
B70: Niveau de certitude | E70: Lieu | F70: 2020 | G70: 2021 | H70: 2022 | I70: 2023 | J70: 2024 | K70: 2025 | L70: 2026 | M70: 2030 | N70: 2035 | O70: 2027 | P70: 2038 | Q70: 2029 | R70: 2031 | S70: 2040 | T70: 2050 | U70: Commentaires sur les résultats
B71: Pérennité des réductions d'émissions de GES réalisées à ce jour (T éq. CO2) | E71: Au Québec
E72: Hors Québec
E73: Non distingué
B74: Développement du potentiel de réduction des émissions de GES pour le futur (T éq. CO2) | E74: Au Québec
E75: Hors Québec
E76: Non distingué
B153: ADAPTATION AUX EFFETS DES CHANGEMENTS CLIMATIQUES
B154: Solutions d'adaptation proposées | D154: Lignes concernées de l'onglet Détail des projets | E154: Étape | F154: Ajustements | H154: Risques | J154: Effets des changements climatiques | L154: Région | S154: Échelle humaine | U154: Échelle environnementale
F155: La solution agit sur : | H155: afin de protéger : | J155: de : | S155: (estimation du nombre de personnes desservies) | U155: (estimation du nombre d'espèces desservies)
D156: 25
D157: 26
D158: 27
D159: 28
D160: 29
D161: 30
D162: 31
D163: 32
B292: Ajouter une ligne

Sheet Évaluation (hidden)
B2: =Utilitaire!E8 -> Plan d'action 2013-2020 sur les changements climatiques | H2: Conseils de rédaction : | M2: Informations en date du : | N2: =Utilitaire!G6 -> 2022-03-31
B3: ="Action " & Accueil!D58 -> Action en cours | H3: - Veuillez compléter la section "Évaluation de l'action" (OBLIGATOIRE) - ligne 204 (Fin du PACC) - Cet onglet sera pour usage interne seulement, il ne sera pas publié. - Des bulles commentaires dans chacun des titres vous aideront à remplir adéquatement les différentes colonnes. - Les cases de la section « Évaluation de l'action » sont limitées à 3000 caractères.
B4: =Accueil!D55 -> 13.7.1 | C4: =Accueil!E55 -> Programme d'aide au développement du transport collectif (PADTC) - Amélioration des services de transport en commun (urbain)
B5: Ministère porteur: | C5: =Accueil!$D$65 -> MTQ
B6: Évaluation
B7: Informations en date du : | D7: 2022-03-31
B38: Est-ce qu'une production d'un rapport d'évaluation complet est prévue dans le cadre de cette action :
B40: Liste des livrables
B41: Titre du document | D41: Date du document | F41: Type de document | I41: Date prévue de transmission au BECC | K41: Date réelle de transmission au BECC | M41: Référence | N41: Commentaires
B146: Ajouter une ligne
B204: Évaluation de l'action
C209: Début : | D209: =Accueil!$D$68 -> 2014-01-01 | I209: Fin : | J209: =Accueil!$K$68 -> 2023-03-31
B210: Résultats attendus : | C210: =IF(LEN(Description!C49)>0,Description!C49,"") -> Une hausse de l'offre de services de transport en commun et une amélioration de la performance de ces services entraîneront une hausse de l'achalandage. Il en découlera une réduction des émissions de GES. L'utilisation du transport en commun permet de réduire la congestion et les émissions polluantes. Elle permet de réduire les dépenses associées à la possession et l'utilisation de l'automobile. Elle permet aussi d'améliorer la santé des citoyens puisque les usagers du transport collectif ont davantage recours aux modes actifs de déplacement. Elle facilite également la participation économique et sociale des personnes sans véhicule personnel, à faible revenu ou en perte d'autonomie.
B211: Résultats obtenus (Cibles, indicateurs et description) : | C211: =IF(COUNTA(Indicateurs!B25:B45)=0,0,AVERAGE(Indicateurs!$T$25:$T$45)) -> 1.475002224 | D211: =IF(LEN(Description!C50)>0,Description!C50,"") -> Les résultats obtenus au cours de l'année 2021-2022 ne sont pas encore disponibles puisque les données d'offre de services des autorités organisatrice de transport n'ont pas encore été compilées (voir onglet commentaires).
D212: =IF(LEN(Description!C51)>0,Description!C51,"") -> Les résultats obtenus pour l'année 2021-2022 ne sont pas encore disponibles. Les dernières données disponibles remontent à 2019-2020 et font état 24% de hausse d'achalandage, 38,10% de la hausse de l'offre de services, 70 571 tonnes de GES évités. En 2020-2021 le maintien de la hausse de l'offre de services était à 33,50%.
B217: Type d'évaluation : | C217: Lorsque l'action est terminée
B218: Est-ce que les résultats obtenus dans le cadre de l'action sont satisfaisants? | C218: Oui
B219: Quelles sont les améliorations possibles pour le futur? | C219: "- Le programme devrait être disponible plus tôt - La bonification des modalités en cours de programme entraîne un délai de traitement supplémentaire et aurait avantage à être faite différemment - Le processus d'approbation des aides financières est long est pourrait être raccourci et éliminant certaines étapes - Le programme doit être sur une base pluriannuelle et idéalement sans modification en cours de programme"
B220: Quels sont les forces et les points positifs de l'action? | C220: "- L'ajout du personnel de première ligne pour le service à la clientèle à grandement aidé le traitement des demandes d'aides - Une boîte commune pour la réception des demandes permet également un meilleur suivi des demandes reçues"
B221: Quelle est votre recommandation quant à la poursuite de cette action? | C221: Reconduire
B222: Autres commentaires

Sheet Commentaires (hidden)
B2: =Utilitaire!E8 -> Plan d'action 2013-2020 sur les changements climatiques | T2: COF
B3: ="Action " & Accueil!D58 -> Action en cours | T3: Frais
B4: =Accueil!D55 -> 13.7.1 | C4: =Accueil!E55 -> Programme d'aide au développement du transport collectif (PADTC) - Amélioration des services de transport en commun (urbain) | T4: ETC
B5: Ministère porteur: | C5: =Accueil!$D$65 -> MTQ | T5: Détail des projets
B6: Commentaires | T6: Détail des projets (GES)
T7: Bilan GES
T8: Indicateurs
T9: Toutes-Autre
T12: 2013-2014
T13: 2014-2015
T14: 2015-2016
T15: 2016-2017
T16: 2017-2018
T17: 2018-2019
T18: 2019-2020
T19: 2020-2021
B20: Informations en date du : | E20: 2022-03-31 | T20: 2021-2022
T21: 2022-2023
T22: 2023-2024
B24: Commentaires | M24: Section concernée | O24: Année | P24: Exercice | Q24: nom Commentateur | R24: courriel Commentateur
T32: juin
T33: décembre

Sheet Validation (hidden)
B2: =Utilitaire!E8 -> Plan d'action 2013-2020 sur les changements climatiques
B3: ="Action " & Accueil!D58 -> Action en cours
B4: =Accueil!D55 -> 13.7.1
B5: Ministère porteur: | D5: =Accueil!$D$65 -> MTQ | E5: =Accueil!$D$65 -> MTQ
B6: Rapport de validation de la fiche de suivi
B8: Conseils de rédaction : | E8: Informations en date du : | G8: =Utilitaire!G6 -> 2022-03-31
B9: '- Cet onglet ne sera pas diffusé. - Nous apprécierions vos commentaires constructifs par rapport aux nouvelles fiches de suivi. La case B15 est réservée à cet effet. - Complétez la grille de validation ci-dessous (ligne 19) en cochant chaque point. Vous pouvez inscrire des commentaires à l'endroit prévu à cet effet.
B14: Votre appréciation de la fiche de suivi et suggestions pour les prochains exercices
B17: Grille de validation de la fiche de suivi
B18: Fin du PACC | G18: Commentaires
B19: Avez-vous complété le tableau de la ligne 204 de l'onglet Évaluation?
B20: Avez-vous saisi tous vos engagements à SAGIR (vous avez jusqu'au 31 mai)?
B21: Onglet Accueil | G21: Commentaires
B22: Vérifier que toutes les cases sont remplies.
B23: Les cases non remplies s'affichent en orange Les lignes 69 à 73 seront masquées pour la publication.
B24: Vérifier que la part de financement est écrite sous forme de pourcentage (ex. : 60 %).
B25: Inscrire un nombre entre 0 et 100 suivi du symbole "%". Si le pourcentage est variable, inscrire "Variable".
B26: Vérifier que le statut de l'action est toujours conforme avec son évolution.
B27: Utiliser l'information des onglets "Description" et Détail des projets" afin que le statut soit conforme avec l'évolution de l'action.
B28: Vérifier, s'il y a lieu, que le nom du programme est inscrit.
B29: Onglet Description | G29: Commentaires
B30: Vérifier que toutes les cases obligatoires sont remplies.
B31: Vérifier que tous les éléments pertinents en lien avec le COVID-19 sont inscrits au tableau prévu à cet effet.
B32: Vérifier que les éléments de classification de l'action sont sélectionnés à partir du menu déroulant.
B33: Vérifier que l'entièreté du texte est lisible.
B34: Vérifier que l'échéancier dans la section "Mise en œuvre" est inscrit.
B35: Vérifier que l'état d'avancement est sélectionné à partir du menu déroulant.
B36: Vérifier que le tableau "Plans, stratégies, politiques incluant la mise en œuvre de cette action" est rempli.
B37: Onglet Détail des projets | G37: Commentaires
B38: Vérifier que les informations confidentielles sont inscrites en bleu.
B39: Transmettre au BECC le rapport des résultats, si un projet est terminé.
B40: Vérifier le total des dépenses réelles de tous les projets correspond à celui inscrit dans les COF pour chaque année financière complétée.
B41: Vérifier que le total des dépenses réelles et prévues pour un projet n'excède pas le montant engagé.
B42: Vérifier l'utilisation des nouveaux statuts de projets pour les projets affectés par le COVID-19
B43: Onglet GES | G43: Commentaires
B44: Vérifier que le total des réductions de GES correspond aux données de l'onglet "Indicateurs".
B45: Vérifier que les deux cases de la ligne 20 sont bien remplies.
B46: Vérifier que le coût la tonne et la durée du projet sont bien indiqués pour tous les projets ayant soit un potentiel de réduction ou des réductions réelles (colonnes H et K).
B47: La méthode de calcul du coût la tonne doit respecter les indications en commentaire dans la cellule H23.
B48: Onglet Indicateurs | G48: Commentaires
B49: Vérifier la cohérence des cibles, des résultats et des résultats à comparer avec les cibles. (même unité de mesure, évolution des résultats annuels)
B50: S'il y a lieu, utiliser la colonne "Commentaires sur les résultats" afin de fournir davantage d'informations.
B51: Vérifier que les commentaires à l'intention du BECC qui ne sont pas pour diffusion sont inscrits en bleu.
B52: Vérifier qu'il y a des résultats pour tous les indicateurs. Inscrire un 0 comme résultat pour les indicateurs ne présentant pas de résultats.
B53: Si les résultats ne sont pas disponibles, vous devez inscrire un commentaire dans la colonne prévue à cet effet indiquant à quel moment ils seront disponibles.
B54: Transmettre au BECC pour approbation une annexe 4 (fiche-indicateur) si vous désirez qu'un indicateur soit ajouté.
B55: Vérifier que le tableau "PRÉVISIONS DES RETOMBÉES SUR LES RÉDUCTIONS DES ÉMISSIONS DE GES" est bien rempli si votre action vise la réduction des GES.
B56: Vérifier que le tableau "ADAPTATION AUX EFFETS DES CHANGEMENTS CLIMATIQUES" est bien rempli si votre action vise l'adaptation aux changements climatiques.
B57: Onglet Commentaires | G57: Commentaires
B58: Vérifier que les commentaires de l'exercice précédent s'appliquent toujours. Retirer tous les commentaires qui ne s'appliquent plus.
B59: Inscrire en noir les commentaires nécessaires à afficher lors de la publication des fiches
B60: Onglet Évaluation | G60: Commentaires
B61: Remplir et mettre à jour la liste des livrables. Veuillez transmettre tout livrable attendu au BECC avec votre fiche de suivi.
B62: Veuillez remplir la section Évaluation de l'action. Obligatoire pour la fin du PACC.
A81: Code de couleur | B81: Onglet concerné | C81: no ligne | D81: Description de la problématique | E81: No d'erreur | G81: Commentaires
B82: Description | D82: Les informations "Description, objectif, clientèle, critères d'admissibilité, processus de suivi de l'action, résultats attendus, résultats obtenus dans la dernière année, résultats obtenus, finalité, catégorie" sont manquantes dans l'onglet Description. | E82: 18
B83: détail des projets | D83: Aucun projet n'est mentionné dans la fiche. Cette situation est acceptable seulement si l'action n'est pas encore lancée (statut non démarrée ou en élaboration). | E83: 12
B84: GES | D84: Les informations "Potentiel de réduction des GES, réduction réelle des émissions de GES" sont manquantes dans l'onglet GES. | E84: 18
B85: indicateurs | D85: Aucun indicateur n'est inscrit pour cette action. Acceptable seulement si l'action n'est pas démarrée. | E85: 20

Sheet Modalités de fin du PACC (hidden)
B2: Échéancier de la fin du Plan d'action 2013-2020 sur les changements climatiques
B4: - | C4: 2021-03-31 | E4: Fin du PACC. Vous ne pouvez plus prendre de nouveaux engagements en vertu des actions du PACC.
B5: - | C5: 2021-05-31 | E5: Échéance pour saisir dans SAGIR les engagements (lettre d'octroi suffisante) pris avant le 31 mars.
B6: - | C6: 2021-12-31 | E6: Échéance pour signer les conventions de subventions se rapportant aux engagements saisis à SAGIR.
B7: - | C7: 2022-12-31 | E7: Fin des projets réalisés à l'interne des Partenaires
B8: - | C8: 2025-12-31 | E8: Fin des projets
B9: Lorsque tous les projets liés à une action seront terminés et que tous les résultats liés à l'action seront colligés, l'action sera inscrite comme étant « terminée » et sera retirée du suivi semestriel.
B13: Modalités détaillées de la fin du PACC
B14: (Ces modalités sont annexées à l'entente administrative concernant la mise en œuvre du PACC et concordent avec l'échéancier ci-dessus)
C15: 1. Les enveloppes budgétaires 2013-2020 des actions et sous-actions (Annexe 2 de l’ENTENTE) doivent être respectées en tout temps.
C16: 2. Tous les engagements (c.-à-d. une dépense jugée admissible et autorisée) doivent être pris avant le 31 mars 2021. Après cette date, les engagements pris ne peuvent plus être bonifiés.
C17: 3. Tous les engagements pris avant le 31 mars 2021 (par exemple : lettre d’octroi de subvention signée par vos autorités, contrat, convention ou entente signés, décret ou CT approuvé) doivent être saisis dans SAGIR au plus tard le 31 mai 2021. Une nouvelle version de la « Procédure de comptabilisation des dépenses portées au débit du Fonds d’électrification et de changements climatiques par les ministères et organismes partenaires » sera transmise ultérieurement lors de la fermeture de la fin d’année financière 2020-2021 afin de tenir compte de la fin du PACC.
C18: 4. Les conventions d’aide financière qui ne pourront être signées avant le 31 mars 2021 pourront être reconnues comme engagées seulement si le Partenaire transmet une lettre d’octroi de subvention au bénéficiaire avant cette date :
D19: · La lettre d’octroi devra mentionner le montant total de la subvention avec le détail des versements estimés par année financière et devra préciser qu’elle est conditionnelle à une décision du Conseil des ministres ou du Conseil du trésor lorsqu’applicable. Enfin, la lettre devra préciser que la subvention est conditionnelle à la signature d’une convention de subvention au plus tard le 31 décembre 2021.
C20: 5. Aucun engagement ne pourra s’échelonner au-delà du 31 décembre 2025.
C21: 6. Les frais d’administration (dépenses de rémunération et de fonctionnement) nécessaires au suivi de conventions d’aide financière ou de contrats pourront être imputés au FECC jusqu’au terme des projets ou au plus tard au 31 décembre 2025.
C22: 7. Les suivis se poursuivront tant que les actions ne seront pas terminées.
C23: 8. Aucune dépense pour les projets réalisés à l’interne (projets majoritairement réalisés en régie interne par le personnel du Partenaire) ne pourra être effectuée au-delà du 31 mars 2022.

Sheet Prochain Exercice-Commentaire (hidden)
B2: =Utilitaire!E8 -> Plan d'action 2013-2020 sur les changements climatiques
B4: Commentaires | E4: =Accueil!D65 & " - " &Accueil!D53 -> MTQ - 13.7
E5: ="Action " & Accueil!D58 -> Action en cours
B6: Conseils de rédaction : | D6: Informations en date du : | F6: =Utilitaire!G6 -> 2022-03-31
B7: - Veuillez inscrire ici tout commentaire pour prochain exercice
B10: Onglet de la fiche | C10: Case | D10: Commentaire
